Department Family,Entity,Date,Expense Type,Expense Area,Supplier ,Supplier Type,Transaction Number,Amount,Description,Expenditure Type
Land Registry,Land Registry,02/04/2014,Dir: (Add Value) Commercial & Customer,E-Services Usage,Ordnance Survey,Large,1004694,453833,E-Services Usage,Administration
Land Registry,Land Registry,02/04/2014,IS Service Delivery,DITI Impact Change Controls Only,Steria Limited,Large,1004700,28192.76,IT Change Comtrols,Administration
Land Registry,Land Registry,02/04/2014,Birkenhead Office,Rates Payable,Wirral Metrpolitan Borough Council,Large,480623,3449,Rates Payable,Administration
Land Registry,Land Registry,02/04/2014,Birkenhead Office,Rates Payable,Wirral Metrpolitan Borough Council,Large,480623,24582,Rates Payable,Administration
Land Registry,Land Registry,02/04/2014,Gloucester Computer Centre,Rates Payable,Tewkesbury Borough Council,Large,480621,11518,Rates Payable,Administration
Land Registry,Land Registry,03/04/2014,Central Facilities Management Team,Reprographic Copy Costs,Canon (UK) Ltd,Large,1005007,48917.92,Reprographic Copy Costs,Administration
Land Registry,Land Registry,03/04/2014,IS Service Delivery,Telecoms Equipment Maintenance,Mitel Networks Ltd,SME,1005022,77639.88,Telecoms Equipment Maintenance,Administration
Land Registry,Land Registry,07/04/2014,Weymouth Office,Rates Payable,West Dorset District Council,Large,480769,18914,Rates Payable,Administration
Land Registry,Land Registry,07/04/2014,Peterborough Office,Service Charges,Commercial Estates Group Ltd,SME,1005610,21320.29,Service Charges,Administration
Land Registry,Land Registry,08/04/2014,IS Service Delivery,Computer Equipment Maintenance,Specialist Computer Centres Plc - SCC,Large,1005923,8256.96,Computer Equipment Maintenance,Administration
Land Registry,Land Registry,09/04/2014,Commercial & Customer Strategy & Performance,Market Research,Market & Opinion Research International Ltd,SME,1006232,41124,Market Research,Administration
Land Registry,Land Registry,09/04/2014,Professional Library,Online Law Updated,Thomson Reuters (Professional) UK limited,Large,1006236,22400,Online Law Updated,Administration
Land Registry,Land Registry,10/04/2014,Hull Office,Rates Payable,Kingston Upon Hull City Council,Large,480901,13737,Rates Payable,Administration
Land Registry,Land Registry,10/04/2014,Central Facilities Management Team,Reprographic Copy Costs,Canon (UK) Ltd,Large,1006523,62534.01,Reprographic Copy Costs,Administration
Land Registry,Land Registry,11/04/2014,Forward Scanning,Maps & Plans Data Migration,TNT (UK) Ltd,Large,1006865,191080.18,Maps & Plans Data Migration,Administration
Land Registry,Land Registry,11/04/2014,Central Operations Group,Travel & Subsistence General Duty,Redfern Travel Ltd,Large,1006862,144.8,Travel & Subsistence General Duty,Administration
Land Registry,Land Registry,11/04/2014,IS Service Delivery,Travel & Subsistence General Duty,Redfern Travel Ltd,Large,1006862,1071.96,Travel & Subsistence General Duty,Administration
Land Registry,Land Registry,11/04/2014,Director of Information Systems,Travel & Subsistence General Duty,Redfern Travel Ltd,Large,1006862,132.18,Travel & Subsistence General Duty,Administration
Land Registry,Land Registry,11/04/2014,Nottingham Office,Travel & Subsistence General Duty,Redfern Travel Ltd,Large,1006862,74.82,Travel & Subsistence General Duty,Administration
Land Registry,Land Registry,11/04/2014,IS Service Delivery,Travel & Subsistence General Duty,Redfern Travel Ltd,Large,1006862,91.1,Travel & Subsistence General Duty,Administration
Land Registry,Land Registry,11/04/2014,Central Operations Group,Travel & Subsistence General Duty,Redfern Travel Ltd,Large,1006862,197.49,Travel & Subsistence General Duty,Administration
Land Registry,Land Registry,11/04/2014,HR,Travel & Subsistence General Duty,Redfern Travel Ltd,Large,1006862,62.93,Travel & Subsistence General Duty,Administration
Land Registry,Land Registry,11/04/2014,LR Sports Council,Travel & Subsistence General Duty,Redfern Travel Ltd,Large,1006862,102.03,Travel & Subsistence General Duty,Administration
Land Registry,Land Registry,11/04/2014,Business Continuity,Travel & Subsistence General Duty,Redfern Travel Ltd,Large,1006862,70.98,Travel & Subsistence General Duty,Administration
Land Registry,Land Registry,11/04/2014,Business Development,Travel & Subsistence General Duty,Redfern Travel Ltd,Large,1006862,151.1,Travel & Subsistence General Duty,Administration
Land Registry,Land Registry,11/04/2014,HR,Travel & Subsistence General Duty,Redfern Travel Ltd,Large,1006862,84.19,Travel & Subsistence General Duty,Administration
Land Registry,Land Registry,11/04/2014,Product Development & Management,Travel & Subsistence General Duty,Redfern Travel Ltd,Large,1006862,69.97,Travel & Subsistence General Duty,Administration
Land Registry,Land Registry,11/04/2014,IS Service Delivery,Travel & Subsistence General Duty,Redfern Travel Ltd,Large,1006862,340.38,Travel & Subsistence General Duty,Administration
Land Registry,Land Registry,11/04/2014,Corp Procurement,Travel & Subsistence General Duty,Redfern Travel Ltd,Large,1006862,82.04,Travel & Subsistence General Duty,Administration
Land Registry,Land Registry,11/04/2014,Central Operations Group,Travel & Subsistence General Duty,Redfern Travel Ltd,Large,1006862,122.8,Travel & Subsistence General Duty,Administration
Land Registry,Land Registry,11/04/2014,LR Sports Council,Travel & Subsistence General Duty,Redfern Travel Ltd,Large,1006862,102.03,Travel & Subsistence General Duty,Administration
Land Registry,Land Registry,11/04/2014,IS Service Delivery,Travel & Subsistence General Duty,Redfern Travel Ltd,Large,1006862,70.98,Travel & Subsistence General Duty,Administration
Land Registry,Land Registry,11/04/2014,Central Operations Group,Travel & Subsistence General Duty,Redfern Travel Ltd,Large,1006862,39.46,Travel & Subsistence General Duty,Administration
Land Registry,Land Registry,11/04/2014,IS Service Delivery,Travel & Subsistence General Duty,Redfern Travel Ltd,Large,1006862,70.98,Travel & Subsistence General Duty,Administration
Land Registry,Land Registry,11/04/2014,Central Operations Group,Travel & Subsistence General Duty,Redfern Travel Ltd,Large,1006862,127.31,Travel & Subsistence General Duty,Administration
Land Registry,Land Registry,11/04/2014,Internal Solutions Group,Travel & Subsistence General Duty,Redfern Travel Ltd,Large,1006862,82.04,Travel & Subsistence General Duty,Administration
Land Registry,Land Registry,11/04/2014,Corp Procurement,Travel & Subsistence General Duty,Redfern Travel Ltd,Large,1006862,65.95,Travel & Subsistence General Duty,Administration
Land Registry,Land Registry,11/04/2014,HR,Travel & Subsistence General Duty,Redfern Travel Ltd,Large,1006862,496.17,Travel & Subsistence General Duty,Administration
Land Registry,Land Registry,11/04/2014,IS Service Delivery,Travel & Subsistence General Duty,Redfern Travel Ltd,Large,1006862,64.9,Travel & Subsistence General Duty,Administration
Land Registry,Land Registry,11/04/2014,Commercial Director,Travel & Subsistence General Duty,Redfern Travel Ltd,Large,1006862,132.18,Travel & Subsistence General Duty,Administration
Land Registry,Land Registry,11/04/2014,Chief Executives Office,Travel & Subsistence General Duty,Redfern Travel Ltd,Large,1006862,16.73,Travel & Subsistence General Duty,Administration
Land Registry,Land Registry,11/04/2014,IS Service Delivery,Travel & Subsistence General Duty,Redfern Travel Ltd,Large,1006862,153.02,Travel & Subsistence General Duty,Administration
Land Registry,Land Registry,11/04/2014,Central Operations Group,Travel & Subsistence General Duty,Redfern Travel Ltd,Large,1006862,65.91,Travel & Subsistence General Duty,Administration
Land Registry,Land Registry,11/04/2014,International Unit,Travel & Subsistence General Duty,Redfern Travel Ltd,Large,1006862,89.04,Travel & Subsistence General Duty,Administration
Land Registry,Land Registry,11/04/2014,HR,Travel & Subsistence General Duty,Redfern Travel Ltd,Large,1006862,97.04,Travel & Subsistence General Duty,Administration
Land Registry,Land Registry,11/04/2014,Central Facilities Management Team,Travel & Subsistence General Duty,Redfern Travel Ltd,Large,1006862,85.53,Travel & Subsistence General Duty,Administration
Land Registry,Land Registry,11/04/2014,HR,Travel & Subsistence General Duty,Redfern Travel Ltd,Large,1006862,13.03,Travel & Subsistence General Duty,Administration
Land Registry,Land Registry,11/04/2014,Dir: HR,Travel & Subsistence General Duty,Redfern Travel Ltd,Large,1006862,63.93,Travel & Subsistence General Duty,Administration
Land Registry,Land Registry,11/04/2014,Dir: Finance,Travel & Subsistence General Duty,Redfern Travel Ltd,Large,1006862,142.4,Travel & Subsistence General Duty,Administration
Land Registry,Land Registry,11/04/2014,Dir: HR,Travel & Subsistence General Duty,Redfern Travel Ltd,Large,1006862,79.02,Travel & Subsistence General Duty,Administration
Land Registry,Land Registry,11/04/2014,Dir: Finance,Travel & Subsistence General Duty,Redfern Travel Ltd,Large,1006862,92.71,Travel & Subsistence General Duty,Administration
Land Registry,Land Registry,11/04/2014,Dir: Operations,Travel & Subsistence General Duty,Redfern Travel Ltd,Large,1006862,143.13,Travel & Subsistence General Duty,Administration
Land Registry,Land Registry,11/04/2014,Dir: (Statutory) Commercial & Customer,Travel & Subsistence General Duty,Redfern Travel Ltd,Large,1006862,217.62,Travel & Subsistence General Duty,Administration
Land Registry,Land Registry,11/04/2014,Dir: HR,Travel & Subsistence General Duty,Redfern Travel Ltd,Large,1006862,21.56,Travel & Subsistence General Duty,Administration
Land Registry,Land Registry,11/04/2014,Dir: (Statutory) Commercial & Customer,Travel & Subsistence General Duty,Redfern Travel Ltd,Large,1006862,51.95,Travel & Subsistence General Duty,Administration
Land Registry,Land Registry,11/04/2014,Dir: HR,Travel & Subsistence General Duty,Redfern Travel Ltd,Large,1006862,71.98,Travel & Subsistence General Duty,Administration
Land Registry,Land Registry,11/04/2014,Dir: (Statutory) Commercial & Customer,Travel & Subsistence General Duty,Redfern Travel Ltd,Large,1006862,70.98,Travel & Subsistence General Duty,Administration
Land Registry,Land Registry,11/04/2014,Dir: Operations,Travel & Subsistence General Duty,Redfern Travel Ltd,Large,1006862,100.28,Travel & Subsistence General Duty,Administration
Land Registry,Land Registry,11/04/2014,Dir: HR,Travel & Subsistence General Duty,Redfern Travel Ltd,Large,1006862,149.48,Travel & Subsistence General Duty,Administration
Land Registry,Land Registry,11/04/2014,Dir: (Statutory) Commercial & Customer,Travel & Subsistence General Duty,Redfern Travel Ltd,Large,1006862,296.73,Travel & Subsistence General Duty,Administration
Land Registry,Land Registry,11/04/2014,Dir: HR,Travel & Subsistence General Duty,Redfern Travel Ltd,Large,1006862,35.37,Travel & Subsistence General Duty,Administration
Land Registry,Land Registry,11/04/2014,Dir: (Statutory) Commercial & Customer,Travel & Subsistence General Duty,Redfern Travel Ltd,Large,1006862,96.35,Travel & Subsistence General Duty,Administration
Land Registry,Land Registry,11/04/2014,Dir: HR,Travel & Subsistence General Duty,Redfern Travel Ltd,Large,1006862,186.2,Travel & Subsistence General Duty,Administration
Land Registry,Land Registry,11/04/2014,Dir: Finance,Travel & Subsistence General Duty,Redfern Travel Ltd,Large,1006862,31.86,Travel & Subsistence General Duty,Administration
Land Registry,Land Registry,11/04/2014,Dir: (Statutory) Commercial & Customer,Travel & Subsistence General Duty,Redfern Travel Ltd,Large,1006862,114.61,Travel & Subsistence General Duty,Administration
Land Registry,Land Registry,11/04/2014,Dir: Finance,Travel & Subsistence General Duty,Redfern Travel Ltd,Large,1006862,315.13,Travel & Subsistence General Duty,Administration
Land Registry,Land Registry,11/04/2014,Dir: HR,Travel & Subsistence General Duty,Redfern Travel Ltd,Large,1006862,411.64,Travel & Subsistence General Duty,Administration
Land Registry,Land Registry,11/04/2014,Dir: Finance,Travel & Subsistence General Duty,Redfern Travel Ltd,Large,1006862,215.84,Travel & Subsistence General Duty,Administration
Land Registry,Land Registry,11/04/2014,Dir: HR,Travel & Subsistence General Duty,Redfern Travel Ltd,Large,1006862,215.84,Travel & Subsistence General Duty,Administration
Land Registry,Land Registry,11/04/2014,Customer Services,Travel & Subsistence General Duty,Redfern Travel Ltd,Large,1006862,82.6,Travel & Subsistence General Duty,Administration
Land Registry,Land Registry,11/04/2014,International Unit,Travel & Subsistence General Duty,Redfern Travel Ltd,Large,1006862,126,Travel & Subsistence General Duty,Administration
Land Registry,Land Registry,11/04/2014,Marketing Services Team,Travel & Subsistence General Duty,Redfern Travel Ltd,Large,1006862,1.15,Travel & Subsistence General Duty,Administration
Land Registry,Land Registry,11/04/2014,Commercial & Customer Strategy & Performance,Travel & Subsistence General Duty,Redfern Travel Ltd,Large,1006862,224.05,Travel & Subsistence General Duty,Administration
Land Registry,Land Registry,11/04/2014,Business Development,Travel & Subsistence General Duty,Redfern Travel Ltd,Large,1006862,12.9,Travel & Subsistence General Duty,Administration
Land Registry,Land Registry,11/04/2014,Customer Services,Travel & Subsistence General Duty,Redfern Travel Ltd,Large,1006862,-99.12,Travel & Subsistence General Duty,Administration
Land Registry,Land Registry,11/04/2014,Product Development & Management,Travel & Subsistence General Duty,Redfern Travel Ltd,Large,1006862,226.75,Travel & Subsistence General Duty,Administration
Land Registry,Land Registry,11/04/2014,International Unit,Travel & Subsistence General Duty,Redfern Travel Ltd,Large,1006862,-151.2,Travel & Subsistence General Duty,Administration
Land Registry,Land Registry,11/04/2014,Marketing Services Team,Travel & Subsistence General Duty,Redfern Travel Ltd,Large,1006862,-1.38,Travel & Subsistence General Duty,Administration
Land Registry,Land Registry,11/04/2014,Product Development & Management,Travel & Subsistence General Duty,Redfern Travel Ltd,Large,1006862,-272.1,Travel & Subsistence General Duty,Administration
Land Registry,Land Registry,11/04/2014,Commercial & Customer Strategy & Performance,Travel & Subsistence General Duty,Redfern Travel Ltd,Large,1006862,-268.86,Travel & Subsistence General Duty,Administration
Land Registry,Land Registry,11/04/2014,Business Development,Travel & Subsistence General Duty,Redfern Travel Ltd,Large,1006862,-15.48,Travel & Subsistence General Duty,Administration
Land Registry,Land Registry,11/04/2014,Central Facilities Management Team,Travel & Subsistence General Duty,Redfern Travel Ltd,Large,1006862,65.95,Travel & Subsistence General Duty,Administration
Land Registry,Land Registry,11/04/2014,Technical Assurance Group,Travel & Subsistence General Duty,Redfern Travel Ltd,Large,1006862,132.34,Travel & Subsistence General Duty,Administration
Land Registry,Land Registry,11/04/2014,IS Service Delivery,Travel & Subsistence General Duty,Redfern Travel Ltd,Large,1006862,222.88,Travel & Subsistence General Duty,Administration
Land Registry,Land Registry,11/04/2014,Central Facilities Management Team,Travel & Subsistence General Duty,Redfern Travel Ltd,Large,1006862,121.31,Travel & Subsistence General Duty,Administration
Land Registry,Land Registry,11/04/2014,Finance Group,Travel & Subsistence General Duty,Redfern Travel Ltd,Large,1006862,1.56,Travel & Subsistence General Duty,Administration
Land Registry,Land Registry,11/04/2014,Customer Services,Travel & Subsistence General Duty,Redfern Travel Ltd,Large,1006862,256.88,Travel & Subsistence General Duty,Administration
Land Registry,Land Registry,11/04/2014,HR,Travel & Subsistence General Duty,Redfern Travel Ltd,Large,1006862,61.22,Travel & Subsistence General Duty,Administration
Land Registry,Land Registry,11/04/2014,Marketing Services Team,Travel & Subsistence General Duty,Redfern Travel Ltd,Large,1006862,156.09,Travel & Subsistence General Duty,Administration
Land Registry,Land Registry,11/04/2014,Chief Executives Office,Travel & Subsistence General Duty,Redfern Travel Ltd,Large,1006862,170.61,Travel & Subsistence General Duty,Administration
Land Registry,Land Registry,11/04/2014,International Unit,Travel & Subsistence General Duty,Redfern Travel Ltd,Large,1006862,1.56,Travel & Subsistence General Duty,Administration
Land Registry,Land Registry,11/04/2014,Commercial & Customer Strategy & Performance,Travel & Subsistence General Duty,Redfern Travel Ltd,Large,1006862,157.34,Travel & Subsistence General Duty,Administration
Land Registry,Land Registry,11/04/2014,Property Asset Management Group,Travel & Subsistence General Duty,Redfern Travel Ltd,Large,1006862,85.53,Travel & Subsistence General Duty,Administration
Land Registry,Land Registry,11/04/2014,Chief Executives Office,Travel & Subsistence General Duty,Redfern Travel Ltd,Large,1006862,132.18,Travel & Subsistence General Duty,Administration
Land Registry,Land Registry,11/04/2014,IS Service Delivery,Travel & Subsistence General Duty,Redfern Travel Ltd,Large,1006862,231.13,Travel & Subsistence General Duty,Administration
Land Registry,Land Registry,11/04/2014,Central Operations Group,Travel & Subsistence General Duty,Redfern Travel Ltd,Large,1006862,65.79,Travel & Subsistence General Duty,Administration
Land Registry,Land Registry,11/04/2014,Internal Solutions Group,Travel & Subsistence General Duty,Redfern Travel Ltd,Large,1006862,82.04,Travel & Subsistence General Duty,Administration
Land Registry,Land Registry,11/04/2014,IS Service Delivery,Travel & Subsistence General Duty,Redfern Travel Ltd,Large,1006862,105.4,Travel & Subsistence General Duty,Administration
Land Registry,Land Registry,11/04/2014,Internal Solutions Group,Travel & Subsistence General Duty,Redfern Travel Ltd,Large,1006862,82.04,Travel & Subsistence General Duty,Administration
Land Registry,Land Registry,11/04/2014,Central Operations Group,Travel & Subsistence General Duty,Redfern Travel Ltd,Large,1006862,122.68,Travel & Subsistence General Duty,Administration
Land Registry,Land Registry,11/04/2014,IS Service Delivery,Travel & Subsistence General Duty,Redfern Travel Ltd,Large,1006862,64.9,Travel & Subsistence General Duty,Administration
Land Registry,Land Registry,11/04/2014,HR,Travel & Subsistence General Duty,Redfern Travel Ltd,Large,1006862,82.04,Travel & Subsistence General Duty,Administration
Land Registry,Land Registry,11/04/2014,Projects and Programme Centre,Travel & Subsistence General Duty,Redfern Travel Ltd,Large,1006862,82.04,Travel & Subsistence General Duty,Administration
Land Registry,Land Registry,11/04/2014,IS Service Delivery,Travel & Subsistence General Duty,Redfern Travel Ltd,Large,1006862,70.98,Travel & Subsistence General Duty,Administration
Land Registry,Land Registry,11/04/2014,Internal Solutions Group,Travel & Subsistence General Duty,Redfern Travel Ltd,Large,1006862,82.04,Travel & Subsistence General Duty,Administration
Land Registry,Land Registry,11/04/2014,Nottingham Office,Travel & Subsistence General Duty,Redfern Travel Ltd,Large,1006862,74.82,Travel & Subsistence General Duty,Administration
Land Registry,Land Registry,11/04/2014,Chief Executives Office,Travel & Subsistence General Duty,Redfern Travel Ltd,Large,1006862,132.3,Travel & Subsistence General Duty,Administration
Land Registry,Land Registry,11/04/2014,IS Service Delivery,Travel & Subsistence General Duty,Redfern Travel Ltd,Large,1006862,64.9,Travel & Subsistence General Duty,Administration
Land Registry,Land Registry,11/04/2014,Corporate Legal Services,Travel & Subsistence General Duty,Redfern Travel Ltd,Large,1006862,132.3,Travel & Subsistence General Duty,Administration
Land Registry,Land Registry,11/04/2014,Chief Executives Office,Travel & Subsistence General Duty,Redfern Travel Ltd,Large,1006862,132.18,Travel & Subsistence General Duty,Administration
Land Registry,Land Registry,11/04/2014,HR,Travel & Subsistence General Duty,Redfern Travel Ltd,Large,1006862,132.18,Travel & Subsistence General Duty,Administration
Land Registry,Land Registry,11/04/2014,Finance Director,Travel & Subsistence General Duty,Redfern Travel Ltd,Large,1006862,132.18,Travel & Subsistence General Duty,Administration
Land Registry,Land Registry,11/04/2014,Central Operations Group,Travel & Subsistence General Duty,Redfern Travel Ltd,Large,1006862,98.79,Travel & Subsistence General Duty,Administration
Land Registry,Land Registry,11/04/2014,Strategy Team,Travel & Subsistence General Duty,Redfern Travel Ltd,Large,1006862,132.3,Travel & Subsistence General Duty,Administration
Land Registry,Land Registry,11/04/2014,Director of Legal Services,Travel & Subsistence General Duty,Redfern Travel Ltd,Large,1006862,132.18,Travel & Subsistence General Duty,Administration
Land Registry,Land Registry,11/04/2014,Durham Office,Travel & Subsistence General Duty,Redfern Travel Ltd,Large,1006862,128.26,Travel & Subsistence General Duty,Administration
Land Registry,Land Registry,11/04/2014,Central Facilities Management Team,Travel & Subsistence General Duty,Redfern Travel Ltd,Large,1006862,130.33,Travel & Subsistence General Duty,Administration
Land Registry,Land Registry,11/04/2014,HR,Travel & Subsistence General Duty,Redfern Travel Ltd,Large,1006862,29.23,Travel & Subsistence General Duty,Administration
Land Registry,Land Registry,11/04/2014,IS Service Delivery,Travel & Subsistence General Duty,Redfern Travel Ltd,Large,1006862,44.54,Travel & Subsistence General Duty,Administration
Land Registry,Land Registry,11/04/2014,Central Operations Group,Travel & Subsistence General Duty,Redfern Travel Ltd,Large,1006862,129.72,Travel & Subsistence General Duty,Administration
Land Registry,Land Registry,11/04/2014,Corporate Legal Services,Travel & Subsistence General Duty,Redfern Travel Ltd,Large,1006862,218.08,Travel & Subsistence General Duty,Administration
Land Registry,Land Registry,11/04/2014,HR,Travel & Subsistence General Duty,Redfern Travel Ltd,Large,1006862,366.24,Travel & Subsistence General Duty,Administration
Land Registry,Land Registry,11/04/2014,Central Operations Group,Travel & Subsistence General Duty,Redfern Travel Ltd,Large,1006862,93.37,Travel & Subsistence General Duty,Administration
Land Registry,Land Registry,11/04/2014,HR,Travel & Subsistence General Duty,Redfern Travel Ltd,Large,1006862,87.78,Travel & Subsistence General Duty,Administration
Land Registry,Land Registry,11/04/2014,Central Facilities Management Team,Travel & Subsistence General Duty,Redfern Travel Ltd,Large,1006862,77.62,Travel & Subsistence General Duty,Administration
Land Registry,Land Registry,11/04/2014,Marketing Services Team,Travel & Subsistence General Duty,Redfern Travel Ltd,Large,1006862,13.03,Travel & Subsistence General Duty,Administration
Land Registry,Land Registry,11/04/2014,Governance & Policy,Travel & Subsistence General Duty,Redfern Travel Ltd,Large,1006862,84.95,Travel & Subsistence General Duty,Administration
Land Registry,Land Registry,11/04/2014,IS Service Delivery,Travel & Subsistence General Duty,Redfern Travel Ltd,Large,1006862,100.46,Travel & Subsistence General Duty,Administration
Land Registry,Land Registry,11/04/2014,Product Development & Management,Travel & Subsistence General Duty,Redfern Travel Ltd,Large,1006862,40.73,Travel & Subsistence General Duty,Administration
Land Registry,Land Registry,11/04/2014,Customer Services,Travel & Subsistence General Duty,Redfern Travel Ltd,Large,1006862,121.3,Travel & Subsistence General Duty,Administration
Land Registry,Land Registry,11/04/2014,IS Service Delivery,Travel & Subsistence General Duty,Redfern Travel Ltd,Large,1006862,97.54,Travel & Subsistence General Duty,Administration
Land Registry,Land Registry,11/04/2014,Wales Office,Travel & Subsistence General Duty,Redfern Travel Ltd,Large,1006862,109.06,Travel & Subsistence General Duty,Administration
Land Registry,Land Registry,11/04/2014,Guarantee & Litigation,Travel & Subsistence General Duty,Redfern Travel Ltd,Large,1006862,10.59,Travel & Subsistence General Duty,Administration
Land Registry,Land Registry,11/04/2014,Product Development & Management,Travel & Subsistence General Duty,Redfern Travel Ltd,Large,1006862,130.02,Travel & Subsistence General Duty,Administration
Land Registry,Land Registry,11/04/2014,Fylde Office,Travel & Subsistence General Duty,Redfern Travel Ltd,Large,1006862,9.79,Travel & Subsistence General Duty,Administration
Land Registry,Land Registry,11/04/2014,HR,Travel & Subsistence General Duty,Redfern Travel Ltd,Large,1006862,166.43,Travel & Subsistence General Duty,Administration
Land Registry,Land Registry,11/04/2014,Business Development,Travel & Subsistence General Duty,Redfern Travel Ltd,Large,1006862,150.02,Travel & Subsistence General Duty,Administration
Land Registry,Land Registry,11/04/2014,IS Service Delivery,Travel & Subsistence General Duty,Redfern Travel Ltd,Large,1006862,108.37,Travel & Subsistence General Duty,Administration
Land Registry,Land Registry,11/04/2014,Durham Office,Travel & Subsistence General Duty,Redfern Travel Ltd,Large,1006862,128.26,Travel & Subsistence General Duty,Administration
Land Registry,Land Registry,11/04/2014,Business Development,Travel & Subsistence General Duty,Redfern Travel Ltd,Large,1006862,635.76,Travel & Subsistence General Duty,Administration
Land Registry,Land Registry,11/04/2014,Central Operations Group,Travel & Subsistence General Duty,Redfern Travel Ltd,Large,1006862,98.01,Travel & Subsistence General Duty,Administration
Land Registry,Land Registry,11/04/2014,Business Development,Travel & Subsistence General Duty,Redfern Travel Ltd,Large,1006862,296.89,Travel & Subsistence General Duty,Administration
Land Registry,Land Registry,11/04/2014,Central Operations Group,Travel & Subsistence General Duty,Redfern Travel Ltd,Large,1006862,160.22,Travel & Subsistence General Duty,Administration
Land Registry,Land Registry,11/04/2014,Commercial & Customer Strategy & Performance,Travel & Subsistence General Duty,Redfern Travel Ltd,Large,1006862,158.5,Travel & Subsistence General Duty,Administration
Land Registry,Land Registry,11/04/2014,IS Service Delivery,Travel & Subsistence General Duty,Redfern Travel Ltd,Large,1006862,119.98,Travel & Subsistence General Duty,Administration
Land Registry,Land Registry,11/04/2014,Central Operations Group,Travel & Subsistence General Duty,Redfern Travel Ltd,Large,1006862,155.49,Travel & Subsistence General Duty,Administration
Land Registry,Land Registry,11/04/2014,Central Facilities Management Team,Travel & Subsistence General Duty,Redfern Travel Ltd,Large,1006862,53.03,Travel & Subsistence General Duty,Administration
Land Registry,Land Registry,11/04/2014,Property Asset Management Group,Travel & Subsistence General Duty,Redfern Travel Ltd,Large,1006862,81.23,Travel & Subsistence General Duty,Administration
Land Registry,Land Registry,11/04/2014,Business Planning Assurance and Risk Management,Travel & Subsistence General Duty,Redfern Travel Ltd,Large,1006862,207.76,Travel & Subsistence General Duty,Administration
Land Registry,Land Registry,11/04/2014,Central Facilities Management Team,Travel & Subsistence General Duty,Redfern Travel Ltd,Large,1006862,41.03,Travel & Subsistence General Duty,Administration
Land Registry,Land Registry,11/04/2014,International Unit,Travel & Subsistence General Duty,Redfern Travel Ltd,Large,1006862,403.9,Travel & Subsistence General Duty,Administration
Land Registry,Land Registry,11/04/2014,Central Facilities Management Team,Travel & Subsistence General Duty,Redfern Travel Ltd,Large,1006862,10.59,Travel & Subsistence General Duty,Administration
Land Registry,Land Registry,11/04/2014,HR,Travel & Subsistence General Duty,Redfern Travel Ltd,Large,1006862,67.67,Travel & Subsistence General Duty,Administration
Land Registry,Land Registry,11/04/2014,Central Facilities Management Team,Travel & Subsistence General Duty,Redfern Travel Ltd,Large,1006862,163.91,Travel & Subsistence General Duty,Administration
Land Registry,Land Registry,11/04/2014,Internal Solutions Group,Travel & Subsistence General Duty,Redfern Travel Ltd,Large,1006862,113.15,Travel & Subsistence General Duty,Administration
Land Registry,Land Registry,11/04/2014,Coventry Office,Travel & Subsistence General Duty,Redfern Travel Ltd,Large,1006862,156.56,Travel & Subsistence General Duty,Administration
Land Registry,Land Registry,11/04/2014,Guarantee & Litigation,Travel & Subsistence General Duty,Redfern Travel Ltd,Large,1006862,65.31,Travel & Subsistence General Duty,Administration
Land Registry,Land Registry,11/04/2014,Property Asset Management Group,Travel & Subsistence General Duty,Redfern Travel Ltd,Large,1006862,163.91,Travel & Subsistence General Duty,Administration
Land Registry,Land Registry,11/04/2014,Employee & Management Support Manager,Travel & Subsistence General Duty,Redfern Travel Ltd,Large,1006862,40.73,Travel & Subsistence General Duty,Administration
Land Registry,Land Registry,11/04/2014,Guarantee & Litigation,Travel & Subsistence General Duty,Redfern Travel Ltd,Large,1006862,14.48,Travel & Subsistence General Duty,Administration
Land Registry,Land Registry,11/04/2014,Product Development & Management,Travel & Subsistence General Duty,Redfern Travel Ltd,Large,1006862,91.1,Travel & Subsistence General Duty,Administration
Land Registry,Land Registry,11/04/2014,HR,Travel & Subsistence General Duty,Redfern Travel Ltd,Large,1006862,97.38,Travel & Subsistence General Duty,Administration
Land Registry,Land Registry,11/04/2014,Internal Solutions Group,Travel & Subsistence General Duty,Redfern Travel Ltd,Large,1006862,87.32,Travel & Subsistence General Duty,Administration
Land Registry,Land Registry,11/04/2014,Product Development & Management,Travel & Subsistence General Duty,Redfern Travel Ltd,Large,1006862,166.61,Travel & Subsistence General Duty,Administration
Land Registry,Land Registry,11/04/2014,IS Service Delivery,Travel & Subsistence General Duty,Redfern Travel Ltd,Large,1006862,179.85,Travel & Subsistence General Duty,Administration
Land Registry,Land Registry,11/04/2014,Nottingham Office,Travel & Subsistence General Duty,Redfern Travel Ltd,Large,1006862,76.23,Travel & Subsistence General Duty,Administration
Land Registry,Land Registry,11/04/2014,Central Operations Group,Travel & Subsistence General Duty,Redfern Travel Ltd,Large,1006862,131.7,Travel & Subsistence General Duty,Administration
Land Registry,Land Registry,11/04/2014,HR,Travel & Subsistence General Duty,Redfern Travel Ltd,Large,1006862,36.54,Travel & Subsistence General Duty,Administration
Land Registry,Land Registry,11/04/2014,Central Operations Group,Travel & Subsistence General Duty,Redfern Travel Ltd,Large,1006862,89.08,Travel & Subsistence General Duty,Administration
Land Registry,Land Registry,11/04/2014,HR,Travel & Subsistence General Duty,Redfern Travel Ltd,Large,1006862,141.62,Travel & Subsistence General Duty,Administration
Land Registry,Land Registry,11/04/2014,Internal Solutions Group,Travel & Subsistence General Duty,Redfern Travel Ltd,Large,1006862,82.04,Travel & Subsistence General Duty,Administration
Land Registry,Land Registry,11/04/2014,LR Board & Board Chair,Travel & Subsistence General Duty,Redfern Travel Ltd,Large,1006862,70.82,Travel & Subsistence General Duty,Administration
Land Registry,Land Registry,11/04/2014,Customer Services,Travel & Subsistence General Duty,Redfern Travel Ltd,Large,1006862,96.33,Travel & Subsistence General Duty,Administration
Land Registry,Land Registry,11/04/2014,Director of Operations,Travel & Subsistence General Duty,Redfern Travel Ltd,Large,1006862,132.18,Travel & Subsistence General Duty,Administration
Land Registry,Land Registry,11/04/2014,IS Service Delivery,Travel & Subsistence General Duty,Redfern Travel Ltd,Large,1006862,105.4,Travel & Subsistence General Duty,Administration
Land Registry,Land Registry,11/04/2014,HR,Travel & Subsistence General Duty,Redfern Travel Ltd,Large,1006862,141.62,Travel & Subsistence General Duty,Administration
Land Registry,Land Registry,11/04/2014,Central Operations Group,Travel & Subsistence General Duty,Redfern Travel Ltd,Large,1006862,65.79,Travel & Subsistence General Duty,Administration
Land Registry,Land Registry,11/04/2014,Independent Complaints Reviewer,Travel & Subsistence General Duty,Redfern Travel Ltd,Large,1006862,72.25,Travel & Subsistence General Duty,Administration
Land Registry,Land Registry,11/04/2014,Internal Solutions Group,Travel & Subsistence General Duty,Redfern Travel Ltd,Large,1006862,337,Travel & Subsistence General Duty,Administration
Land Registry,Land Registry,11/04/2014,Central Facilities Management Team,Travel & Subsistence General Duty,Redfern Travel Ltd,Large,1006862,20.53,Travel & Subsistence General Duty,Administration
Land Registry,Land Registry,11/04/2014,Chief Executives Office,Travel & Subsistence General Duty,Redfern Travel Ltd,Large,1006862,174.91,Travel & Subsistence General Duty,Administration
Land Registry,Land Registry,11/04/2014,HR,Travel & Subsistence General Duty,Redfern Travel Ltd,Large,1006862,347.1,Travel & Subsistence General Duty,Administration
Land Registry,Land Registry,11/04/2014,Internal Solutions Group,Travel & Subsistence General Duty,Redfern Travel Ltd,Large,1006862,108.45,Travel & Subsistence General Duty,Administration
Land Registry,Land Registry,11/04/2014,IS Service Delivery,Travel & Subsistence General Duty,Redfern Travel Ltd,Large,1006862,18.5,Travel & Subsistence General Duty,Administration
Land Registry,Land Registry,11/04/2014,HR,Travel & Subsistence General Duty,Redfern Travel Ltd,Large,1006862,165.35,Travel & Subsistence General Duty,Administration
Land Registry,Land Registry,11/04/2014,Marketing Services Team,Travel & Subsistence General Duty,Redfern Travel Ltd,Large,1006862,60.46,Travel & Subsistence General Duty,Administration
Land Registry,Land Registry,11/04/2014,Product Development & Management,Travel & Subsistence General Duty,Redfern Travel Ltd,Large,1006862,150.31,Travel & Subsistence General Duty,Administration
Land Registry,Land Registry,11/04/2014,Central Facilities Management Team,Travel & Subsistence General Duty,Redfern Travel Ltd,Large,1006862,54.11,Travel & Subsistence General Duty,Administration
Land Registry,Land Registry,11/04/2014,IS Service Delivery,Travel & Subsistence General Duty,Redfern Travel Ltd,Large,1006862,193.55,Travel & Subsistence General Duty,Administration
Land Registry,Land Registry,11/04/2014,Customer Services,Travel & Subsistence General Duty,Redfern Travel Ltd,Large,1006862,15.57,Travel & Subsistence General Duty,Administration
Land Registry,Land Registry,11/04/2014,Internal Solutions Group,Travel & Subsistence General Duty,Redfern Travel Ltd,Large,1006862,289.57,Travel & Subsistence General Duty,Administration
Land Registry,Land Registry,11/04/2014,HR,Travel & Subsistence General Duty,Redfern Travel Ltd,Large,1006862,165.35,Travel & Subsistence General Duty,Administration
Land Registry,Land Registry,11/04/2014,IS Service Delivery,Travel & Subsistence General Duty,Redfern Travel Ltd,Large,1006862,160.99,Travel & Subsistence General Duty,Administration
Land Registry,Land Registry,11/04/2014,Product Development & Management,Travel & Subsistence General Duty,Redfern Travel Ltd,Large,1006862,13.02,Travel & Subsistence General Duty,Administration
Land Registry,Land Registry,11/04/2014,Business Development,Travel & Subsistence General Duty,Redfern Travel Ltd,Large,1006862,122.42,Travel & Subsistence General Duty,Administration
Land Registry,Land Registry,11/04/2014,Central Facilities Management Team,Travel & Subsistence General Duty,Redfern Travel Ltd,Large,1006862,52.54,Travel & Subsistence General Duty,Administration
Land Registry,Land Registry,11/04/2014,Independent Complaints Reviewer,Travel & Subsistence General Duty,Redfern Travel Ltd,Large,1006862,46.39,Travel & Subsistence General Duty,Administration
Land Registry,Land Registry,11/04/2014,HR,Travel & Subsistence General Duty,Redfern Travel Ltd,Large,1006862,35.59,Travel & Subsistence General Duty,Administration
Land Registry,Land Registry,11/04/2014,IS Service Delivery,Travel & Subsistence General Duty,Redfern Travel Ltd,Large,1006862,23.48,Travel & Subsistence General Duty,Administration
Land Registry,Land Registry,11/04/2014,Commercial & Customer Strategy & Performance,Travel & Subsistence General Duty,Redfern Travel Ltd,Large,1006862,122.42,Travel & Subsistence General Duty,Administration
Land Registry,Land Registry,11/04/2014,Corporate Legal Services,Travel & Subsistence General Duty,Redfern Travel Ltd,Large,1006862,858.26,Travel & Subsistence General Duty,Administration
Land Registry,Land Registry,11/04/2014,Central Operations Group,Travel & Subsistence General Duty,Redfern Travel Ltd,Large,1006862,464.86,Travel & Subsistence General Duty,Administration
Land Registry,Land Registry,11/04/2014,Commercial & Customer Strategy & Performance,Travel & Subsistence General Duty,Redfern Travel Ltd,Large,1006862,192.09,Travel & Subsistence General Duty,Administration
Land Registry,Land Registry,11/04/2014,Central Operations Group,Travel & Subsistence General Duty,Redfern Travel Ltd,Large,1006862,84.98,Travel & Subsistence General Duty,Administration
Land Registry,Land Registry,11/04/2014,Commercial Director,Travel & Subsistence General Duty,Redfern Travel Ltd,Large,1006862,100.25,Travel & Subsistence General Duty,Administration
Land Registry,Land Registry,11/04/2014,Business Development,Travel & Subsistence General Duty,Redfern Travel Ltd,Large,1006862,40.49,Travel & Subsistence General Duty,Administration
Land Registry,Land Registry,11/04/2014,IS Service Delivery,Travel & Subsistence General Duty,Redfern Travel Ltd,Large,1006862,140.39,Travel & Subsistence General Duty,Administration
Land Registry,Land Registry,11/04/2014,Finance Group,Travel & Subsistence General Duty,Redfern Travel Ltd,Large,1006862,140.39,Travel & Subsistence General Duty,Administration
Land Registry,Land Registry,11/04/2014,Product Development & Management,Travel & Subsistence General Duty,Redfern Travel Ltd,Large,1006862,172.58,Travel & Subsistence General Duty,Administration
Land Registry,Land Registry,11/04/2014,Corp Procurement,Travel & Subsistence General Duty,Redfern Travel Ltd,Large,1006862,63.93,Travel & Subsistence General Duty,Administration
Land Registry,Land Registry,11/04/2014,Internal Solutions Group,Travel & Subsistence General Duty,Redfern Travel Ltd,Large,1006862,57.9,Travel & Subsistence General Duty,Administration
Land Registry,Land Registry,11/04/2014,Corporate Legal Services,Travel & Subsistence General Duty,Redfern Travel Ltd,Large,1006862,161.94,Travel & Subsistence General Duty,Administration
Land Registry,Land Registry,11/04/2014,Commercial & Customer Strategy & Performance,Travel & Subsistence General Duty,Redfern Travel Ltd,Large,1006862,185.16,Travel & Subsistence General Duty,Administration
Land Registry,Land Registry,11/04/2014,Business Development,Travel & Subsistence General Duty,Redfern Travel Ltd,Large,1006862,166.55,Travel & Subsistence General Duty,Administration
Land Registry,Land Registry,11/04/2014,IS Service Delivery,Travel & Subsistence General Duty,Redfern Travel Ltd,Large,1006862,221.91,Travel & Subsistence General Duty,Administration
Land Registry,Land Registry,11/04/2014,Central Operations Group,Travel & Subsistence General Duty,Redfern Travel Ltd,Large,1006862,71.98,Travel & Subsistence General Duty,Administration
Land Registry,Land Registry,11/04/2014,IS Service Delivery,Travel & Subsistence General Duty,Redfern Travel Ltd,Large,1006862,151.01,Travel & Subsistence General Duty,Administration
Land Registry,Land Registry,11/04/2014,HR,Travel & Subsistence General Duty,Redfern Travel Ltd,Large,1006862,65.95,Travel & Subsistence General Duty,Administration
Land Registry,Land Registry,11/04/2014,IS Service Delivery,Travel & Subsistence General Duty,Redfern Travel Ltd,Large,1006862,179.85,Travel & Subsistence General Duty,Administration
Land Registry,Land Registry,11/04/2014,HR,Travel & Subsistence General Duty,Redfern Travel Ltd,Large,1006862,63.93,Travel & Subsistence General Duty,Administration
Land Registry,Land Registry,11/04/2014,Director of Information Systems,Travel & Subsistence General Duty,Redfern Travel Ltd,Large,1006862,6.89,Travel & Subsistence General Duty,Administration
Land Registry,Land Registry,11/04/2014,Nottingham Office,Travel & Subsistence General Duty,Redfern Travel Ltd,Large,1006862,76.23,Travel & Subsistence General Duty,Administration
Land Registry,Land Registry,11/04/2014,Corporate Legal Services,Travel & Subsistence General Duty,Redfern Travel Ltd,Large,1006862,66.41,Travel & Subsistence General Duty,Administration
Land Registry,Land Registry,11/04/2014,Business Development,Travel & Subsistence General Duty,Redfern Travel Ltd,Large,1006862,296.89,Travel & Subsistence General Duty,Administration
Land Registry,Land Registry,11/04/2014,HR,Travel & Subsistence General Duty,Redfern Travel Ltd,Large,1006862,87.08,Travel & Subsistence General Duty,Administration
Land Registry,Land Registry,11/04/2014,Central Facilities Management Team,Travel & Subsistence General Duty,Redfern Travel Ltd,Large,1006862,84.05,Travel & Subsistence General Duty,Administration
Land Registry,Land Registry,11/04/2014,Internal Solutions Group,Travel & Subsistence General Duty,Redfern Travel Ltd,Large,1006862,70.98,Travel & Subsistence General Duty,Administration
Land Registry,Land Registry,11/04/2014,Business Development,Travel & Subsistence General Duty,Redfern Travel Ltd,Large,1006862,222.72,Travel & Subsistence General Duty,Administration
Land Registry,Land Registry,11/04/2014,Internal Solutions Group,Travel & Subsistence General Duty,Redfern Travel Ltd,Large,1006862,12.98,Travel & Subsistence General Duty,Administration
Land Registry,Land Registry,11/04/2014,Commercial Director,Travel & Subsistence General Duty,Redfern Travel Ltd,Large,1006862,99,Travel & Subsistence General Duty,Administration
Land Registry,Land Registry,11/04/2014,Wales Office,Travel & Subsistence General Duty,Redfern Travel Ltd,Large,1006862,24.63,Travel & Subsistence General Duty,Administration
Land Registry,Land Registry,11/04/2014,Fylde Office,Travel & Subsistence General Duty,Redfern Travel Ltd,Large,1006862,153.29,Travel & Subsistence General Duty,Administration
Land Registry,Land Registry,11/04/2014,Independent Complaints Reviewer,Travel & Subsistence General Duty,Redfern Travel Ltd,Large,1006862,71.66,Travel & Subsistence General Duty,Administration
Land Registry,Land Registry,11/04/2014,Central Facilities Management Team,Travel & Subsistence General Duty,Redfern Travel Ltd,Large,1006862,19.26,Travel & Subsistence General Duty,Administration
Land Registry,Land Registry,11/04/2014,LR Board & Board Chair,Travel & Subsistence General Duty,Redfern Travel Ltd,Large,1006862,70.82,Travel & Subsistence General Duty,Administration
Land Registry,Land Registry,11/04/2014,Guarantee & Litigation,Travel & Subsistence General Duty,Redfern Travel Ltd,Large,1006862,31.16,Travel & Subsistence General Duty,Administration
Land Registry,Land Registry,11/04/2014,Croydon Office,Travel & Subsistence General Duty,Redfern Travel Ltd,Large,1006862,18.5,Travel & Subsistence General Duty,Administration
Land Registry,Land Registry,11/04/2014,Guarantee & Litigation,Travel & Subsistence General Duty,Redfern Travel Ltd,Large,1006862,108.55,Travel & Subsistence General Duty,Administration
Land Registry,Land Registry,11/04/2014,International Unit,Travel & Subsistence General Duty,Redfern Travel Ltd,Large,1006862,126.65,Travel & Subsistence General Duty,Administration
Land Registry,Land Registry,11/04/2014,LR Board & Board Chair,Travel & Subsistence General Duty,Redfern Travel Ltd,Large,1006862,141.64,Travel & Subsistence General Duty,Administration
Land Registry,Land Registry,11/04/2014,Director of Information Systems,Travel & Subsistence General Duty,Redfern Travel Ltd,Large,1006862,74.84,Travel & Subsistence General Duty,Administration
Land Registry,Land Registry,11/04/2014,HR,Travel & Subsistence General Duty,Redfern Travel Ltd,Large,1006862,578.96,Travel & Subsistence General Duty,Administration
Land Registry,Land Registry,11/04/2014,Central Operations Group,Travel & Subsistence General Duty,Redfern Travel Ltd,Large,1006862,88.39,Travel & Subsistence General Duty,Administration
Land Registry,Land Registry,11/04/2014,Product Development & Management,Travel & Subsistence General Duty,Redfern Travel Ltd,Large,1006862,19.75,Travel & Subsistence General Duty,Administration
Land Registry,Land Registry,11/04/2014,Central Operations Group,Travel & Subsistence General Duty,Redfern Travel Ltd,Large,1006862,101.76,Travel & Subsistence General Duty,Administration
Land Registry,Land Registry,11/04/2014,HR,Travel & Subsistence General Duty,Redfern Travel Ltd,Large,1006862,7.66,Travel & Subsistence General Duty,Administration
Land Registry,Land Registry,11/04/2014,Finance Group,Travel & Subsistence General Duty,Redfern Travel Ltd,Large,1006862,56.74,Travel & Subsistence General Duty,Administration
Land Registry,Land Registry,11/04/2014,Chief Executives Office,Travel & Subsistence General Duty,Redfern Travel Ltd,Large,1006862,70.98,Travel & Subsistence General Duty,Administration
Land Registry,Land Registry,11/04/2014,International Unit,Travel & Subsistence General Duty,Redfern Travel Ltd,Large,1006862,18.5,Travel & Subsistence General Duty,Administration
Land Registry,Land Registry,11/04/2014,HR,Travel & Subsistence General Duty,Redfern Travel Ltd,Large,1006862,170.03,Travel & Subsistence General Duty,Administration
Land Registry,Land Registry,11/04/2014,Customer Services,Travel & Subsistence General Duty,Redfern Travel Ltd,Large,1006862,108.85,Travel & Subsistence General Duty,Administration
Land Registry,Land Registry,11/04/2014,Business Development,Travel & Subsistence General Duty,Redfern Travel Ltd,Large,1006862,55.76,Travel & Subsistence General Duty,Administration
Land Registry,Land Registry,11/04/2014,Product Development & Management,Travel & Subsistence General Duty,Redfern Travel Ltd,Large,1006862,74.59,Travel & Subsistence General Duty,Administration
Land Registry,Land Registry,11/04/2014,Corporate Legal Services,Travel & Subsistence General Duty,Redfern Travel Ltd,Large,1006862,48.34,Travel & Subsistence General Duty,Administration
Land Registry,Land Registry,11/04/2014,Central Operations Group,Travel & Subsistence General Duty,Redfern Travel Ltd,Large,1006862,56.19,Travel & Subsistence General Duty,Administration
Land Registry,Land Registry,11/04/2014,Internal Solutions Group,Travel & Subsistence General Duty,Redfern Travel Ltd,Large,1006862,353.66,Travel & Subsistence General Duty,Administration
Land Registry,Land Registry,11/04/2014,Business Development,Travel & Subsistence General Duty,Redfern Travel Ltd,Large,1006862,20.15,Travel & Subsistence General Duty,Administration
Land Registry,Land Registry,11/04/2014,Central Operations Group,Travel & Subsistence General Duty,Redfern Travel Ltd,Large,1006862,81.04,Travel & Subsistence General Duty,Administration
Land Registry,Land Registry,11/04/2014,International Unit,Travel & Subsistence General Duty,Redfern Travel Ltd,Large,1006862,144.41,Travel & Subsistence General Duty,Administration
Land Registry,Land Registry,11/04/2014,LR Board & Board Chair,Travel & Subsistence General Duty,Redfern Travel Ltd,Large,1006862,70.82,Travel & Subsistence General Duty,Administration
Land Registry,Land Registry,11/04/2014,Croydon Office,Travel & Subsistence General Duty,Redfern Travel Ltd,Large,1006862,77.01,Travel & Subsistence General Duty,Administration
Land Registry,Land Registry,11/04/2014,Product Development & Management,Travel & Subsistence General Duty,Redfern Travel Ltd,Large,1006862,58.49,Travel & Subsistence General Duty,Administration
Land Registry,Land Registry,11/04/2014,HR,Travel & Subsistence General Duty,Redfern Travel Ltd,Large,1006862,70.98,Travel & Subsistence General Duty,Administration
Land Registry,Land Registry,11/04/2014,Business Continuity,Travel & Subsistence General Duty,Redfern Travel Ltd,Large,1006862,149.84,Travel & Subsistence General Duty,Administration
Land Registry,Land Registry,11/04/2014,HR,Travel & Subsistence General Duty,Redfern Travel Ltd,Large,1006862,36.54,Travel & Subsistence General Duty,Administration
Land Registry,Land Registry,11/04/2014,Central Operations Group,Travel & Subsistence General Duty,Redfern Travel Ltd,Large,1006862,100.16,Travel & Subsistence General Duty,Administration
Land Registry,Land Registry,11/04/2014,Business Development,Travel & Subsistence General Duty,Redfern Travel Ltd,Large,1006862,20.15,Travel & Subsistence General Duty,Administration
Land Registry,Land Registry,11/04/2014,LR Board & Board Chair,Travel & Subsistence General Duty,Redfern Travel Ltd,Large,1006862,70.82,Travel & Subsistence General Duty,Administration
Land Registry,Land Registry,11/04/2014,Central Operations Group,Travel & Subsistence General Duty,Redfern Travel Ltd,Large,1006862,163.53,Travel & Subsistence General Duty,Administration
Land Registry,Land Registry,11/04/2014,Internal Solutions Group,Travel & Subsistence General Duty,Redfern Travel Ltd,Large,1006862,115.38,Travel & Subsistence General Duty,Administration
Land Registry,Land Registry,11/04/2014,Durham Office,Travel & Subsistence General Duty,Redfern Travel Ltd,Large,1006862,129.04,Travel & Subsistence General Duty,Administration
Land Registry,Land Registry,11/04/2014,Corporate Legal Services,Travel & Subsistence General Duty,Redfern Travel Ltd,Large,1006862,63.66,Travel & Subsistence General Duty,Administration
Land Registry,Land Registry,11/04/2014,Central Facilities Management Team,Travel & Subsistence General Duty,Redfern Travel Ltd,Large,1006862,243.73,Travel & Subsistence General Duty,Administration
Land Registry,Land Registry,11/04/2014,Corporate Legal Services,Travel & Subsistence General Duty,Redfern Travel Ltd,Large,1006862,116.89,Travel & Subsistence General Duty,Administration
Land Registry,Land Registry,11/04/2014,LR Board & Board Chair,Travel & Subsistence General Duty,Redfern Travel Ltd,Large,1006862,70.82,Travel & Subsistence General Duty,Administration
Land Registry,Land Registry,11/04/2014,Product Development & Management,Travel & Subsistence General Duty,Redfern Travel Ltd,Large,1006862,128.07,Travel & Subsistence General Duty,Administration
Land Registry,Land Registry,11/04/2014,Employee & Management Support Manager,Travel & Subsistence General Duty,Redfern Travel Ltd,Large,1006862,60.34,Travel & Subsistence General Duty,Administration
Land Registry,Land Registry,11/04/2014,Marketing Services Team,Travel & Subsistence General Duty,Redfern Travel Ltd,Large,1006862,13.03,Travel & Subsistence General Duty,Administration
Land Registry,Land Registry,11/04/2014,Finance Group,Travel & Subsistence General Duty,Redfern Travel Ltd,Large,1006862,123.67,Travel & Subsistence General Duty,Administration
Land Registry,Land Registry,11/04/2014,Product Development & Management,Travel & Subsistence General Duty,Redfern Travel Ltd,Large,1006862,132.8,Travel & Subsistence General Duty,Administration
Land Registry,Land Registry,11/04/2014,Central Operations Group,Travel & Subsistence General Duty,Redfern Travel Ltd,Large,1006862,19.47,Travel & Subsistence General Duty,Administration
Land Registry,Land Registry,11/04/2014,Product Development & Management,Travel & Subsistence General Duty,Redfern Travel Ltd,Large,1006862,151.1,Travel & Subsistence General Duty,Administration
Land Registry,Land Registry,11/04/2014,IS Service Delivery,Travel & Subsistence General Duty,Redfern Travel Ltd,Large,1006862,1.56,Travel & Subsistence General Duty,Administration
Land Registry,Land Registry,11/04/2014,HR,Travel & Subsistence General Duty,Redfern Travel Ltd,Large,1006862,119.11,Travel & Subsistence General Duty,Administration
Land Registry,Land Registry,11/04/2014,Internal Solutions Group,Travel & Subsistence General Duty,Redfern Travel Ltd,Large,1006862,73.71,Travel & Subsistence General Duty,Administration
Land Registry,Land Registry,11/04/2014,Commercial & Customer Strategy & Performance,Travel & Subsistence General Duty,Redfern Travel Ltd,Large,1006862,155.49,Travel & Subsistence General Duty,Administration
Land Registry,Land Registry,11/04/2014,Chief Executives Office,Travel & Subsistence General Duty,Redfern Travel Ltd,Large,1006862,17.33,Travel & Subsistence General Duty,Administration
Land Registry,Land Registry,11/04/2014,HR,Travel & Subsistence General Duty,Redfern Travel Ltd,Large,1006862,228.26,Travel & Subsistence General Duty,Administration
Land Registry,Land Registry,11/04/2014,Director of Information Systems,Travel & Subsistence General Duty,Redfern Travel Ltd,Large,1006862,11.86,Travel & Subsistence General Duty,Administration
Land Registry,Land Registry,11/04/2014,Commercial Director,Travel & Subsistence General Duty,Redfern Travel Ltd,Large,1006862,20.05,Travel & Subsistence General Duty,Administration
Land Registry,Land Registry,11/04/2014,Central Facilities Management Team,Travel & Subsistence General Duty,Redfern Travel Ltd,Large,1006862,47.86,Travel & Subsistence General Duty,Administration
Land Registry,Land Registry,11/04/2014,Internal Solutions Group,Travel & Subsistence General Duty,Redfern Travel Ltd,Large,1006862,237.78,Travel & Subsistence General Duty,Administration
Land Registry,Land Registry,11/04/2014,Central Operations Group,Travel & Subsistence General Duty,Redfern Travel Ltd,Large,1006862,155.49,Travel & Subsistence General Duty,Administration
Land Registry,Land Registry,11/04/2014,Research & Data Mining,Travel & Subsistence General Duty,Redfern Travel Ltd,Large,1006862,38.78,Travel & Subsistence General Duty,Administration
Land Registry,Land Registry,11/04/2014,Business Development,Travel & Subsistence General Duty,Redfern Travel Ltd,Large,1006862,284.34,Travel & Subsistence General Duty,Administration
Land Registry,Land Registry,11/04/2014,HR,Travel & Subsistence General Duty,Redfern Travel Ltd,Large,1006862,55.77,Travel & Subsistence General Duty,Administration
Land Registry,Land Registry,11/04/2014,Commercial Director,Travel & Subsistence General Duty,Redfern Travel Ltd,Large,1006862,100.25,Travel & Subsistence General Duty,Administration
Land Registry,Land Registry,11/04/2014,International Unit,Travel & Subsistence General Duty,Redfern Travel Ltd,Large,1006862,1.56,Travel & Subsistence General Duty,Administration
Land Registry,Land Registry,11/04/2014,Business Development,Travel & Subsistence General Duty,Redfern Travel Ltd,Large,1006862,222.72,Travel & Subsistence General Duty,Administration
Land Registry,Land Registry,11/04/2014,IS Service Delivery,Travel & Subsistence General Duty,Redfern Travel Ltd,Large,1006862,-64.38,Travel & Subsistence General Duty,Administration
Land Registry,Land Registry,11/04/2014,Product Development & Management,Travel & Subsistence General Duty,Redfern Travel Ltd,Large,1006862,-70.54,Travel & Subsistence General Duty,Administration
Land Registry,Land Registry,11/04/2014,Central Operations Group,Travel & Subsistence General Duty,Redfern Travel Ltd,Large,1006862,155.49,Travel & Subsistence General Duty,Administration
Land Registry,Land Registry,11/04/2014,Commercial & Customer Strategy & Performance,Travel & Subsistence General Duty,Redfern Travel Ltd,Large,1006862,-78.46,Travel & Subsistence General Duty,Administration
Land Registry,Land Registry,11/04/2014,Strategy Team,Travel & Subsistence General Duty,Redfern Travel Ltd,Large,1006862,-75.45,Travel & Subsistence General Duty,Administration
Land Registry,Land Registry,11/04/2014,HR,Travel & Subsistence General Duty,Redfern Travel Ltd,Large,1006862,-64.38,Travel & Subsistence General Duty,Administration
Land Registry,Land Registry,11/04/2014,Internal Solutions Group,Travel & Subsistence General Duty,Redfern Travel Ltd,Large,1006862,-175.32,Travel & Subsistence General Duty,Administration
Land Registry,Land Registry,11/04/2014,Employee & Management Support Manager,Travel & Subsistence General Duty,Redfern Travel Ltd,Large,1006862,-81.82,Travel & Subsistence General Duty,Administration
Land Registry,Land Registry,11/04/2014,Dir: (Statutory) Commercial & Customer,Travel & Subsistence General Duty,Redfern Travel Ltd,Large,1006862,-39.95,Travel & Subsistence General Duty,Administration
Land Registry,Land Registry,11/04/2014,Dir: Operations,Travel & Subsistence General Duty,Redfern Travel Ltd,Large,1006862,380.37,Travel & Subsistence General Duty,Administration
Land Registry,Land Registry,11/04/2014,Dir: Finance,Travel & Subsistence General Duty,Redfern Travel Ltd,Large,1006862,435.15,Travel & Subsistence General Duty,Administration
Land Registry,Land Registry,11/04/2014,Dir: Operations,Travel & Subsistence General Duty,Redfern Travel Ltd,Large,1006862,77.01,Travel & Subsistence General Duty,Administration
Land Registry,Land Registry,11/04/2014,Dir: HR,Travel & Subsistence General Duty,Redfern Travel Ltd,Large,1006862,76.62,Travel & Subsistence General Duty,Administration
Land Registry,Land Registry,11/04/2014,Dir: Operations,Travel & Subsistence General Duty,Redfern Travel Ltd,Large,1006862,336.11,Travel & Subsistence General Duty,Administration
Land Registry,Land Registry,11/04/2014,Dir: Information Systems,Travel & Subsistence General Duty,Redfern Travel Ltd,Large,1006862,139.34,Travel & Subsistence General Duty,Administration
Land Registry,Land Registry,11/04/2014,Dir: Operations,Travel & Subsistence General Duty,Redfern Travel Ltd,Large,1006862,171.8,Travel & Subsistence General Duty,Administration
Land Registry,Land Registry,11/04/2014,Dir: (Statutory) Commercial & Customer,Travel & Subsistence General Duty,Redfern Travel Ltd,Large,1006862,156.16,Travel & Subsistence General Duty,Administration
Land Registry,Land Registry,11/04/2014,Dir: HR,Travel & Subsistence General Duty,Redfern Travel Ltd,Large,1006862,103.25,Travel & Subsistence General Duty,Administration
Land Registry,Land Registry,11/04/2014,Dir: (Statutory) Commercial & Customer,Travel & Subsistence General Duty,Redfern Travel Ltd,Large,1006862,27.46,Travel & Subsistence General Duty,Administration
Land Registry,Land Registry,11/04/2014,Dir: Operations,Travel & Subsistence General Duty,Redfern Travel Ltd,Large,1006862,215.06,Travel & Subsistence General Duty,Administration
Land Registry,Land Registry,11/04/2014,Dir: HR,Travel & Subsistence General Duty,Redfern Travel Ltd,Large,1006862,279.22,Travel & Subsistence General Duty,Administration
Land Registry,Land Registry,11/04/2014,Dir: Information Systems,Travel & Subsistence General Duty,Redfern Travel Ltd,Large,1006862,194.71,Travel & Subsistence General Duty,Administration
Land Registry,Land Registry,11/04/2014,Dir: Operations,Travel & Subsistence General Duty,Redfern Travel Ltd,Large,1006862,490.24,Travel & Subsistence General Duty,Administration
Land Registry,Land Registry,11/04/2014,Dir: (Statutory) Commercial & Customer,Travel & Subsistence General Duty,Redfern Travel Ltd,Large,1006862,86.29,Travel & Subsistence General Duty,Administration
Land Registry,Land Registry,11/04/2014,Dir: Operations,Travel & Subsistence General Duty,Redfern Travel Ltd,Large,1006862,100.28,Travel & Subsistence General Duty,Administration
Land Registry,Land Registry,11/04/2014,Dir: HR,Travel & Subsistence General Duty,Redfern Travel Ltd,Large,1006862,62.93,Travel & Subsistence General Duty,Administration
Land Registry,Land Registry,11/04/2014,Dir: Information Systems,Travel & Subsistence General Duty,Redfern Travel Ltd,Large,1006862,97.73,Travel & Subsistence General Duty,Administration
Land Registry,Land Registry,11/04/2014,Dir: HR,Travel & Subsistence General Duty,Redfern Travel Ltd,Large,1006862,80.25,Travel & Subsistence General Duty,Administration
Land Registry,Land Registry,11/04/2014,Dir: Operations,Travel & Subsistence General Duty,Redfern Travel Ltd,Large,1006862,11.65,Travel & Subsistence General Duty,Administration
Land Registry,Land Registry,11/04/2014,Dir: (Statutory) Commercial & Customer,Travel & Subsistence General Duty,Redfern Travel Ltd,Large,1006862,86.29,Travel & Subsistence General Duty,Administration
Land Registry,Land Registry,11/04/2014,Dir: Operations,Travel & Subsistence General Duty,Redfern Travel Ltd,Large,1006862,171.8,Travel & Subsistence General Duty,Administration
Land Registry,Land Registry,11/04/2014,Dir: Information Systems,Travel & Subsistence General Duty,Redfern Travel Ltd,Large,1006862,127.31,Travel & Subsistence General Duty,Administration
Land Registry,Land Registry,11/04/2014,Dir: Operations,Travel & Subsistence General Duty,Redfern Travel Ltd,Large,1006862,287.27,Travel & Subsistence General Duty,Administration
Land Registry,Land Registry,11/04/2014,Dir: HR,Travel & Subsistence General Duty,Redfern Travel Ltd,Large,1006862,23.27,Travel & Subsistence General Duty,Administration
Land Registry,Land Registry,11/04/2014,Dir: (Statutory) Commercial & Customer,Travel & Subsistence General Duty,Redfern Travel Ltd,Large,1006862,14.48,Travel & Subsistence General Duty,Administration
Land Registry,Land Registry,11/04/2014,Dir: HR,Travel & Subsistence General Duty,Redfern Travel Ltd,Large,1006862,273.62,Travel & Subsistence General Duty,Administration
Land Registry,Land Registry,11/04/2014,Dir: (Statutory) Commercial & Customer,Travel & Subsistence General Duty,Redfern Travel Ltd,Large,1006862,1.56,Travel & Subsistence General Duty,Administration
Land Registry,Land Registry,11/04/2014,Dir: Information Systems,Travel & Subsistence General Duty,Redfern Travel Ltd,Large,1006862,-137.82,Travel & Subsistence General Duty,Administration
Land Registry,Land Registry,11/04/2014,Dir: HR,Travel & Subsistence General Duty,Redfern Travel Ltd,Large,1006862,-48.58,Travel & Subsistence General Duty,Administration
Land Registry,Land Registry,14/04/2014,IS Service Delivery,Computer Equipment Maintenance,IBM United Kingdom Ltd,Large,1007197,62250,Computer Equipment Maintenance,Administration
Land Registry,Land Registry,14/04/2014,Finance Director,Employment Agency Staff Costs,Penna Plc,Large,1007203,23200,Employment Agency Staff Costs,Administration
Land Registry,Land Registry,14/04/2014,Independent Adjudicator,Independent Adjudicators's Office Costs,HM Courts & Tribunals Service,Large,1007196,704401,Independent Adjudicators's Office Costs,Administration
Land Registry,Land Registry,14/04/2014,Central Facilities Management Team,Property Maintenance,Rolfe Contracting Ltd,SME,1007205,59077.07,Property Maintenance,Administration
Land Registry,Land Registry,15/04/2014,IS Service Delivery,Computer Equipment Hire,IBM United Kingdom Ltd,Large,1007453,2945040,Computer Equipment Hire,Administration
Land Registry,Land Registry,15/04/2014,IS Service Delivery,Computer Equipment Maintenance,IBM United Kingdom Ltd,Large,1007453,0.32,Computer Equipment Maintenance,Administration
Land Registry,Land Registry,15/04/2014,IS Service Delivery,Computer Equipment Maintenance,IBM United Kingdom Ltd,Large,1007453,3820961.19,Computer Equipment Maintenance,Administration
Land Registry,Land Registry,15/04/2014,Central RFS,RFS Outsourced Services,TNT (UK) Ltd,Large,1007463,113960.88,RFS Outsourced Services,Administration
Land Registry,Land Registry,16/04/2014,IS Service Delivery,Computer Equipment Maintenance,CGI IT UK Limited,Large,1007769,69750,Computer Equipment Maintenance,Administration
Land Registry,Land Registry,16/04/2014,IS Service Delivery,Data Network Lines,Vodafone Corporate Ltd,Large,1007776,58312.33,Data Network Lines,Administration
Land Registry,Land Registry,16/04/2014,Central RFS,RFS Outsourced Services,TNT (UK) Ltd,Large,1007774,177203.81,RFS Outsourced Services,Administration
Land Registry,Land Registry,17/04/2014,Fylde Office,Electricity,Carillion Services Ltd,Large,1007964,307.81,Electricity,Administration
Land Registry,Land Registry,17/04/2014,Coventry Office,Electricity,Carillion Services Ltd,Large,1007964,422.97,Electricity,Administration
Land Registry,Land Registry,17/04/2014,Hull Office,Electricity,Carillion Services Ltd,Large,1007964,313.9,Electricity,Administration
Land Registry,Land Registry,17/04/2014,Hull Office,Electricity,Carillion Services Ltd,Large,1007964,5579.92,Electricity,Administration
Land Registry,Land Registry,17/04/2014,Fylde Office,Electricity,Carillion Services Ltd,Large,1007964,4155.47,Electricity,Administration
Land Registry,Land Registry,17/04/2014,Durham Office,Electricity,Carillion Services Ltd,Large,1007964,3983.71,Electricity,Administration
Land Registry,Land Registry,17/04/2014,Birkenhead Office,Electricity,Carillion Services Ltd,Large,1007964,4647.83,Electricity,Administration
Land Registry,Land Registry,17/04/2014,Telford Office,Electricity,Carillion Services Ltd,Large,1007964,6195.58,Electricity,Administration
Land Registry,Land Registry,17/04/2014,Nottingham Office,Electricity,Carillion Services Ltd,Large,1007964,3430.93,Electricity,Administration
Land Registry,Land Registry,17/04/2014,Leicester Office,Electricity,Carillion Services Ltd,Large,1007964,273.64,Electricity,Administration
Land Registry,Land Registry,17/04/2014,Leicester Office,Electricity,Carillion Services Ltd,Large,1007964,3628.18,Electricity,Administration
Land Registry,Land Registry,17/04/2014,Gloucester Computer Centre,Electricity,Carillion Services Ltd,Large,1007964,22411.88,Electricity,Administration
Land Registry,Land Registry,17/04/2014,Gloucester Office,Electricity,Carillion Services Ltd,Large,1007964,5024.18,Electricity,Administration
Land Registry,Land Registry,17/04/2014,Coventry Office,Electricity,Carillion Services Ltd,Large,1007964,5597.17,Electricity,Administration
Land Registry,Land Registry,17/04/2014,Wales Office,Electricity,Carillion Services Ltd,Large,1007964,252.91,Electricity,Administration
Land Registry,Land Registry,17/04/2014,Wales Office,Electricity,Carillion Services Ltd,Large,1007964,4713.37,Electricity,Administration
Land Registry,Land Registry,17/04/2014,Croydon Office,Electricity,Carillion Services Ltd,Large,1007964,6024.95,Electricity,Administration
Land Registry,Land Registry,17/04/2014,Weymouth Office,Electricity,Carillion Services Ltd,Large,1007964,3445.71,Electricity,Administration
Land Registry,Land Registry,17/04/2014,Governance & Policy,Electricity,Carillion Services Ltd,Large,1007964,15558.71,Electricity,Administration
Land Registry,Land Registry,17/04/2014,Governance & Policy,Electricity,Carillion Services Ltd,Large,1007964,12864.49,Electricity,Administration
Land Registry,Land Registry,17/04/2014,Nottingham Office,Electricity,Carillion Services Ltd,Large,1007964,6318.97,Electricity,Administration
Land Registry,Land Registry,17/04/2014,RFS15 - Plymouth Drakes Hill Court,Electricity,Carillion Services Ltd,Large,1007964,2119.88,Electricity,Administration
Land Registry,Land Registry,17/04/2014,Governance & Policy,Electricity,Carillion Services Ltd,Large,1007964,8204.47,Electricity,Administration
Land Registry,Land Registry,17/04/2014,Dir: HR,Electricity,Carillion Services Ltd,Large,1007964,1365.3,Electricity,Administration
Land Registry,Land Registry,17/04/2014,Hull Office,FF&F:Maintenance,Carillion Services Ltd,Large,1007964,183.16,FF&F:Maintenance,Administration
Land Registry,Land Registry,17/04/2014,Fylde Office,FF&F:Maintenance,Carillion Services Ltd,Large,1007964,183.16,FF&F:Maintenance,Administration
Land Registry,Land Registry,17/04/2014,Durham Office,FF&F:Maintenance,Carillion Services Ltd,Large,1007964,183.16,FF&F:Maintenance,Administration
Land Registry,Land Registry,17/04/2014,Birkenhead Office,FF&F:Maintenance,Carillion Services Ltd,Large,1007964,183.16,FF&F:Maintenance,Administration
Land Registry,Land Registry,17/04/2014,Telford Office,FF&F:Maintenance,Carillion Services Ltd,Large,1007964,183.16,FF&F:Maintenance,Administration
Land Registry,Land Registry,17/04/2014,Leicester Office,FF&F:Maintenance,Carillion Services Ltd,Large,1007964,91.58,FF&F:Maintenance,Administration
Land Registry,Land Registry,17/04/2014,Leicester Office,FF&F:Maintenance,Carillion Services Ltd,Large,1007964,183.16,FF&F:Maintenance,Administration
Land Registry,Land Registry,17/04/2014,Gloucester Computer Centre,FF&F:Maintenance,Carillion Services Ltd,Large,1007964,183.16,FF&F:Maintenance,Administration
Land Registry,Land Registry,17/04/2014,Gloucester Office,FF&F:Maintenance,Carillion Services Ltd,Large,1007964,183.16,FF&F:Maintenance,Administration
Land Registry,Land Registry,17/04/2014,Coventry Office,FF&F:Maintenance,Carillion Services Ltd,Large,1007964,183.16,FF&F:Maintenance,Administration
Land Registry,Land Registry,17/04/2014,Wales Office,FF&F:Maintenance,Carillion Services Ltd,Large,1007964,183.16,FF&F:Maintenance,Administration
Land Registry,Land Registry,17/04/2014,Wales Office,FF&F:Maintenance,Carillion Services Ltd,Large,1007964,183.16,FF&F:Maintenance,Administration
Land Registry,Land Registry,17/04/2014,Croydon Office,FF&F:Maintenance,Carillion Services Ltd,Large,1007964,183.16,FF&F:Maintenance,Administration
Land Registry,Land Registry,17/04/2014,Weymouth Office,FF&F:Maintenance,Carillion Services Ltd,Large,1007964,183.16,FF&F:Maintenance,Administration
Land Registry,Land Registry,17/04/2014,Governance & Policy,FF&F:Maintenance,Carillion Services Ltd,Large,1007964,183.16,FF&F:Maintenance,Administration
Land Registry,Land Registry,17/04/2014,Governance & Policy,FF&F:Maintenance,Carillion Services Ltd,Large,1007964,183.16,FF&F:Maintenance,Administration
Land Registry,Land Registry,17/04/2014,RFS15 - Plymouth Drakes Hill Court,FF&F:Maintenance,Carillion Services Ltd,Large,1007964,91.58,FF&F:Maintenance,Administration
Land Registry,Land Registry,17/04/2014,Governance & Policy,FF&F:Maintenance,Carillion Services Ltd,Large,1007964,183.16,FF&F:Maintenance,Administration
Land Registry,Land Registry,17/04/2014,Nottingham Office,FF&F:Maintenance,Carillion Services Ltd,Large,1007964,2454.26,FF&F:Maintenance,Administration
Land Registry,Land Registry,17/04/2014,Hull Office,FF&F:Maintenance,Carillion Services Ltd,Large,1007964,289.98,FF&F:Maintenance,Administration
Land Registry,Land Registry,17/04/2014,Fylde Office,FF&F:Maintenance,Carillion Services Ltd,Large,1007964,255.66,FF&F:Maintenance,Administration
Land Registry,Land Registry,17/04/2014,Durham Office,FF&F:Maintenance,Carillion Services Ltd,Large,1007964,1166.42,FF&F:Maintenance,Administration
Land Registry,Land Registry,17/04/2014,Telford Office,FF&F:Maintenance,Carillion Services Ltd,Large,1007964,680.58,FF&F:Maintenance,Administration
Land Registry,Land Registry,17/04/2014,Peterborough Office,FF&F:Maintenance,Carillion Services Ltd,Large,1007964,631.12,FF&F:Maintenance,Administration
Land Registry,Land Registry,17/04/2014,Leicester Office,FF&F:Maintenance,Carillion Services Ltd,Large,1007964,59.77,FF&F:Maintenance,Administration
Land Registry,Land Registry,17/04/2014,Gloucester Office,FF&F:Maintenance,Carillion Services Ltd,Large,1007964,1190.21,FF&F:Maintenance,Administration
Land Registry,Land Registry,17/04/2014,Coventry Office,FF&F:Maintenance,Carillion Services Ltd,Large,1007964,2071.52,FF&F:Maintenance,Administration
Land Registry,Land Registry,17/04/2014,Wales Office,FF&F:Maintenance,Carillion Services Ltd,Large,1007964,41.21,FF&F:Maintenance,Administration
Land Registry,Land Registry,17/04/2014,Governance & Policy,FF&F:Maintenance,Carillion Services Ltd,Large,1007964,1179.67,FF&F:Maintenance,Administration
Land Registry,Land Registry,17/04/2014,Birkenhead Office,FF&F:Removals,Carillion Services Ltd,Large,1007964,4774.98,FF&F:Removals,Administration
Land Registry,Land Registry,17/04/2014,Hull Office,FF&F:Removals,Carillion Services Ltd,Large,1007964,4903.83,FF&F:Removals,Administration
Land Registry,Land Registry,17/04/2014,Nottingham Office,FM Ext Helpdesk,Carillion Services Ltd,Large,1007964,1526.26,Facilities External Helpdesk,Administration
Land Registry,Land Registry,17/04/2014,RFS4 - Coventry,FM Ext Helpdesk,Carillion Services Ltd,Large,1007964,7.13,Facilities External Helpdesk,Administration
Land Registry,Land Registry,17/04/2014,Hull Office,FM Ext Helpdesk,Carillion Services Ltd,Large,1007964,381.87,Facilities External Helpdesk,Administration
Land Registry,Land Registry,17/04/2014,Fylde Office,FM Ext Helpdesk,Carillion Services Ltd,Large,1007964,339.19,Facilities External Helpdesk,Administration
Land Registry,Land Registry,17/04/2014,Durham Office,FM Ext Helpdesk,Carillion Services Ltd,Large,1007964,490.16,Facilities External Helpdesk,Administration
Land Registry,Land Registry,17/04/2014,Birkenhead Office,FM Ext Helpdesk,Carillion Services Ltd,Large,1007964,389.43,Facilities External Helpdesk,Administration
Land Registry,Land Registry,17/04/2014,RFS1 - Telford,FM Ext Helpdesk,Carillion Services Ltd,Large,1007964,104.4,Facilities External Helpdesk,Administration
Land Registry,Land Registry,17/04/2014,Telford Office,FM Ext Helpdesk,Carillion Services Ltd,Large,1007964,413.6,Facilities External Helpdesk,Administration
Land Registry,Land Registry,17/04/2014,Leicester Office,FM Ext Helpdesk,Carillion Services Ltd,Large,1007964,21.03,Facilities External Helpdesk,Administration
Land Registry,Land Registry,17/04/2014,Leicester Office,FM Ext Helpdesk,Carillion Services Ltd,Large,1007964,407.07,Facilities External Helpdesk,Administration
Land Registry,Land Registry,17/04/2014,Gloucester Computer Centre,FM Ext Helpdesk,Carillion Services Ltd,Large,1007964,460.58,Facilities External Helpdesk,Administration
Land Registry,Land Registry,17/04/2014,Gloucester Office,FM Ext Helpdesk,Carillion Services Ltd,Large,1007964,490.94,Facilities External Helpdesk,Administration
Land Registry,Land Registry,17/04/2014,Coventry Office,FM Ext Helpdesk,Carillion Services Ltd,Large,1007964,795.83,Facilities External Helpdesk,Administration
Land Registry,Land Registry,17/04/2014,Wales Office,FM Ext Helpdesk,Carillion Services Ltd,Large,1007964,29.18,Facilities External Helpdesk,Administration
Land Registry,Land Registry,17/04/2014,Wales Office,FM Ext Helpdesk,Carillion Services Ltd,Large,1007964,340.63,Facilities External Helpdesk,Administration
Land Registry,Land Registry,17/04/2014,Croydon Office,FM Ext Helpdesk,Carillion Services Ltd,Large,1007964,469.88,Facilities External Helpdesk,Administration
Land Registry,Land Registry,17/04/2014,Weymouth Office,FM Ext Helpdesk,Carillion Services Ltd,Large,1007964,299.59,Facilities External Helpdesk,Administration
Land Registry,Land Registry,17/04/2014,Governance & Policy,FM Ext Helpdesk,Carillion Services Ltd,Large,1007964,394.72,Facilities External Helpdesk,Administration
Land Registry,Land Registry,17/04/2014,Peterborough Office,FM Ext Helpdesk,Carillion Services Ltd,Large,1007964,500.4,Facilities External Helpdesk,Administration
Land Registry,Land Registry,17/04/2014,Governance & Policy,FM Ext Helpdesk,Carillion Services Ltd,Large,1007964,390.01,Facilities External Helpdesk,Administration
Land Registry,Land Registry,17/04/2014,RFS15 - Plymouth Drakes Hill Court,FM Ext Helpdesk,Carillion Services Ltd,Large,1007964,118.44,Facilities External Helpdesk,Administration
Land Registry,Land Registry,17/04/2014,Governance & Policy,FM Ext Helpdesk,Carillion Services Ltd,Large,1007964,469.02,Facilities External Helpdesk,Administration
Land Registry,Land Registry,17/04/2014,Nottingham Office,FM Managed Services,Carillion Services Ltd,Large,1007964,13686.86,Facilities Managed Services,Administration
Land Registry,Land Registry,17/04/2014,RFS4 - Coventry,FM Managed Services,Carillion Services Ltd,Large,1007964,13.67,Facilities Managed Services,Administration
Land Registry,Land Registry,17/04/2014,Hull Office,FM Managed Services,Carillion Services Ltd,Large,1007964,4228.24,Facilities Managed Services,Administration
Land Registry,Land Registry,17/04/2014,Fylde Office,FM Managed Services,Carillion Services Ltd,Large,1007964,6951.41,Facilities Managed Services,Administration
Land Registry,Land Registry,17/04/2014,Durham Office,FM Managed Services,Carillion Services Ltd,Large,1007964,7704.76,Facilities Managed Services,Administration
Land Registry,Land Registry,17/04/2014,Birkenhead Office,FM Managed Services,Carillion Services Ltd,Large,1007964,4828.99,Facilities Managed Services,Administration
Land Registry,Land Registry,17/04/2014,RFS1 - Telford,FM Managed Services,Carillion Services Ltd,Large,1007964,349.2,Facilities Managed Services,Administration
Land Registry,Land Registry,17/04/2014,Telford Office,FM Managed Services,Carillion Services Ltd,Large,1007964,3697.03,Facilities Managed Services,Administration
Land Registry,Land Registry,17/04/2014,Leicester Office,FM Managed Services,Carillion Services Ltd,Large,1007964,70.34,Facilities Managed Services,Administration
Land Registry,Land Registry,17/04/2014,Leicester Office,FM Managed Services,Carillion Services Ltd,Large,1007964,3675.19,Facilities Managed Services,Administration
Land Registry,Land Registry,17/04/2014,Gloucester Computer Centre,FM Managed Services,Carillion Services Ltd,Large,1007964,1867.62,Facilities Managed Services,Administration
Land Registry,Land Registry,17/04/2014,Gloucester Office,FM Managed Services,Carillion Services Ltd,Large,1007964,4198.77,Facilities Managed Services,Administration
Land Registry,Land Registry,17/04/2014,Coventry Office,FM Managed Services,Carillion Services Ltd,Large,1007964,7911.83,Facilities Managed Services,Administration
Land Registry,Land Registry,17/04/2014,Wales Office,FM Managed Services,Carillion Services Ltd,Large,1007964,412.48,Facilities Managed Services,Administration
Land Registry,Land Registry,17/04/2014,Wales Office,FM Managed Services,Carillion Services Ltd,Large,1007964,7188.41,Facilities Managed Services,Administration
Land Registry,Land Registry,17/04/2014,Croydon Office,FM Managed Services,Carillion Services Ltd,Large,1007964,8118.66,Facilities Managed Services,Administration
Land Registry,Land Registry,17/04/2014,Weymouth Office,FM Managed Services,Carillion Services Ltd,Large,1007964,3965.73,Facilities Managed Services,Administration
Land Registry,Land Registry,17/04/2014,Governance & Policy,FM Managed Services,Carillion Services Ltd,Large,1007964,2237.88,Facilities Managed Services,Administration
Land Registry,Land Registry,17/04/2014,Peterborough Office,FM Managed Services,Carillion Services Ltd,Large,1007964,4425.82,Facilities Managed Services,Administration
Land Registry,Land Registry,17/04/2014,Governance & Policy,FM Managed Services,Carillion Services Ltd,Large,1007964,2211.17,Facilities Managed Services,Administration
Land Registry,Land Registry,17/04/2014,RFS15 - Plymouth Drakes Hill Court,FM Managed Services,Carillion Services Ltd,Large,1007964,671.51,Facilities Managed Services,Administration
Land Registry,Land Registry,17/04/2014,Governance & Policy,FM Managed Services,Carillion Services Ltd,Large,1007964,6716.21,Facilities Managed Services,Administration
Land Registry,Land Registry,17/04/2014,Weymouth Office,Gas,Carillion Services Ltd,Large,1007964,195.47,Gas,Administration
Land Registry,Land Registry,17/04/2014,Hull Office,Gas,Carillion Services Ltd,Large,1007964,360.95,Gas,Administration
Land Registry,Land Registry,17/04/2014,Hull Office,Gas,Carillion Services Ltd,Large,1007964,3354.79,Gas,Administration
Land Registry,Land Registry,17/04/2014,Fylde Office,Gas,Carillion Services Ltd,Large,1007964,1780.61,Gas,Administration
Land Registry,Land Registry,17/04/2014,Durham Office,Gas,Carillion Services Ltd,Large,1007964,1929.27,Gas,Administration
Land Registry,Land Registry,17/04/2014,Birkenhead Office,Gas,Carillion Services Ltd,Large,1007964,2062.16,Gas,Administration
Land Registry,Land Registry,17/04/2014,RFS1 - Telford,Gas,Carillion Services Ltd,Large,1007964,291.3,Gas,Administration
Land Registry,Land Registry,17/04/2014,Telford Office,Gas,Carillion Services Ltd,Large,1007964,4655.77,Gas,Administration
Land Registry,Land Registry,17/04/2014,Peterborough Office,Gas,Carillion Services Ltd,Large,1007964,4658.39,Gas,Administration
Land Registry,Land Registry,17/04/2014,Nottingham Office,Gas,Carillion Services Ltd,Large,1007964,9812.33,Gas,Administration
Land Registry,Land Registry,17/04/2014,Leicester Office,Gas,Carillion Services Ltd,Large,1007964,289.15,Gas,Administration
Land Registry,Land Registry,17/04/2014,Leicester Office,Gas,Carillion Services Ltd,Large,1007964,1561.77,Gas,Administration
Land Registry,Land Registry,17/04/2014,Gloucester Computer Centre,Gas,Carillion Services Ltd,Large,1007964,627.31,Gas,Administration
Land Registry,Land Registry,17/04/2014,Gloucester Office,Gas,Carillion Services Ltd,Large,1007964,2349.52,Gas,Administration
Land Registry,Land Registry,17/04/2014,Coventry Office,Gas,Carillion Services Ltd,Large,1007964,4696.87,Gas,Administration
Land Registry,Land Registry,17/04/2014,Wales Office,Gas,Carillion Services Ltd,Large,1007964,1209.24,Gas,Administration
Land Registry,Land Registry,17/04/2014,Croydon Office,Gas,Carillion Services Ltd,Large,1007964,3620.86,Gas,Administration
Land Registry,Land Registry,17/04/2014,Weymouth Office,Gas,Carillion Services Ltd,Large,1007964,1739.25,Gas,Administration
Land Registry,Land Registry,17/04/2014,Governance & Policy,Gas,Carillion Services Ltd,Large,1007964,277.03,Gas,Administration
Land Registry,Land Registry,17/04/2014,Nottingham Office,Gas,Carillion Services Ltd,Large,1007964,582.87,Gas,Administration
Land Registry,Land Registry,17/04/2014,Governance & Policy,Gas,Carillion Services Ltd,Large,1007964,693.41,Gas,Administration
Land Registry,Land Registry,17/04/2014,RFS15 - Plymouth Drakes Hill Court,Gas,Carillion Services Ltd,Large,1007964,1521.9,Gas,Administration
Land Registry,Land Registry,17/04/2014,Governance & Policy,Gas,Carillion Services Ltd,Large,1007964,2198.91,Gas,Administration
Land Registry,Land Registry,17/04/2014,Dir: HR,Gas,Carillion Services Ltd,Large,1007964,1637.26,Gas,Administration
Land Registry,Land Registry,17/04/2014,Hull Office,Grounds Maintenance,Carillion Services Ltd,Large,1007964,667.98,Grounds Maintenance,Administration
Land Registry,Land Registry,17/04/2014,Fylde Office,Grounds Maintenance,Carillion Services Ltd,Large,1007964,1380.88,Grounds Maintenance,Administration
Land Registry,Land Registry,17/04/2014,Durham Office,Grounds Maintenance,Carillion Services Ltd,Large,1007964,956.75,Grounds Maintenance,Administration
Land Registry,Land Registry,17/04/2014,Birkenhead Office,Grounds Maintenance,Carillion Services Ltd,Large,1007964,387.21,Grounds Maintenance,Administration
Land Registry,Land Registry,17/04/2014,Telford Office,Grounds Maintenance,Carillion Services Ltd,Large,1007964,1247.04,Grounds Maintenance,Administration
Land Registry,Land Registry,17/04/2014,Leicester Office,Grounds Maintenance,Carillion Services Ltd,Large,1007964,79.86,Grounds Maintenance,Administration
Land Registry,Land Registry,17/04/2014,Leicester Office,Grounds Maintenance,Carillion Services Ltd,Large,1007964,157.79,Grounds Maintenance,Administration
Land Registry,Land Registry,17/04/2014,Gloucester Computer Centre,Grounds Maintenance,Carillion Services Ltd,Large,1007964,157.79,Grounds Maintenance,Administration
Land Registry,Land Registry,17/04/2014,Gloucester Office,Grounds Maintenance,Carillion Services Ltd,Large,1007964,674.85,Grounds Maintenance,Administration
Land Registry,Land Registry,17/04/2014,Coventry Office,Grounds Maintenance,Carillion Services Ltd,Large,1007964,791.26,Grounds Maintenance,Administration
Land Registry,Land Registry,17/04/2014,Wales Office,Grounds Maintenance,Carillion Services Ltd,Large,1007964,9.16,Grounds Maintenance,Administration
Land Registry,Land Registry,17/04/2014,Wales Office,Grounds Maintenance,Carillion Services Ltd,Large,1007964,523.75,Grounds Maintenance,Administration
Land Registry,Land Registry,17/04/2014,Croydon Office,Grounds Maintenance,Carillion Services Ltd,Large,1007964,81.23,Grounds Maintenance,Administration
Land Registry,Land Registry,17/04/2014,Weymouth Office,Grounds Maintenance,Carillion Services Ltd,Large,1007964,642.25,Grounds Maintenance,Administration
Land Registry,Land Registry,17/04/2014,Governance & Policy,Grounds Maintenance,Carillion Services Ltd,Large,1007964,151.84,Grounds Maintenance,Administration
Land Registry,Land Registry,17/04/2014,Nottingham Office,Grounds Maintenance,Carillion Services Ltd,Large,1007964,94.97,Grounds Maintenance,Administration
Land Registry,Land Registry,17/04/2014,Governance & Policy,Grounds Maintenance,Carillion Services Ltd,Large,1007964,151.84,Grounds Maintenance,Administration
Land Registry,Land Registry,17/04/2014,Governance & Policy,Grounds Maintenance,Carillion Services Ltd,Large,1007964,1636.95,Grounds Maintenance,Administration
Land Registry,Land Registry,17/04/2014,Hull Office,Grounds Maintenance,Carillion Services Ltd,Large,1007964,1118.25,Grounds Maintenance,Administration
Land Registry,Land Registry,17/04/2014,Fylde Office,Grounds Maintenance,Carillion Services Ltd,Large,1007964,18055.53,Grounds Maintenance,Administration
Land Registry,Land Registry,17/04/2014,Durham Office,Grounds Maintenance,Carillion Services Ltd,Large,1007964,1118.25,Grounds Maintenance,Administration
Land Registry,Land Registry,17/04/2014,Birkenhead Office,Grounds Maintenance,Carillion Services Ltd,Large,1007964,1118.25,Grounds Maintenance,Administration
Land Registry,Land Registry,17/04/2014,Telford Office,Grounds Maintenance,Carillion Services Ltd,Large,1007964,1690.49,Grounds Maintenance,Administration
Land Registry,Land Registry,17/04/2014,Nottingham Office,Grounds Maintenance,Carillion Services Ltd,Large,1007964,759.27,Grounds Maintenance,Administration
Land Registry,Land Registry,17/04/2014,Leicester Office,Grounds Maintenance,Carillion Services Ltd,Large,1007964,1091.63,Grounds Maintenance,Administration
Land Registry,Land Registry,17/04/2014,Gloucester Office,Grounds Maintenance,Carillion Services Ltd,Large,1007964,561.75,Grounds Maintenance,Administration
Land Registry,Land Registry,17/04/2014,Coventry Office,Grounds Maintenance,Carillion Services Ltd,Large,1007964,1118.25,Grounds Maintenance,Administration
Land Registry,Land Registry,17/04/2014,Wales Office,Grounds Maintenance,Carillion Services Ltd,Large,1007964,1118.25,Grounds Maintenance,Administration
Land Registry,Land Registry,17/04/2014,Weymouth Office,Grounds Maintenance,Carillion Services Ltd,Large,1007964,2818.38,Grounds Maintenance,Administration
Land Registry,Land Registry,17/04/2014,Governance & Policy,Grounds Maintenance,Carillion Services Ltd,Large,1007964,1123.5,Grounds Maintenance,Administration
Land Registry,Land Registry,17/04/2014,Nottingham Office,Office Cleaning Expenses,Carillion Services Ltd,Large,1007964,6832.64,Office Cleaning Expenses,Administration
Land Registry,Land Registry,17/04/2014,RFS4 - Coventry,Office Cleaning Expenses,Carillion Services Ltd,Large,1007964,248.61,Office Cleaning Expenses,Administration
Land Registry,Land Registry,17/04/2014,Hull Office,Office Cleaning Expenses,Carillion Services Ltd,Large,1007964,5322.05,Office Cleaning Expenses,Administration
Land Registry,Land Registry,17/04/2014,Fylde Office,Office Cleaning Expenses,Carillion Services Ltd,Large,1007964,5407.55,Office Cleaning Expenses,Administration
Land Registry,Land Registry,17/04/2014,Durham Office,Office Cleaning Expenses,Carillion Services Ltd,Large,1007964,8766.98,Office Cleaning Expenses,Administration
Land Registry,Land Registry,17/04/2014,RFS8 - Birkenhead,Office Cleaning Expenses,Carillion Services Ltd,Large,1007964,7.55,Office Cleaning Expenses,Administration
Land Registry,Land Registry,17/04/2014,Birkenhead Office,Office Cleaning Expenses,Carillion Services Ltd,Large,1007964,5935.66,Office Cleaning Expenses,Administration
Land Registry,Land Registry,17/04/2014,Telford Office,Office Cleaning Expenses,Carillion Services Ltd,Large,1007964,6900.99,Office Cleaning Expenses,Administration
Land Registry,Land Registry,17/04/2014,Leicester Office,Office Cleaning Expenses,Carillion Services Ltd,Large,1007964,186.86,Office Cleaning Expenses,Administration
Land Registry,Land Registry,17/04/2014,Leicester Office,Office Cleaning Expenses,Carillion Services Ltd,Large,1007964,3750.2,Office Cleaning Expenses,Administration
Land Registry,Land Registry,17/04/2014,Gloucester Computer Centre,Office Cleaning Expenses,Carillion Services Ltd,Large,1007964,10.68,Office Cleaning Expenses,Administration
Land Registry,Land Registry,17/04/2014,Gloucester Office,Office Cleaning Expenses,Carillion Services Ltd,Large,1007964,6793.25,Office Cleaning Expenses,Administration
Land Registry,Land Registry,17/04/2014,Coventry Office,Office Cleaning Expenses,Carillion Services Ltd,Large,1007964,7736.05,Office Cleaning Expenses,Administration
Land Registry,Land Registry,17/04/2014,Wales Office,Office Cleaning Expenses,Carillion Services Ltd,Large,1007964,19.29,Office Cleaning Expenses,Administration
Land Registry,Land Registry,17/04/2014,Wales Office,Office Cleaning Expenses,Carillion Services Ltd,Large,1007964,4935.35,Office Cleaning Expenses,Administration
Land Registry,Land Registry,17/04/2014,Croydon Office,Office Cleaning Expenses,Carillion Services Ltd,Large,1007964,6200.85,Office Cleaning Expenses,Administration
Land Registry,Land Registry,17/04/2014,Weymouth Office,Office Cleaning Expenses,Carillion Services Ltd,Large,1007964,3865.85,Office Cleaning Expenses,Administration
Land Registry,Land Registry,17/04/2014,Governance & Policy,Office Cleaning Expenses,Carillion Services Ltd,Large,1007964,446.7,Office Cleaning Expenses,Administration
Land Registry,Land Registry,17/04/2014,Peterborough Office,Office Cleaning Expenses,Carillion Services Ltd,Large,1007964,3150.5,Office Cleaning Expenses,Administration
Land Registry,Land Registry,17/04/2014,Governance & Policy,Office Cleaning Expenses,Carillion Services Ltd,Large,1007964,332.57,Office Cleaning Expenses,Administration
Land Registry,Land Registry,17/04/2014,Governance & Policy,Office Cleaning Expenses,Carillion Services Ltd,Large,1007964,8877.41,Office Cleaning Expenses,Administration
Land Registry,Land Registry,17/04/2014,Dir: HR,Office Cleaning Expenses,Carillion Services Ltd,Large,1007964,607.05,Office Cleaning Expenses,Administration
Land Registry,Land Registry,17/04/2014,Hull Office,Pest Control,Carillion Services Ltd,Large,1007964,50.07,Pest Control,Administration
Land Registry,Land Registry,17/04/2014,Fylde Office,Pest Control,Carillion Services Ltd,Large,1007964,39.62,Pest Control,Administration
Land Registry,Land Registry,17/04/2014,Durham Office,Pest Control,Carillion Services Ltd,Large,1007964,49.02,Pest Control,Administration
Land Registry,Land Registry,17/04/2014,Birkenhead Office,Pest Control,Carillion Services Ltd,Large,1007964,41.9,Pest Control,Administration
Land Registry,Land Registry,17/04/2014,Telford Office,Pest Control,Carillion Services Ltd,Large,1007964,44.98,Pest Control,Administration
Land Registry,Land Registry,17/04/2014,Leicester Office,Pest Control,Carillion Services Ltd,Large,1007964,16.25,Pest Control,Administration
Land Registry,Land Registry,17/04/2014,Leicester Office,Pest Control,Carillion Services Ltd,Large,1007964,39.62,Pest Control,Administration
Land Registry,Land Registry,17/04/2014,Gloucester Computer Centre,Pest Control,Carillion Services Ltd,Large,1007964,28.64,Pest Control,Administration
Land Registry,Land Registry,17/04/2014,Gloucester Office,Pest Control,Carillion Services Ltd,Large,1007964,46.74,Pest Control,Administration
Land Registry,Land Registry,17/04/2014,Coventry Office,Pest Control,Carillion Services Ltd,Large,1007964,53.41,Pest Control,Administration
Land Registry,Land Registry,17/04/2014,Wales Office,Pest Control,Carillion Services Ltd,Large,1007964,18.62,Pest Control,Administration
Land Registry,Land Registry,17/04/2014,Wales Office,Pest Control,Carillion Services Ltd,Large,1007964,40.76,Pest Control,Administration
Land Registry,Land Registry,17/04/2014,Croydon Office,Pest Control,Carillion Services Ltd,Large,1007964,40.24,Pest Control,Administration
Land Registry,Land Registry,17/04/2014,Weymouth Office,Pest Control,Carillion Services Ltd,Large,1007964,41.9,Pest Control,Administration
Land Registry,Land Registry,17/04/2014,Governance & Policy,Pest Control,Carillion Services Ltd,Large,1007964,172.01,Pest Control,Administration
Land Registry,Land Registry,17/04/2014,Peterborough Office,Pest Control,Carillion Services Ltd,Large,1007964,42.47,Pest Control,Administration
Land Registry,Land Registry,17/04/2014,Nottingham Office,Pest Control,Carillion Services Ltd,Large,1007964,139.45,Pest Control,Administration
Land Registry,Land Registry,17/04/2014,Governance & Policy,Pest Control,Carillion Services Ltd,Large,1007964,262.93,Pest Control,Administration
Land Registry,Land Registry,17/04/2014,Governance & Policy,Pest Control,Carillion Services Ltd,Large,1007964,90.04,Pest Control,Administration
Land Registry,Land Registry,17/04/2014,Peterborough Office,Pest Control,Carillion Services Ltd,Large,1007964,881.62,Pest Control,Administration
Land Registry,Land Registry,17/04/2014,Fylde Office,Pest Control,Carillion Services Ltd,Large,1007964,-33.18,Pest Control,Administration
Land Registry,Land Registry,17/04/2014,Nottingham Office,Property Maintenance,Carillion Services Ltd,Large,1007964,5413.63,Property Maintenance,Administration
Land Registry,Land Registry,17/04/2014,RFS4 - Coventry,Property Maintenance,Carillion Services Ltd,Large,1007964,55.5,Property Maintenance,Administration
Land Registry,Land Registry,17/04/2014,Hull Office,Property Maintenance,Carillion Services Ltd,Large,1007964,5646.71,Property Maintenance,Administration
Land Registry,Land Registry,17/04/2014,Hull Office,Property Maintenance,Carillion Services Ltd,Large,1007964,137.34,Property Maintenance,Administration
Land Registry,Land Registry,17/04/2014,Fylde Office,Property Maintenance,Carillion Services Ltd,Large,1007964,3435.35,Property Maintenance,Administration
Land Registry,Land Registry,17/04/2014,Fylde Office,Property Maintenance,Carillion Services Ltd,Large,1007964,163.49,Property Maintenance,Administration
Land Registry,Land Registry,17/04/2014,RFS5 - Durham Belmont,Property Maintenance,Carillion Services Ltd,Large,1007964,5211.32,Property Maintenance,Administration
Land Registry,Land Registry,17/04/2014,Durham Office,Property Maintenance,Carillion Services Ltd,Large,1007964,5537.92,Property Maintenance,Administration
Land Registry,Land Registry,17/04/2014,Durham Office,Property Maintenance,Carillion Services Ltd,Large,1007964,117.88,Property Maintenance,Administration
Land Registry,Land Registry,17/04/2014,Birkenhead Office,Property Maintenance,Carillion Services Ltd,Large,1007964,4664.4,Property Maintenance,Administration
Land Registry,Land Registry,17/04/2014,Birkenhead Office,Property Maintenance,Carillion Services Ltd,Large,1007964,150.34,Property Maintenance,Administration
Land Registry,Land Registry,17/04/2014,RFS1 - Telford,Property Maintenance,Carillion Services Ltd,Large,1007964,1704.71,Property Maintenance,Administration
Land Registry,Land Registry,17/04/2014,Telford Office,Property Maintenance,Carillion Services Ltd,Large,1007964,5436.98,Property Maintenance,Administration
Land Registry,Land Registry,17/04/2014,Telford Office,Property Maintenance,Carillion Services Ltd,Large,1007964,154.13,Property Maintenance,Administration
Land Registry,Land Registry,17/04/2014,Nottingham Office,Property Maintenance,Carillion Services Ltd,Large,1007964,20516.26,Property Maintenance,Administration
Land Registry,Land Registry,17/04/2014,Leicester Office,Property Maintenance,Carillion Services Ltd,Large,1007964,369.99,Property Maintenance,Administration
Land Registry,Land Registry,17/04/2014,Leicester Office,Property Maintenance,Carillion Services Ltd,Large,1007964,7774.97,Property Maintenance,Administration
Land Registry,Land Registry,17/04/2014,Leicester Office,Property Maintenance,Carillion Services Ltd,Large,1007964,111.13,Property Maintenance,Administration
Land Registry,Land Registry,17/04/2014,Gloucester Computer Centre,Property Maintenance,Carillion Services Ltd,Large,1007964,6968.12,Property Maintenance,Administration
Land Registry,Land Registry,17/04/2014,Gloucester Computer Centre,Property Maintenance,Carillion Services Ltd,Large,1007964,55.63,Property Maintenance,Administration
Land Registry,Land Registry,17/04/2014,Gloucester Office,Property Maintenance,Carillion Services Ltd,Large,1007964,3041.01,Property Maintenance,Administration
Land Registry,Land Registry,17/04/2014,Gloucester Office,Property Maintenance,Carillion Services Ltd,Large,1007964,111.13,Property Maintenance,Administration
Land Registry,Land Registry,17/04/2014,Coventry Office,Property Maintenance,Carillion Services Ltd,Large,1007964,10434.63,Property Maintenance,Administration
Land Registry,Land Registry,17/04/2014,Coventry Office,Property Maintenance,Carillion Services Ltd,Large,1007964,295.81,Property Maintenance,Administration
Land Registry,Land Registry,17/04/2014,Wales Office,Property Maintenance,Carillion Services Ltd,Large,1007964,757.54,Property Maintenance,Administration
Land Registry,Land Registry,17/04/2014,Wales Office,Property Maintenance,Carillion Services Ltd,Large,1007964,111.13,Property Maintenance,Administration
Land Registry,Land Registry,17/04/2014,Wales Office,Property Maintenance,Carillion Services Ltd,Large,1007964,3751.63,Property Maintenance,Administration
Land Registry,Land Registry,17/04/2014,Wales Office,Property Maintenance,Carillion Services Ltd,Large,1007964,197.23,Property Maintenance,Administration
Land Registry,Land Registry,17/04/2014,Croydon Office,Property Maintenance,Carillion Services Ltd,Large,1007964,7002.23,Property Maintenance,Administration
Land Registry,Land Registry,17/04/2014,Croydon Office,Property Maintenance,Carillion Services Ltd,Large,1007964,100.28,Property Maintenance,Administration
Land Registry,Land Registry,17/04/2014,Weymouth Office,Property Maintenance,Carillion Services Ltd,Large,1007964,2203.22,Property Maintenance,Administration
Land Registry,Land Registry,17/04/2014,Weymouth Office,Property Maintenance,Carillion Services Ltd,Large,1007964,237.19,Property Maintenance,Administration
Land Registry,Land Registry,17/04/2014,Governance & Policy,Property Maintenance,Carillion Services Ltd,Large,1007964,5153.25,Property Maintenance,Administration
Land Registry,Land Registry,17/04/2014,Governance & Policy,Property Maintenance,Carillion Services Ltd,Large,1007964,139.18,Property Maintenance,Administration
Land Registry,Land Registry,17/04/2014,Peterborough Office,Property Maintenance,Carillion Services Ltd,Large,1007964,3001.89,Property Maintenance,Administration
Land Registry,Land Registry,17/04/2014,Governance & Policy,Property Maintenance,Carillion Services Ltd,Large,1007964,4991.08,Property Maintenance,Administration
Land Registry,Land Registry,17/04/2014,Governance & Policy,Property Maintenance,Carillion Services Ltd,Large,1007964,115.83,Property Maintenance,Administration
Land Registry,Land Registry,17/04/2014,RFS15 - Plymouth Drakes Hill Court,Property Maintenance,Carillion Services Ltd,Large,1007964,1687.74,Property Maintenance,Administration
Land Registry,Land Registry,17/04/2014,RFS15 - Plymouth Drakes Hill Court,Property Maintenance,Carillion Services Ltd,Large,1007964,120.52,Property Maintenance,Administration
Land Registry,Land Registry,17/04/2014,Governance & Policy,Property Maintenance,Carillion Services Ltd,Large,1007964,5220.17,Property Maintenance,Administration
Land Registry,Land Registry,17/04/2014,Governance & Policy,Property Maintenance,Carillion Services Ltd,Large,1007964,153.71,Property Maintenance,Administration
Land Registry,Land Registry,17/04/2014,Peterborough Office,Property Maintenance,Carillion Services Ltd,Large,1007964,15684.14,Property Maintenance,Administration
Land Registry,Land Registry,17/04/2014,Nottingham Office,Property Maintenance,Carillion Services Ltd,Large,1007964,5140.37,Property Maintenance,Administration
Land Registry,Land Registry,17/04/2014,RFS4 - Coventry,Property Maintenance,Carillion Services Ltd,Large,1007964,7018.32,Property Maintenance,Administration
Land Registry,Land Registry,17/04/2014,Hull Office,Property Maintenance,Carillion Services Ltd,Large,1007964,12337.22,Property Maintenance,Administration
Land Registry,Land Registry,17/04/2014,Fylde Office,Property Maintenance,Carillion Services Ltd,Large,1007964,17756.61,Property Maintenance,Administration
Land Registry,Land Registry,17/04/2014,Durham Office,Property Maintenance,Carillion Services Ltd,Large,1007964,28946.07,Property Maintenance,Administration
Land Registry,Land Registry,17/04/2014,Birkenhead Office,Property Maintenance,Carillion Services Ltd,Large,1007964,10226.91,Property Maintenance,Administration
Land Registry,Land Registry,17/04/2014,Telford Office,Property Maintenance,Carillion Services Ltd,Large,1007964,1034.71,Property Maintenance,Administration
Land Registry,Land Registry,17/04/2014,Nottingham Office,Property Maintenance,Carillion Services Ltd,Large,1007964,8502.02,Property Maintenance,Administration
Land Registry,Land Registry,17/04/2014,Leicester Office,Property Maintenance,Carillion Services Ltd,Large,1007964,7262.1,Property Maintenance,Administration
Land Registry,Land Registry,17/04/2014,Gloucester Computer Centre,Property Maintenance,Carillion Services Ltd,Large,1007964,47228.89,Property Maintenance,Administration
Land Registry,Land Registry,17/04/2014,Gloucester Office,Property Maintenance,Carillion Services Ltd,Large,1007964,39792.12,Property Maintenance,Administration
Land Registry,Land Registry,17/04/2014,Coventry Office,Property Maintenance,Carillion Services Ltd,Large,1007964,12014.99,Property Maintenance,Administration
Land Registry,Land Registry,17/04/2014,Wales Office,Property Maintenance,Carillion Services Ltd,Large,1007964,45796.78,Property Maintenance,Administration
Land Registry,Land Registry,17/04/2014,Croydon Office,Property Maintenance,Carillion Services Ltd,Large,1007964,20696.07,Property Maintenance,Administration
Land Registry,Land Registry,17/04/2014,Weymouth Office,Property Maintenance,Carillion Services Ltd,Large,1007964,4733.73,Property Maintenance,Administration
Land Registry,Land Registry,17/04/2014,Governance & Policy,Property Maintenance,Carillion Services Ltd,Large,1007964,32571.49,Property Maintenance,Administration
Land Registry,Land Registry,17/04/2014,RFS15 - Plymouth Drakes Hill Court,Property Maintenance,Carillion Services Ltd,Large,1007964,540.48,Property Maintenance,Administration
Land Registry,Land Registry,17/04/2014,Governance & Policy,Property Maintenance,Carillion Services Ltd,Large,1007964,6310.08,Property Maintenance,Administration
Land Registry,Land Registry,17/04/2014,Gloucester Computer Centre,Property Maintenance,Carillion Services Ltd,Large,1007964,89044.88,Property Maintenance,Administration
Land Registry,Land Registry,17/04/2014,Wales Office,Property Maintenance,Carillion Services Ltd,Large,1007964,102669.6,Property Maintenance,Administration
Land Registry,Land Registry,17/04/2014,Governance & Policy,Property Maintenance,Carillion Services Ltd,Large,1007964,97109.23,Property Maintenance,Administration
Land Registry,Land Registry,17/04/2014,Dir: Finance,"Property Management; Advice, Surveys & Inspections",Carillion Services Ltd,Large,1007964,222.27,"Property Management; Advice, Surveys & Inspections",Administration
Land Registry,Land Registry,17/04/2014,Dir: HR,Property Management; Other Fees,Carillion Services Ltd,Large,1007964,1535,Property Management; Other Fees,Administration
Land Registry,Land Registry,17/04/2014,Hull Office,Security Expenses,Carillion Services Ltd,Large,1007964,3230.07,Security Expenses,Administration
Land Registry,Land Registry,17/04/2014,Fylde Office,Security Expenses,Carillion Services Ltd,Large,1007964,2599.23,Security Expenses,Administration
Land Registry,Land Registry,17/04/2014,Durham Office,Security Expenses,Carillion Services Ltd,Large,1007964,3462.65,Security Expenses,Administration
Land Registry,Land Registry,17/04/2014,Birkenhead Office,Security Expenses,Carillion Services Ltd,Large,1007964,3247.72,Security Expenses,Administration
Land Registry,Land Registry,17/04/2014,Telford Office,Security Expenses,Carillion Services Ltd,Large,1007964,2841.66,Security Expenses,Administration
Land Registry,Land Registry,17/04/2014,Leicester Office,Security Expenses,Carillion Services Ltd,Large,1007964,2735.37,Security Expenses,Administration
Land Registry,Land Registry,17/04/2014,Gloucester Computer Centre,Security Expenses,Carillion Services Ltd,Large,1007964,8308.09,Security Expenses,Administration
Land Registry,Land Registry,17/04/2014,Gloucester Office,Security Expenses,Carillion Services Ltd,Large,1007964,10547.65,Security Expenses,Administration
Land Registry,Land Registry,17/04/2014,Coventry Office,Security Expenses,Carillion Services Ltd,Large,1007964,7948.9,Security Expenses,Administration
Land Registry,Land Registry,17/04/2014,Wales Office,Security Expenses,Carillion Services Ltd,Large,1007964,2900.55,Security Expenses,Administration
Land Registry,Land Registry,17/04/2014,Croydon Office,Security Expenses,Carillion Services Ltd,Large,1007964,9395.39,Security Expenses,Administration
Land Registry,Land Registry,17/04/2014,Weymouth Office,Security Expenses,Carillion Services Ltd,Large,1007964,3124.93,Security Expenses,Administration
Land Registry,Land Registry,17/04/2014,Governance & Policy,Security Expenses,Carillion Services Ltd,Large,1007964,4193.09,Security Expenses,Administration
Land Registry,Land Registry,17/04/2014,Peterborough Office,Security Expenses,Carillion Services Ltd,Large,1007964,-3.3,Security Expenses,Administration
Land Registry,Land Registry,17/04/2014,Nottingham Office,Security Expenses,Carillion Services Ltd,Large,1007964,3415.02,Security Expenses,Administration
Land Registry,Land Registry,17/04/2014,Governance & Policy,Security Expenses,Carillion Services Ltd,Large,1007964,7811.63,Security Expenses,Administration
Land Registry,Land Registry,17/04/2014,Governance & Policy,Security Expenses,Carillion Services Ltd,Large,1007964,9611.28,Security Expenses,Administration
Land Registry,Land Registry,17/04/2014,Dir: HR,Security Expenses,Carillion Services Ltd,Large,1007964,939.73,Security Expenses,Administration
Land Registry,Land Registry,17/04/2014,Peterborough Office,Security Expenses,Carillion Services Ltd,Large,1007964,641.91,Security Expenses,Administration
Land Registry,Land Registry,17/04/2014,Nottingham Office,Security Expenses,Carillion Services Ltd,Large,1007964,1027.52,Security Expenses,Administration
Land Registry,Land Registry,17/04/2014,Hull Office,Security Expenses,Carillion Services Ltd,Large,1007964,872.88,Security Expenses,Administration
Land Registry,Land Registry,17/04/2014,Fylde Office,Security Expenses,Carillion Services Ltd,Large,1007964,324.33,Security Expenses,Administration
Land Registry,Land Registry,17/04/2014,Durham Office,Security Expenses,Carillion Services Ltd,Large,1007964,6262.2,Security Expenses,Administration
Land Registry,Land Registry,17/04/2014,Durham Office,Security Expenses,Carillion Services Ltd,Large,1007964,1050.5,Security Expenses,Administration
Land Registry,Land Registry,17/04/2014,Birkenhead Office,Security Expenses,Carillion Services Ltd,Large,1007964,1073.83,Security Expenses,Administration
Land Registry,Land Registry,17/04/2014,Telford Office,Security Expenses,Carillion Services Ltd,Large,1007964,385.2,Security Expenses,Administration
Land Registry,Land Registry,17/04/2014,Telford Office,Security Expenses,Carillion Services Ltd,Large,1007964,393.5,Security Expenses,Administration
Land Registry,Land Registry,17/04/2014,Leicester Office,Security Expenses,Carillion Services Ltd,Large,1007964,551.86,Security Expenses,Administration
Land Registry,Land Registry,17/04/2014,Gloucester Office,Security Expenses,Carillion Services Ltd,Large,1007964,607.14,Security Expenses,Administration
Land Registry,Land Registry,17/04/2014,Coventry Office,Security Expenses,Carillion Services Ltd,Large,1007964,625.33,Security Expenses,Administration
Land Registry,Land Registry,17/04/2014,Wales Office,Security Expenses,Carillion Services Ltd,Large,1007964,3195.27,Security Expenses,Administration
Land Registry,Land Registry,17/04/2014,Wales Office,Security Expenses,Carillion Services Ltd,Large,1007964,1216.12,Security Expenses,Administration
Land Registry,Land Registry,17/04/2014,Croydon Office,Security Expenses,Carillion Services Ltd,Large,1007964,737.46,Security Expenses,Administration
Land Registry,Land Registry,17/04/2014,Weymouth Office,Security Expenses,Carillion Services Ltd,Large,1007964,1097.71,Security Expenses,Administration
Land Registry,Land Registry,17/04/2014,RFS15 - Plymouth Drakes Hill Court,Security Expenses,Carillion Services Ltd,Large,1007964,20836.3,Security Expenses,Administration
Land Registry,Land Registry,17/04/2014,Governance & Policy,Security Expenses,Carillion Services Ltd,Large,1007964,3590.11,Security Expenses,Administration
Land Registry,Land Registry,17/04/2014,Governance & Policy,Security Expenses,Carillion Services Ltd,Large,1007964,4065.4,Security Expenses,Administration
Land Registry,Land Registry,17/04/2014,Hull Office,Vending Machine Consumables & Repairs,Carillion Services Ltd,Large,1007964,364.03,Vending Machine Consumables & Repairs,Administration
Land Registry,Land Registry,17/04/2014,Fylde Office,Vending Machine Consumables & Repairs,Carillion Services Ltd,Large,1007964,219.77,Vending Machine Consumables & Repairs,Administration
Land Registry,Land Registry,17/04/2014,RFS8 - Birkenhead,Vending Machine Consumables & Repairs,Carillion Services Ltd,Large,1007964,54.87,Vending Machine Consumables & Repairs,Administration
Land Registry,Land Registry,17/04/2014,Birkenhead Office,Vending Machine Consumables & Repairs,Carillion Services Ltd,Large,1007964,740.63,Vending Machine Consumables & Repairs,Administration
Land Registry,Land Registry,17/04/2014,Telford Office,Vending Machine Consumables & Repairs,Carillion Services Ltd,Large,1007964,286.41,Vending Machine Consumables & Repairs,Administration
Land Registry,Land Registry,17/04/2014,Leicester Office,Vending Machine Consumables & Repairs,Carillion Services Ltd,Large,1007964,158.47,Vending Machine Consumables & Repairs,Administration
Land Registry,Land Registry,17/04/2014,Gloucester Computer Centre,Vending Machine Consumables & Repairs,Carillion Services Ltd,Large,1007964,19.4,Vending Machine Consumables & Repairs,Administration
Land Registry,Land Registry,17/04/2014,Gloucester Office,Vending Machine Consumables & Repairs,Carillion Services Ltd,Large,1007964,733.09,Vending Machine Consumables & Repairs,Administration
Land Registry,Land Registry,17/04/2014,Coventry Office,Vending Machine Consumables & Repairs,Carillion Services Ltd,Large,1007964,223.11,Vending Machine Consumables & Repairs,Administration
Land Registry,Land Registry,17/04/2014,Wales Office,Vending Machine Consumables & Repairs,Carillion Services Ltd,Large,1007964,202.29,Vending Machine Consumables & Repairs,Administration
Land Registry,Land Registry,17/04/2014,Croydon Office,Vending Machine Consumables & Repairs,Carillion Services Ltd,Large,1007964,190,Vending Machine Consumables & Repairs,Administration
Land Registry,Land Registry,17/04/2014,Weymouth Office,Vending Machine Consumables & Repairs,Carillion Services Ltd,Large,1007964,120.66,Vending Machine Consumables & Repairs,Administration
Land Registry,Land Registry,17/04/2014,Peterborough Office,Vending Machine Consumables & Repairs,Carillion Services Ltd,Large,1007964,148.5,Vending Machine Consumables & Repairs,Administration
Land Registry,Land Registry,17/04/2014,Nottingham Office,Vending Machine Consumables & Repairs,Carillion Services Ltd,Large,1007964,135.82,Vending Machine Consumables & Repairs,Administration
Land Registry,Land Registry,17/04/2014,Governance & Policy,Vending Machine Consumables & Repairs,Carillion Services Ltd,Large,1007964,20.92,Vending Machine Consumables & Repairs,Administration
Land Registry,Land Registry,17/04/2014,Hull Office,Waste Disposal,Carillion Services Ltd,Large,1007964,96.02,Waste Disposal,Administration
Land Registry,Land Registry,17/04/2014,Fylde Office,Waste Disposal,Carillion Services Ltd,Large,1007964,76.51,Waste Disposal,Administration
Land Registry,Land Registry,17/04/2014,Durham Office,Waste Disposal,Carillion Services Ltd,Large,1007964,252.32,Waste Disposal,Administration
Land Registry,Land Registry,17/04/2014,Birkenhead Office,Waste Disposal,Carillion Services Ltd,Large,1007964,434.75,Waste Disposal,Administration
Land Registry,Land Registry,17/04/2014,RFS1 - Telford,Waste Disposal,Carillion Services Ltd,Large,1007964,-87.44,Waste Disposal,Administration
Land Registry,Land Registry,17/04/2014,Telford Office,Waste Disposal,Carillion Services Ltd,Large,1007964,279.53,Waste Disposal,Administration
Land Registry,Land Registry,17/04/2014,Leicester Office,Waste Disposal,Carillion Services Ltd,Large,1007964,228.91,Waste Disposal,Administration
Land Registry,Land Registry,17/04/2014,Gloucester Computer Centre,Waste Disposal,Carillion Services Ltd,Large,1007964,63.97,Waste Disposal,Administration
Land Registry,Land Registry,17/04/2014,Gloucester Office,Waste Disposal,Carillion Services Ltd,Large,1007964,160.68,Waste Disposal,Administration
Land Registry,Land Registry,17/04/2014,Coventry Office,Waste Disposal,Carillion Services Ltd,Large,1007964,240.47,Waste Disposal,Administration
Land Registry,Land Registry,17/04/2014,Wales Office,Waste Disposal,Carillion Services Ltd,Large,1007964,358.35,Waste Disposal,Administration
Land Registry,Land Registry,17/04/2014,Croydon Office,Waste Disposal,Carillion Services Ltd,Large,1007964,167.7,Waste Disposal,Administration
Land Registry,Land Registry,17/04/2014,Weymouth Office,Waste Disposal,Carillion Services Ltd,Large,1007964,152.68,Waste Disposal,Administration
Land Registry,Land Registry,17/04/2014,Governance & Policy,Waste Disposal,Carillion Services Ltd,Large,1007964,220.16,Waste Disposal,Administration
Land Registry,Land Registry,17/04/2014,Nottingham Office,Waste Disposal,Carillion Services Ltd,Large,1007964,216.05,Waste Disposal,Administration
Land Registry,Land Registry,17/04/2014,Governance & Policy,Waste Disposal,Carillion Services Ltd,Large,1007964,124.26,Waste Disposal,Administration
Land Registry,Land Registry,17/04/2014,RFS15 - Plymouth Drakes Hill Court,Waste Disposal,Carillion Services Ltd,Large,1007964,14.99,Waste Disposal,Administration
Land Registry,Land Registry,17/04/2014,Governance & Policy,Waste Disposal,Carillion Services Ltd,Large,1007964,1102.54,Waste Disposal,Administration
Land Registry,Land Registry,17/04/2014,Dir: HR,Waste Disposal,Carillion Services Ltd,Large,1007964,41.71,Waste Disposal,Administration
Land Registry,Land Registry,17/04/2014,Hull Office,Waste Disposal,Carillion Services Ltd,Large,1007964,618.52,Waste Disposal,Administration
Land Registry,Land Registry,17/04/2014,Leicester Office,Waste Disposal,Carillion Services Ltd,Large,1007964,384.5,Waste Disposal,Administration
Land Registry,Land Registry,17/04/2014,Coventry Office,Waste Disposal,Carillion Services Ltd,Large,1007964,565.44,Waste Disposal,Administration
Land Registry,Land Registry,17/04/2014,Wales Office,Waste Disposal,Carillion Services Ltd,Large,1007964,238.65,Waste Disposal,Administration
Land Registry,Land Registry,17/04/2014,Weymouth Office,Waste Disposal,Carillion Services Ltd,Large,1007964,69.84,Waste Disposal,Administration
Land Registry,Land Registry,17/04/2014,Hull Office,Water,Carillion Services Ltd,Large,1007964,358.52,Water,Administration
Land Registry,Land Registry,17/04/2014,Durham Office,Water,Carillion Services Ltd,Large,1007964,3410.06,Water,Administration
Land Registry,Land Registry,17/04/2014,Nottingham Office,Water,Carillion Services Ltd,Large,1007964,17887.77,Water,Administration
Land Registry,Land Registry,17/04/2014,Leicester Office,Water,Carillion Services Ltd,Large,1007964,1781.78,Water,Administration
Land Registry,Land Registry,17/04/2014,Gloucester Office,Water,Carillion Services Ltd,Large,1007964,904.23,Water,Administration
Land Registry,Land Registry,17/04/2014,Weymouth Office,Water,Carillion Services Ltd,Large,1007964,3743.84,Water,Administration
Land Registry,Land Registry,17/04/2014,Governance & Policy,Water,Carillion Services Ltd,Large,1007964,262.56,Water,Administration
Land Registry,Land Registry,17/04/2014,RFS15 - Plymouth Drakes Hill Court,Water,Carillion Services Ltd,Large,1007964,106.36,Water,Administration
Land Registry,Land Registry,22/04/2014,IS Service Delivery,Computer Equipment Maintenance,CGI IT UK Limited,Large,1008090,53550,Computer Equipment Maintenance,Administration
Land Registry,Land Registry,22/04/2014,Central Facilities Management Team,Transport Hire of Cars and Vans,Enterprise Rent-A-Car (UK) Ltd,Large,1008092,41219.81,Transport Hire of Cars and Vans,Administration
Land Registry,Land Registry,22/04/2014,HR,Travel & Subsistence General Duty,Redfern Travel Ltd,Large,1008103,80.03,Travel & Subsistence General Duty,Administration
Land Registry,Land Registry,22/04/2014,IS Service Delivery,Travel & Subsistence General Duty,Redfern Travel Ltd,Large,1008103,146.43,Travel & Subsistence General Duty,Administration
Land Registry,Land Registry,22/04/2014,Commercial & Customer Strategy & Performance,Travel & Subsistence General Duty,Redfern Travel Ltd,Large,1008103,64.36,Travel & Subsistence General Duty,Administration
Land Registry,Land Registry,22/04/2014,HR,Travel & Subsistence General Duty,Redfern Travel Ltd,Large,1008103,81.79,Travel & Subsistence General Duty,Administration
Land Registry,Land Registry,22/04/2014,Telford Office,Travel & Subsistence General Duty,Redfern Travel Ltd,Large,1008103,54.13,Travel & Subsistence General Duty,Administration
Land Registry,Land Registry,22/04/2014,Central Operations Group,Travel & Subsistence General Duty,Redfern Travel Ltd,Large,1008103,81.57,Travel & Subsistence General Duty,Administration
Land Registry,Land Registry,22/04/2014,LR Board & Board Chair,Travel & Subsistence General Duty,Redfern Travel Ltd,Large,1008103,70.82,Travel & Subsistence General Duty,Administration
Land Registry,Land Registry,22/04/2014,HR,Travel & Subsistence General Duty,Redfern Travel Ltd,Large,1008103,112.37,Travel & Subsistence General Duty,Administration
Land Registry,Land Registry,22/04/2014,Corporate Legal Services,Travel & Subsistence General Duty,Redfern Travel Ltd,Large,1008103,116.95,Travel & Subsistence General Duty,Administration
Land Registry,Land Registry,22/04/2014,Internal Audit,Travel & Subsistence General Duty,Redfern Travel Ltd,Large,1008103,120.97,Travel & Subsistence General Duty,Administration
Land Registry,Land Registry,22/04/2014,HR,Travel & Subsistence General Duty,Redfern Travel Ltd,Large,1008103,63.17,Travel & Subsistence General Duty,Administration
Land Registry,Land Registry,22/04/2014,Internal Audit,Travel & Subsistence General Duty,Redfern Travel Ltd,Large,1008103,28.76,Travel & Subsistence General Duty,Administration
Land Registry,Land Registry,22/04/2014,Research & Data Mining,Travel & Subsistence General Duty,Redfern Travel Ltd,Large,1008103,32.44,Travel & Subsistence General Duty,Administration
Land Registry,Land Registry,22/04/2014,HR,Travel & Subsistence General Duty,Redfern Travel Ltd,Large,1008103,82.91,Travel & Subsistence General Duty,Administration
Land Registry,Land Registry,22/04/2014,Employee & Management Support Manager,Travel & Subsistence General Duty,Redfern Travel Ltd,Large,1008103,268.71,Travel & Subsistence General Duty,Administration
Land Registry,Land Registry,22/04/2014,Corporate Legal Services,Travel & Subsistence General Duty,Redfern Travel Ltd,Large,1008103,116.95,Travel & Subsistence General Duty,Administration
Land Registry,Land Registry,22/04/2014,Research & Data Mining,Travel & Subsistence General Duty,Redfern Travel Ltd,Large,1008103,173.68,Travel & Subsistence General Duty,Administration
Land Registry,Land Registry,22/04/2014,Central Operations Group,Travel & Subsistence General Duty,Redfern Travel Ltd,Large,1008103,120.48,Travel & Subsistence General Duty,Administration
Land Registry,Land Registry,22/04/2014,Fylde Office,Travel & Subsistence General Duty,Redfern Travel Ltd,Large,1008103,77.01,Travel & Subsistence General Duty,Administration
Land Registry,Land Registry,22/04/2014,Research & Data Mining,Travel & Subsistence General Duty,Redfern Travel Ltd,Large,1008103,19.75,Travel & Subsistence General Duty,Administration
Land Registry,Land Registry,22/04/2014,Finance Group,Travel & Subsistence General Duty,Redfern Travel Ltd,Large,1008103,78.54,Travel & Subsistence General Duty,Administration
Land Registry,Land Registry,22/04/2014,Business Development,Travel & Subsistence General Duty,Redfern Travel Ltd,Large,1008103,143.68,Travel & Subsistence General Duty,Administration
Land Registry,Land Registry,22/04/2014,Commercial & Customer Strategy & Performance,Travel & Subsistence General Duty,Redfern Travel Ltd,Large,1008103,177.55,Travel & Subsistence General Duty,Administration
Land Registry,Land Registry,22/04/2014,Strategy Team,Travel & Subsistence General Duty,Redfern Travel Ltd,Large,1008103,70.98,Travel & Subsistence General Duty,Administration
Land Registry,Land Registry,22/04/2014,Commercial & Customer Strategy & Performance,Travel & Subsistence General Duty,Redfern Travel Ltd,Large,1008103,12.45,Travel & Subsistence General Duty,Administration
Land Registry,Land Registry,22/04/2014,Corp Procurement,Travel & Subsistence General Duty,Redfern Travel Ltd,Large,1008103,39.24,Travel & Subsistence General Duty,Administration
Land Registry,Land Registry,22/04/2014,Corporate Legal Services,Travel & Subsistence General Duty,Redfern Travel Ltd,Large,1008103,48.34,Travel & Subsistence General Duty,Administration
Land Registry,Land Registry,22/04/2014,Wales Office,Travel & Subsistence General Duty,Redfern Travel Ltd,Large,1008103,256.88,Travel & Subsistence General Duty,Administration
Land Registry,Land Registry,22/04/2014,Property Asset Management Group,Travel & Subsistence General Duty,Redfern Travel Ltd,Large,1008103,74.69,Travel & Subsistence General Duty,Administration
Land Registry,Land Registry,22/04/2014,Finance Group,Travel & Subsistence General Duty,Redfern Travel Ltd,Large,1008103,62.6,Travel & Subsistence General Duty,Administration
Land Registry,Land Registry,22/04/2014,International Unit,Travel & Subsistence General Duty,Redfern Travel Ltd,Large,1008103,1.56,Travel & Subsistence General Duty,Administration
Land Registry,Land Registry,22/04/2014,Strategy Team,Travel & Subsistence General Duty,Redfern Travel Ltd,Large,1008103,70.98,Travel & Subsistence General Duty,Administration
Land Registry,Land Registry,22/04/2014,HR,Travel & Subsistence General Duty,Redfern Travel Ltd,Large,1008103,62.59,Travel & Subsistence General Duty,Administration
Land Registry,Land Registry,22/04/2014,International Unit,Travel & Subsistence General Duty,Redfern Travel Ltd,Large,1008103,1.56,Travel & Subsistence General Duty,Administration
Land Registry,Land Registry,22/04/2014,Durham Office,Travel & Subsistence General Duty,Redfern Travel Ltd,Large,1008103,147.79,Travel & Subsistence General Duty,Administration
Land Registry,Land Registry,22/04/2014,HR,Travel & Subsistence General Duty,Redfern Travel Ltd,Large,1008103,120.56,Travel & Subsistence General Duty,Administration
Land Registry,Land Registry,22/04/2014,Central Operations Group,Travel & Subsistence General Duty,Redfern Travel Ltd,Large,1008103,54.88,Travel & Subsistence General Duty,Administration
Land Registry,Land Registry,22/04/2014,Internal Solutions Group,Travel & Subsistence General Duty,Redfern Travel Ltd,Large,1008103,367.46,Travel & Subsistence General Duty,Administration
Land Registry,Land Registry,22/04/2014,Business Continuity,Travel & Subsistence General Duty,Redfern Travel Ltd,Large,1008103,84.31,Travel & Subsistence General Duty,Administration
Land Registry,Land Registry,22/04/2014,Internal Solutions Group,Travel & Subsistence General Duty,Redfern Travel Ltd,Large,1008103,139.61,Travel & Subsistence General Duty,Administration
Land Registry,Land Registry,22/04/2014,Customer Services,Travel & Subsistence General Duty,Redfern Travel Ltd,Large,1008103,142.42,Travel & Subsistence General Duty,Administration
Land Registry,Land Registry,22/04/2014,Central Facilities Management Team,Travel & Subsistence General Duty,Redfern Travel Ltd,Large,1008103,116.08,Travel & Subsistence General Duty,Administration
Land Registry,Land Registry,22/04/2014,Central Operations Group,Travel & Subsistence General Duty,Redfern Travel Ltd,Large,1008103,53.49,Travel & Subsistence General Duty,Administration
Land Registry,Land Registry,22/04/2014,Durham Office,Travel & Subsistence General Duty,Redfern Travel Ltd,Large,1008103,106.98,Travel & Subsistence General Duty,Administration
Land Registry,Land Registry,22/04/2014,Central Operations Group,Travel & Subsistence General Duty,Redfern Travel Ltd,Large,1008103,82.91,Travel & Subsistence General Duty,Administration
Land Registry,Land Registry,22/04/2014,Corporate Legal Services,Travel & Subsistence General Duty,Redfern Travel Ltd,Large,1008103,51.67,Travel & Subsistence General Duty,Administration
Land Registry,Land Registry,22/04/2014,IS Service Delivery,Travel & Subsistence General Duty,Redfern Travel Ltd,Large,1008103,130.33,Travel & Subsistence General Duty,Administration
Land Registry,Land Registry,22/04/2014,Corporate Legal Services,Travel & Subsistence General Duty,Redfern Travel Ltd,Large,1008103,26.01,Travel & Subsistence General Duty,Administration
Land Registry,Land Registry,22/04/2014,Central Operations Group,Travel & Subsistence General Duty,Redfern Travel Ltd,Large,1008103,169.05,Travel & Subsistence General Duty,Administration
Land Registry,Land Registry,22/04/2014,HR,Travel & Subsistence General Duty,Redfern Travel Ltd,Large,1008103,92.35,Travel & Subsistence General Duty,Administration
Land Registry,Land Registry,22/04/2014,Central Operations Group,Travel & Subsistence General Duty,Redfern Travel Ltd,Large,1008103,80.03,Travel & Subsistence General Duty,Administration
Land Registry,Land Registry,22/04/2014,Internal Solutions Group,Travel & Subsistence General Duty,Redfern Travel Ltd,Large,1008103,227.85,Travel & Subsistence General Duty,Administration
Land Registry,Land Registry,22/04/2014,HR,Travel & Subsistence General Duty,Redfern Travel Ltd,Large,1008103,71.98,Travel & Subsistence General Duty,Administration
Land Registry,Land Registry,22/04/2014,Central Operations Group,Travel & Subsistence General Duty,Redfern Travel Ltd,Large,1008103,92.35,Travel & Subsistence General Duty,Administration
Land Registry,Land Registry,22/04/2014,Corp Procurement,Travel & Subsistence General Duty,Redfern Travel Ltd,Large,1008103,66.67,Travel & Subsistence General Duty,Administration
Land Registry,Land Registry,22/04/2014,Internal Solutions Group,Travel & Subsistence General Duty,Redfern Travel Ltd,Large,1008103,227.85,Travel & Subsistence General Duty,Administration
Land Registry,Land Registry,22/04/2014,HR,Travel & Subsistence General Duty,Redfern Travel Ltd,Large,1008103,183.81,Travel & Subsistence General Duty,Administration
Land Registry,Land Registry,22/04/2014,IS Service Delivery,Travel & Subsistence General Duty,Redfern Travel Ltd,Large,1008103,195.47,Travel & Subsistence General Duty,Administration
Land Registry,Land Registry,22/04/2014,Wales Office,Travel & Subsistence General Duty,Redfern Travel Ltd,Large,1008103,256.88,Travel & Subsistence General Duty,Administration
Land Registry,Land Registry,22/04/2014,LR Sports Council,Travel & Subsistence General Duty,Redfern Travel Ltd,Large,1008103,83.69,Travel & Subsistence General Duty,Administration
Land Registry,Land Registry,22/04/2014,Strategy Team,Travel & Subsistence General Duty,Redfern Travel Ltd,Large,1008103,14.48,Travel & Subsistence General Duty,Administration
Land Registry,Land Registry,22/04/2014,Internal Solutions Group,Travel & Subsistence General Duty,Redfern Travel Ltd,Large,1008103,135.59,Travel & Subsistence General Duty,Administration
Land Registry,Land Registry,22/04/2014,Property Asset Management Group,Travel & Subsistence General Duty,Redfern Travel Ltd,Large,1008103,91.57,Travel & Subsistence General Duty,Administration
Land Registry,Land Registry,22/04/2014,LR Sports Council,Travel & Subsistence General Duty,Redfern Travel Ltd,Large,1008103,109.51,Travel & Subsistence General Duty,Administration
Land Registry,Land Registry,22/04/2014,Nottingham Office,Travel & Subsistence General Duty,Redfern Travel Ltd,Large,1008103,13.22,Travel & Subsistence General Duty,Administration
Land Registry,Land Registry,22/04/2014,Finance Group,Travel & Subsistence General Duty,Redfern Travel Ltd,Large,1008103,71.98,Travel & Subsistence General Duty,Administration
Land Registry,Land Registry,22/04/2014,Projects and Programme Centre,Travel & Subsistence General Duty,Redfern Travel Ltd,Large,1008103,85.06,Travel & Subsistence General Duty,Administration
Land Registry,Land Registry,22/04/2014,Internal Solutions Group,Travel & Subsistence General Duty,Redfern Travel Ltd,Large,1008103,48.85,Travel & Subsistence General Duty,Administration
Land Registry,Land Registry,22/04/2014,Governance & Policy,Travel & Subsistence General Duty,Redfern Travel Ltd,Large,1008103,71.98,Travel & Subsistence General Duty,Administration
Land Registry,Land Registry,22/04/2014,Central Operations Group,Travel & Subsistence General Duty,Redfern Travel Ltd,Large,1008103,206.13,Travel & Subsistence General Duty,Administration
Land Registry,Land Registry,22/04/2014,Strategy Team,Travel & Subsistence General Duty,Redfern Travel Ltd,Large,1008103,92.1,Travel & Subsistence General Duty,Administration
Land Registry,Land Registry,22/04/2014,Corporate Legal Services,Travel & Subsistence General Duty,Redfern Travel Ltd,Large,1008103,76.01,Travel & Subsistence General Duty,Administration
Land Registry,Land Registry,22/04/2014,Chief Executives Office,Travel & Subsistence General Duty,Redfern Travel Ltd,Large,1008103,111.97,Travel & Subsistence General Duty,Administration
Land Registry,Land Registry,22/04/2014,Internal Solutions Group,Travel & Subsistence General Duty,Redfern Travel Ltd,Large,1008103,72.99,Travel & Subsistence General Duty,Administration
Land Registry,Land Registry,22/04/2014,Coventry Office,Travel & Subsistence General Duty,Redfern Travel Ltd,Large,1008103,72.2,Travel & Subsistence General Duty,Administration
Land Registry,Land Registry,22/04/2014,Business Development,Travel & Subsistence General Duty,Redfern Travel Ltd,Large,1008103,70.98,Travel & Subsistence General Duty,Administration
Land Registry,Land Registry,22/04/2014,Guarantee & Litigation,Travel & Subsistence General Duty,Redfern Travel Ltd,Large,1008103,71.98,Travel & Subsistence General Duty,Administration
Land Registry,Land Registry,22/04/2014,Coventry Office,Travel & Subsistence General Duty,Redfern Travel Ltd,Large,1008103,72.2,Travel & Subsistence General Duty,Administration
Land Registry,Land Registry,22/04/2014,Internal Solutions Group,Travel & Subsistence General Duty,Redfern Travel Ltd,Large,1008103,72.99,Travel & Subsistence General Duty,Administration
Land Registry,Land Registry,22/04/2014,Business Continuity,Travel & Subsistence General Duty,Redfern Travel Ltd,Large,1008103,76.01,Travel & Subsistence General Duty,Administration
Land Registry,Land Registry,22/04/2014,Corp Procurement,Travel & Subsistence General Duty,Redfern Travel Ltd,Large,1008103,65.95,Travel & Subsistence General Duty,Administration
Land Registry,Land Registry,22/04/2014,Central Facilities Management Team,Travel & Subsistence General Duty,Redfern Travel Ltd,Large,1008103,104.95,Travel & Subsistence General Duty,Administration
Land Registry,Land Registry,22/04/2014,Chief Executives Office,Travel & Subsistence General Duty,Redfern Travel Ltd,Large,1008103,134.41,Travel & Subsistence General Duty,Administration
Land Registry,Land Registry,22/04/2014,Central Operations Group,Travel & Subsistence General Duty,Redfern Travel Ltd,Large,1008103,7.66,Travel & Subsistence General Duty,Administration
Land Registry,Land Registry,22/04/2014,Product Development & Management,Travel & Subsistence General Duty,Redfern Travel Ltd,Large,1008103,178.62,Travel & Subsistence General Duty,Administration
Land Registry,Land Registry,22/04/2014,Central Operations Group,Travel & Subsistence General Duty,Redfern Travel Ltd,Large,1008103,110.71,Travel & Subsistence General Duty,Administration
Land Registry,Land Registry,22/04/2014,HR,Travel & Subsistence General Duty,Redfern Travel Ltd,Large,1008103,288.1,Travel & Subsistence General Duty,Administration
Land Registry,Land Registry,22/04/2014,IS Service Delivery,Travel & Subsistence General Duty,Redfern Travel Ltd,Large,1008103,1.56,Travel & Subsistence General Duty,Administration
Land Registry,Land Registry,22/04/2014,Chief Executives Office,Travel & Subsistence General Duty,Redfern Travel Ltd,Large,1008103,86.32,Travel & Subsistence General Duty,Administration
Land Registry,Land Registry,22/04/2014,HR,Travel & Subsistence General Duty,Redfern Travel Ltd,Large,1008103,71.98,Travel & Subsistence General Duty,Administration
Land Registry,Land Registry,22/04/2014,Director of Information Systems,Travel & Subsistence General Duty,Redfern Travel Ltd,Large,1008103,259.33,Travel & Subsistence General Duty,Administration
Land Registry,Land Registry,22/04/2014,Guarantee & Litigation,Travel & Subsistence General Duty,Redfern Travel Ltd,Large,1008103,66.95,Travel & Subsistence General Duty,Administration
Land Registry,Land Registry,22/04/2014,HR,Travel & Subsistence General Duty,Redfern Travel Ltd,Large,1008103,71.2,Travel & Subsistence General Duty,Administration
Land Registry,Land Registry,22/04/2014,Commercial & Customer Strategy & Performance,Travel & Subsistence General Duty,Redfern Travel Ltd,Large,1008103,140.47,Travel & Subsistence General Duty,Administration
Land Registry,Land Registry,22/04/2014,Property Asset Management Group,Travel & Subsistence General Duty,Redfern Travel Ltd,Large,1008103,90.99,Travel & Subsistence General Duty,Administration
Land Registry,Land Registry,22/04/2014,Product Development & Management,Travel & Subsistence General Duty,Redfern Travel Ltd,Large,1008103,1.56,Travel & Subsistence General Duty,Administration
Land Registry,Land Registry,22/04/2014,Registration Legal Services Group,Travel & Subsistence General Duty,Redfern Travel Ltd,Large,1008103,166.77,Travel & Subsistence General Duty,Administration
Land Registry,Land Registry,22/04/2014,Governance & Policy,Travel & Subsistence General Duty,Redfern Travel Ltd,Large,1008103,118.31,Travel & Subsistence General Duty,Administration
Land Registry,Land Registry,22/04/2014,Internal Audit,Travel & Subsistence General Duty,Redfern Travel Ltd,Large,1008103,56.7,Travel & Subsistence General Duty,Administration
Land Registry,Land Registry,22/04/2014,Product Development & Management,Travel & Subsistence General Duty,Redfern Travel Ltd,Large,1008103,1.56,Travel & Subsistence General Duty,Administration
Land Registry,Land Registry,22/04/2014,HR,Travel & Subsistence General Duty,Redfern Travel Ltd,Large,1008103,254.11,Travel & Subsistence General Duty,Administration
Land Registry,Land Registry,22/04/2014,International Unit,Travel & Subsistence General Duty,Redfern Travel Ltd,Large,1008103,1.56,Travel & Subsistence General Duty,Administration
Land Registry,Land Registry,22/04/2014,Director of Operations,Travel & Subsistence General Duty,Redfern Travel Ltd,Large,1008103,91.1,Travel & Subsistence General Duty,Administration
Land Registry,Land Registry,22/04/2014,Director of Information Systems,Travel & Subsistence General Duty,Redfern Travel Ltd,Large,1008103,164.03,Travel & Subsistence General Duty,Administration
Land Registry,Land Registry,22/04/2014,HR,Travel & Subsistence General Duty,Redfern Travel Ltd,Large,1008103,610.72,Travel & Subsistence General Duty,Administration
Land Registry,Land Registry,22/04/2014,Guarantee & Litigation,Travel & Subsistence General Duty,Redfern Travel Ltd,Large,1008103,66.95,Travel & Subsistence General Duty,Administration
Land Registry,Land Registry,22/04/2014,International Unit,Travel & Subsistence General Duty,Redfern Travel Ltd,Large,1008103,74.59,Travel & Subsistence General Duty,Administration
Land Registry,Land Registry,22/04/2014,Commercial Director,Travel & Subsistence General Duty,Redfern Travel Ltd,Large,1008103,99,Travel & Subsistence General Duty,Administration
Land Registry,Land Registry,22/04/2014,IS Service Delivery,Travel & Subsistence General Duty,Redfern Travel Ltd,Large,1008103,99.49,Travel & Subsistence General Duty,Administration
Land Registry,Land Registry,22/04/2014,Property Asset Management Group,Travel & Subsistence General Duty,Redfern Travel Ltd,Large,1008103,151.1,Travel & Subsistence General Duty,Administration
Land Registry,Land Registry,22/04/2014,Central Operations Group,Travel & Subsistence General Duty,Redfern Travel Ltd,Large,1008103,70.5,Travel & Subsistence General Duty,Administration
Land Registry,Land Registry,22/04/2014,Commercial & Customer Strategy & Performance,Travel & Subsistence General Duty,Redfern Travel Ltd,Large,1008103,129.84,Travel & Subsistence General Duty,Administration
Land Registry,Land Registry,22/04/2014,Chief Executives Office,Travel & Subsistence General Duty,Redfern Travel Ltd,Large,1008103,66.01,Travel & Subsistence General Duty,Administration
Land Registry,Land Registry,22/04/2014,Guarantee & Litigation,Travel & Subsistence General Duty,Redfern Travel Ltd,Large,1008103,101.91,Travel & Subsistence General Duty,Administration
Land Registry,Land Registry,22/04/2014,HR,Travel & Subsistence General Duty,Redfern Travel Ltd,Large,1008103,71.98,Travel & Subsistence General Duty,Administration
Land Registry,Land Registry,22/04/2014,Central Operations Group,Travel & Subsistence General Duty,Redfern Travel Ltd,Large,1008103,162,Travel & Subsistence General Duty,Administration
Land Registry,Land Registry,22/04/2014,HR,Travel & Subsistence General Duty,Redfern Travel Ltd,Large,1008103,71.2,Travel & Subsistence General Duty,Administration
Land Registry,Land Registry,22/04/2014,Central Facilities Management Team,Travel & Subsistence General Duty,Redfern Travel Ltd,Large,1008103,147.09,Travel & Subsistence General Duty,Administration
Land Registry,Land Registry,22/04/2014,Internal Solutions Group,Travel & Subsistence General Duty,Redfern Travel Ltd,Large,1008103,238.05,Travel & Subsistence General Duty,Administration
Land Registry,Land Registry,22/04/2014,Central Operations Group,Travel & Subsistence General Duty,Redfern Travel Ltd,Large,1008103,65.76,Travel & Subsistence General Duty,Administration
Land Registry,Land Registry,22/04/2014,Business Development,Travel & Subsistence General Duty,Redfern Travel Ltd,Large,1008103,18.5,Travel & Subsistence General Duty,Administration
Land Registry,Land Registry,22/04/2014,Guarantee & Litigation,Travel & Subsistence General Duty,Redfern Travel Ltd,Large,1008103,101.91,Travel & Subsistence General Duty,Administration
Land Registry,Land Registry,22/04/2014,Central Operations Group,Travel & Subsistence General Duty,Redfern Travel Ltd,Large,1008103,65.76,Travel & Subsistence General Duty,Administration
Land Registry,Land Registry,22/04/2014,Research & Data Mining,Travel & Subsistence General Duty,Redfern Travel Ltd,Large,1008103,127.58,Travel & Subsistence General Duty,Administration
Land Registry,Land Registry,22/04/2014,Birkenhead Office,Travel & Subsistence General Duty,Redfern Travel Ltd,Large,1008103,141.92,Travel & Subsistence General Duty,Administration
Land Registry,Land Registry,22/04/2014,Research & Data Mining,Travel & Subsistence General Duty,Redfern Travel Ltd,Large,1008103,212.47,Travel & Subsistence General Duty,Administration
Land Registry,Land Registry,22/04/2014,Business Development,Travel & Subsistence General Duty,Redfern Travel Ltd,Large,1008103,129.7,Travel & Subsistence General Duty,Administration
Land Registry,Land Registry,22/04/2014,Commercial & Customer Strategy & Performance,Travel & Subsistence General Duty,Redfern Travel Ltd,Large,1008103,166.13,Travel & Subsistence General Duty,Administration
Land Registry,Land Registry,22/04/2014,Birkenhead Office,Travel & Subsistence General Duty,Redfern Travel Ltd,Large,1008103,75.56,Travel & Subsistence General Duty,Administration
Land Registry,Land Registry,22/04/2014,Commercial & Customer Strategy & Performance,Travel & Subsistence General Duty,Redfern Travel Ltd,Large,1008103,68.54,Travel & Subsistence General Duty,Administration
Land Registry,Land Registry,22/04/2014,HR,Travel & Subsistence General Duty,Redfern Travel Ltd,Large,1008103,246.58,Travel & Subsistence General Duty,Administration
Land Registry,Land Registry,22/04/2014,Central Operations Group,Travel & Subsistence General Duty,Redfern Travel Ltd,Large,1008103,88.39,Travel & Subsistence General Duty,Administration
Land Registry,Land Registry,22/04/2014,HR,Travel & Subsistence General Duty,Redfern Travel Ltd,Large,1008103,77.04,Travel & Subsistence General Duty,Administration
Land Registry,Land Registry,22/04/2014,Central Operations Group,Travel & Subsistence General Duty,Redfern Travel Ltd,Large,1008103,163.53,Travel & Subsistence General Duty,Administration
Land Registry,Land Registry,22/04/2014,Central Facilities Management Team,Travel & Subsistence General Duty,Redfern Travel Ltd,Large,1008103,41.7,Travel & Subsistence General Duty,Administration
Land Registry,Land Registry,22/04/2014,Product Development & Management,Travel & Subsistence General Duty,Redfern Travel Ltd,Large,1008103,126.32,Travel & Subsistence General Duty,Administration
Land Registry,Land Registry,22/04/2014,Corporate Legal Services,Travel & Subsistence General Duty,Redfern Travel Ltd,Large,1008103,83.22,Travel & Subsistence General Duty,Administration
Land Registry,Land Registry,22/04/2014,Central Operations Group,Travel & Subsistence General Duty,Redfern Travel Ltd,Large,1008103,164.16,Travel & Subsistence General Duty,Administration
Land Registry,Land Registry,22/04/2014,Business Development,Travel & Subsistence General Duty,Redfern Travel Ltd,Large,1008103,130.02,Travel & Subsistence General Duty,Administration
Land Registry,Land Registry,22/04/2014,Central Operations Group,Travel & Subsistence General Duty,Redfern Travel Ltd,Large,1008103,104.13,Travel & Subsistence General Duty,Administration
Land Registry,Land Registry,22/04/2014,Commercial Director,Travel & Subsistence General Duty,Redfern Travel Ltd,Large,1008103,100.25,Travel & Subsistence General Duty,Administration
Land Registry,Land Registry,22/04/2014,Business Continuity,Travel & Subsistence General Duty,Redfern Travel Ltd,Large,1008103,26.78,Travel & Subsistence General Duty,Administration
Land Registry,Land Registry,22/04/2014,Business Development,Travel & Subsistence General Duty,Redfern Travel Ltd,Large,1008103,11.85,Travel & Subsistence General Duty,Administration
Land Registry,Land Registry,22/04/2014,Property Asset Management Group,Travel & Subsistence General Duty,Redfern Travel Ltd,Large,1008103,162.33,Travel & Subsistence General Duty,Administration
Land Registry,Land Registry,22/04/2014,Business Continuity,Travel & Subsistence General Duty,Redfern Travel Ltd,Large,1008103,16.94,Travel & Subsistence General Duty,Administration
Land Registry,Land Registry,22/04/2014,Finance Group,Travel & Subsistence General Duty,Redfern Travel Ltd,Large,1008103,18.5,Travel & Subsistence General Duty,Administration
Land Registry,Land Registry,22/04/2014,Business Continuity,Travel & Subsistence General Duty,Redfern Travel Ltd,Large,1008103,33.13,Travel & Subsistence General Duty,Administration
Land Registry,Land Registry,22/04/2014,Central Facilities Management Team,Travel & Subsistence General Duty,Redfern Travel Ltd,Large,1008103,86.59,Travel & Subsistence General Duty,Administration
Land Registry,Land Registry,22/04/2014,Business Development,Travel & Subsistence General Duty,Redfern Travel Ltd,Large,1008103,29.41,Travel & Subsistence General Duty,Administration
Land Registry,Land Registry,22/04/2014,Product Development & Management,Travel & Subsistence General Duty,Redfern Travel Ltd,Large,1008103,108.74,Travel & Subsistence General Duty,Administration
Land Registry,Land Registry,22/04/2014,Business Development,Travel & Subsistence General Duty,Redfern Travel Ltd,Large,1008103,80.03,Travel & Subsistence General Duty,Administration
Land Registry,Land Registry,22/04/2014,HR,Travel & Subsistence General Duty,Redfern Travel Ltd,Large,1008103,113.04,Travel & Subsistence General Duty,Administration
Land Registry,Land Registry,22/04/2014,International Unit,Travel & Subsistence General Duty,Redfern Travel Ltd,Large,1008103,89.04,Travel & Subsistence General Duty,Administration
Land Registry,Land Registry,22/04/2014,Business Development,Travel & Subsistence General Duty,Redfern Travel Ltd,Large,1008103,-32.53,Travel & Subsistence General Duty,Administration
Land Registry,Land Registry,22/04/2014,Central Operations Group,Travel & Subsistence General Duty,Redfern Travel Ltd,Large,1008103,-69.42,Travel & Subsistence General Duty,Administration
Land Registry,Land Registry,22/04/2014,Commercial Director,Travel & Subsistence General Duty,Redfern Travel Ltd,Large,1008103,-91.57,Travel & Subsistence General Duty,Administration
Land Registry,Land Registry,22/04/2014,Dir: HR,Travel & Subsistence General Duty,Redfern Travel Ltd,Large,1008103,99.14,Travel & Subsistence General Duty,Administration
Land Registry,Land Registry,22/04/2014,Dir: Operations,Travel & Subsistence General Duty,Redfern Travel Ltd,Large,1008103,116.08,Travel & Subsistence General Duty,Administration
Land Registry,Land Registry,22/04/2014,Dir: (Statutory) Commercial & Customer,Travel & Subsistence General Duty,Redfern Travel Ltd,Large,1008103,26.3,Travel & Subsistence General Duty,Administration
Land Registry,Land Registry,22/04/2014,Dir: Finance,Travel & Subsistence General Duty,Redfern Travel Ltd,Large,1008103,113.17,Travel & Subsistence General Duty,Administration
Land Registry,Land Registry,22/04/2014,Dir: Operations,Travel & Subsistence General Duty,Redfern Travel Ltd,Large,1008103,11.85,Travel & Subsistence General Duty,Administration
Land Registry,Land Registry,22/04/2014,Dir: Finance,Travel & Subsistence General Duty,Redfern Travel Ltd,Large,1008103,53.43,Travel & Subsistence General Duty,Administration
Land Registry,Land Registry,22/04/2014,Dir: Information Systems,Travel & Subsistence General Duty,Redfern Travel Ltd,Large,1008103,40.54,Travel & Subsistence General Duty,Administration
Land Registry,Land Registry,22/04/2014,Dir: HR,Travel & Subsistence General Duty,Redfern Travel Ltd,Large,1008103,80.94,Travel & Subsistence General Duty,Administration
Land Registry,Land Registry,22/04/2014,Dir: (Statutory) Commercial & Customer,Travel & Subsistence General Duty,Redfern Travel Ltd,Large,1008103,115.79,Travel & Subsistence General Duty,Administration
Land Registry,Land Registry,22/04/2014,Dir: Information Systems,Travel & Subsistence General Duty,Redfern Travel Ltd,Large,1008103,115.38,Travel & Subsistence General Duty,Administration
Land Registry,Land Registry,22/04/2014,Dir: Finance,Travel & Subsistence General Duty,Redfern Travel Ltd,Large,1008103,123.29,Travel & Subsistence General Duty,Administration
Land Registry,Land Registry,22/04/2014,Dir: (Statutory) Commercial & Customer,Travel & Subsistence General Duty,Redfern Travel Ltd,Large,1008103,77.01,Travel & Subsistence General Duty,Administration
Land Registry,Land Registry,22/04/2014,Dir: Finance,Travel & Subsistence General Duty,Redfern Travel Ltd,Large,1008103,144.41,Travel & Subsistence General Duty,Administration
Land Registry,Land Registry,22/04/2014,Dir: (Statutory) Commercial & Customer,Travel & Subsistence General Duty,Redfern Travel Ltd,Large,1008103,70.98,Travel & Subsistence General Duty,Administration
Land Registry,Land Registry,22/04/2014,Dir: Operations,Travel & Subsistence General Duty,Redfern Travel Ltd,Large,1008103,72.99,Travel & Subsistence General Duty,Administration
Land Registry,Land Registry,22/04/2014,Dir: HR,Travel & Subsistence General Duty,Redfern Travel Ltd,Large,1008103,82.04,Travel & Subsistence General Duty,Administration
Land Registry,Land Registry,22/04/2014,Dir: (Statutory) Commercial & Customer,Travel & Subsistence General Duty,Redfern Travel Ltd,Large,1008103,180.63,Travel & Subsistence General Duty,Administration
Land Registry,Land Registry,22/04/2014,Dir: Finance,Travel & Subsistence General Duty,Redfern Travel Ltd,Large,1008103,144.41,Travel & Subsistence General Duty,Administration
Land Registry,Land Registry,22/04/2014,Dir: HR,Travel & Subsistence General Duty,Redfern Travel Ltd,Large,1008103,71.98,Travel & Subsistence General Duty,Administration
Land Registry,Land Registry,22/04/2014,Dir: Finance,Travel & Subsistence General Duty,Redfern Travel Ltd,Large,1008103,54.94,Travel & Subsistence General Duty,Administration
Land Registry,Land Registry,22/04/2014,Dir: (Statutory) Commercial & Customer,Travel & Subsistence General Duty,Redfern Travel Ltd,Large,1008103,215.84,Travel & Subsistence General Duty,Administration
Land Registry,Land Registry,22/04/2014,Dir: Operations,Travel & Subsistence General Duty,Redfern Travel Ltd,Large,1008103,15.76,Travel & Subsistence General Duty,Administration
Land Registry,Land Registry,22/04/2014,Dir: (Statutory) Commercial & Customer,Travel & Subsistence General Duty,Redfern Travel Ltd,Large,1008103,215.84,Travel & Subsistence General Duty,Administration
Land Registry,Land Registry,22/04/2014,Dir: Finance,Travel & Subsistence General Duty,Redfern Travel Ltd,Large,1008103,72.99,Travel & Subsistence General Duty,Administration
Land Registry,Land Registry,22/04/2014,Dir: HR,Travel & Subsistence General Duty,Redfern Travel Ltd,Large,1008103,132.34,Travel & Subsistence General Duty,Administration
Land Registry,Land Registry,22/04/2014,Dir: (Statutory) Commercial & Customer,Travel & Subsistence General Duty,Redfern Travel Ltd,Large,1008103,101.37,Travel & Subsistence General Duty,Administration
Land Registry,Land Registry,22/04/2014,Dir: HR,Travel & Subsistence General Duty,Redfern Travel Ltd,Large,1008103,111.14,Travel & Subsistence General Duty,Administration
Land Registry,Land Registry,22/04/2014,Dir: Operations,Travel & Subsistence General Duty,Redfern Travel Ltd,Large,1008103,77.01,Travel & Subsistence General Duty,Administration
Land Registry,Land Registry,22/04/2014,Dir: HR,Travel & Subsistence General Duty,Redfern Travel Ltd,Large,1008103,46.4,Travel & Subsistence General Duty,Administration
Land Registry,Land Registry,22/04/2014,Dir: Operations,Travel & Subsistence General Duty,Redfern Travel Ltd,Large,1008103,51.32,Travel & Subsistence General Duty,Administration
Land Registry,Land Registry,22/04/2014,Dir: HR,Travel & Subsistence General Duty,Redfern Travel Ltd,Large,1008103,1.56,Travel & Subsistence General Duty,Administration
Land Registry,Land Registry,22/04/2014,Dir: (Statutory) Commercial & Customer,Travel & Subsistence General Duty,Redfern Travel Ltd,Large,1008103,150.6,Travel & Subsistence General Duty,Administration
Land Registry,Land Registry,22/04/2014,Dir: (Add Value) Commercial & Customer,Travel & Subsistence General Duty,Redfern Travel Ltd,Large,1008103,113.29,Travel & Subsistence General Duty,Administration
Land Registry,Land Registry,22/04/2014,Dir: (Statutory) Commercial & Customer,Travel & Subsistence General Duty,Redfern Travel Ltd,Large,1008103,86.26,Travel & Subsistence General Duty,Administration
Land Registry,Land Registry,22/04/2014,Dir: Operations,Travel & Subsistence General Duty,Redfern Travel Ltd,Large,1008103,72.99,Travel & Subsistence General Duty,Administration
Land Registry,Land Registry,22/04/2014,Dir: Legal Services,Travel & Subsistence General Duty,Redfern Travel Ltd,Large,1008103,70.98,Travel & Subsistence General Duty,Administration
Land Registry,Land Registry,22/04/2014,Dir: Operations,Travel & Subsistence General Duty,Redfern Travel Ltd,Large,1008103,65.95,Travel & Subsistence General Duty,Administration
Land Registry,Land Registry,22/04/2014,Dir: HR,Travel & Subsistence General Duty,Redfern Travel Ltd,Large,1008103,82.04,Travel & Subsistence General Duty,Administration
Land Registry,Land Registry,22/04/2014,Dir: (Statutory) Commercial & Customer,Travel & Subsistence General Duty,Redfern Travel Ltd,Large,1008103,101.37,Travel & Subsistence General Duty,Administration
Land Registry,Land Registry,22/04/2014,Dir: HR,Travel & Subsistence General Duty,Redfern Travel Ltd,Large,1008103,183.15,Travel & Subsistence General Duty,Administration
Land Registry,Land Registry,22/04/2014,Dir: (Statutory) Commercial & Customer,Travel & Subsistence General Duty,Redfern Travel Ltd,Large,1008103,163.35,Travel & Subsistence General Duty,Administration
Land Registry,Land Registry,22/04/2014,Dir: HR,Travel & Subsistence General Duty,Redfern Travel Ltd,Large,1008103,17.7,Travel & Subsistence General Duty,Administration
Land Registry,Land Registry,22/04/2014,Dir: Operations,Travel & Subsistence General Duty,Redfern Travel Ltd,Large,1008103,144.41,Travel & Subsistence General Duty,Administration
Land Registry,Land Registry,22/04/2014,Dir: (Statutory) Commercial & Customer,Travel & Subsistence General Duty,Redfern Travel Ltd,Large,1008103,71.67,Travel & Subsistence General Duty,Administration
Land Registry,Land Registry,22/04/2014,Dir: Finance,Travel & Subsistence General Duty,Redfern Travel Ltd,Large,1008103,22.88,Travel & Subsistence General Duty,Administration
Land Registry,Land Registry,22/04/2014,Dir: Information Systems,Travel & Subsistence General Duty,Redfern Travel Ltd,Large,1008103,130.33,Travel & Subsistence General Duty,Administration
Land Registry,Land Registry,22/04/2014,Dir: (Statutory) Commercial & Customer,Travel & Subsistence General Duty,Redfern Travel Ltd,Large,1008103,215.84,Travel & Subsistence General Duty,Administration
Land Registry,Land Registry,22/04/2014,Dir: HR,Travel & Subsistence General Duty,Redfern Travel Ltd,Large,1008103,87.07,Travel & Subsistence General Duty,Administration
Land Registry,Land Registry,22/04/2014,Dir: Operations,Travel & Subsistence General Duty,Redfern Travel Ltd,Large,1008103,82.5,Travel & Subsistence General Duty,Administration
Land Registry,Land Registry,22/04/2014,Dir: (Statutory) Commercial & Customer,Travel & Subsistence General Duty,Redfern Travel Ltd,Large,1008103,27.37,Travel & Subsistence General Duty,Administration
Land Registry,Land Registry,22/04/2014,Dir: Finance,Travel & Subsistence General Duty,Redfern Travel Ltd,Large,1008103,369.76,Travel & Subsistence General Duty,Administration
Land Registry,Land Registry,22/04/2014,Dir: HR,Travel & Subsistence General Duty,Redfern Travel Ltd,Large,1008103,96.31,Travel & Subsistence General Duty,Administration
Land Registry,Land Registry,22/04/2014,Dir: (Statutory) Commercial & Customer,Travel & Subsistence General Duty,Redfern Travel Ltd,Large,1008103,90.09,Travel & Subsistence General Duty,Administration
Land Registry,Land Registry,22/04/2014,Dir: HR,Travel & Subsistence General Duty,Redfern Travel Ltd,Large,1008103,1.56,Travel & Subsistence General Duty,Administration
Land Registry,Land Registry,22/04/2014,Dir: (Statutory) Commercial & Customer,Travel & Subsistence General Duty,Redfern Travel Ltd,Large,1008103,445.88,Travel & Subsistence General Duty,Administration
Land Registry,Land Registry,22/04/2014,Dir: Finance,Travel & Subsistence General Duty,Redfern Travel Ltd,Large,1008103,72.99,Travel & Subsistence General Duty,Administration
Land Registry,Land Registry,22/04/2014,Dir: HR,Travel & Subsistence General Duty,Redfern Travel Ltd,Large,1008103,67.51,Travel & Subsistence General Duty,Administration
Land Registry,Land Registry,22/04/2014,Dir: Operations,Travel & Subsistence General Duty,Redfern Travel Ltd,Large,1008103,154.02,Travel & Subsistence General Duty,Administration
Land Registry,Land Registry,22/04/2014,Dir: HR,Travel & Subsistence General Duty,Redfern Travel Ltd,Large,1008103,66.95,Travel & Subsistence General Duty,Administration
Land Registry,Land Registry,22/04/2014,Customer Services,Travel & Subsistence General Duty,Redfern Travel Ltd,Large,1008103,1.1,Travel & Subsistence General Duty,Administration
Land Registry,Land Registry,22/04/2014,International Unit,Travel & Subsistence General Duty,Redfern Travel Ltd,Large,1008103,4.65,Travel & Subsistence General Duty,Administration
Land Registry,Land Registry,22/04/2014,Product Development & Management,Travel & Subsistence General Duty,Redfern Travel Ltd,Large,1008103,153,Travel & Subsistence General Duty,Administration
Land Registry,Land Registry,22/04/2014,Commercial & Customer Strategy & Performance,Travel & Subsistence General Duty,Redfern Travel Ltd,Large,1008103,4.2,Travel & Subsistence General Duty,Administration
Land Registry,Land Registry,22/04/2014,Business Development,Travel & Subsistence General Duty,Redfern Travel Ltd,Large,1008103,127.78,Travel & Subsistence General Duty,Administration
Land Registry,Land Registry,22/04/2014,Customer Services,Travel & Subsistence General Duty,Redfern Travel Ltd,Large,1008103,-1.32,Travel & Subsistence General Duty,Administration
Land Registry,Land Registry,22/04/2014,International Unit,Travel & Subsistence General Duty,Redfern Travel Ltd,Large,1008103,-5.58,Travel & Subsistence General Duty,Administration
Land Registry,Land Registry,22/04/2014,Product Development & Management,Travel & Subsistence General Duty,Redfern Travel Ltd,Large,1008103,-183.6,Travel & Subsistence General Duty,Administration
Land Registry,Land Registry,22/04/2014,Commercial & Customer Strategy & Performance,Travel & Subsistence General Duty,Redfern Travel Ltd,Large,1008103,-5.04,Travel & Subsistence General Duty,Administration
Land Registry,Land Registry,22/04/2014,Business Development,Travel & Subsistence General Duty,Redfern Travel Ltd,Large,1008103,-153.34,Travel & Subsistence General Duty,Administration
Land Registry,Land Registry,22/04/2014,Chief Executives Office,Travel & Subsistence General Duty,Redfern Travel Ltd,Large,1008103,70.19,Travel & Subsistence General Duty,Administration
Land Registry,Land Registry,22/04/2014,Central Operations Group,Travel & Subsistence General Duty,Redfern Travel Ltd,Large,1008103,72.99,Travel & Subsistence General Duty,Administration
Land Registry,Land Registry,22/04/2014,IS Service Delivery,Travel & Subsistence General Duty,Redfern Travel Ltd,Large,1008103,2.01,Travel & Subsistence General Duty,Administration
Land Registry,Land Registry,22/04/2014,Internal Audit,Travel & Subsistence General Duty,Redfern Travel Ltd,Large,1008103,46.8,Travel & Subsistence General Duty,Administration
Land Registry,Land Registry,22/04/2014,HR,Travel & Subsistence General Duty,Redfern Travel Ltd,Large,1008103,81.95,Travel & Subsistence General Duty,Administration
Land Registry,Land Registry,22/04/2014,Central Operations Group,Travel & Subsistence General Duty,Redfern Travel Ltd,Large,1008103,77.01,Travel & Subsistence General Duty,Administration
Land Registry,Land Registry,22/04/2014,HR,Travel & Subsistence General Duty,Redfern Travel Ltd,Large,1008103,372.25,Travel & Subsistence General Duty,Administration
Land Registry,Land Registry,22/04/2014,Internal Audit,Travel & Subsistence General Duty,Redfern Travel Ltd,Large,1008103,105.85,Travel & Subsistence General Duty,Administration
Land Registry,Land Registry,22/04/2014,Central Facilities Management Team,Travel & Subsistence General Duty,Redfern Travel Ltd,Large,1008103,78.3,Travel & Subsistence General Duty,Administration
Land Registry,Land Registry,22/04/2014,HR,Travel & Subsistence General Duty,Redfern Travel Ltd,Large,1008103,87.78,Travel & Subsistence General Duty,Administration
Land Registry,Land Registry,22/04/2014,Internal Solutions Group,Travel & Subsistence General Duty,Redfern Travel Ltd,Large,1008103,230.98,Travel & Subsistence General Duty,Administration
Land Registry,Land Registry,22/04/2014,Central Facilities Management Team,Travel & Subsistence General Duty,Redfern Travel Ltd,Large,1008103,71.98,Travel & Subsistence General Duty,Administration
Land Registry,Land Registry,22/04/2014,Strategy Team,Travel & Subsistence General Duty,Redfern Travel Ltd,Large,1008103,70.19,Travel & Subsistence General Duty,Administration
Land Registry,Land Registry,22/04/2014,Central Facilities Management Team,Travel & Subsistence General Duty,Redfern Travel Ltd,Large,1008103,75.85,Travel & Subsistence General Duty,Administration
Land Registry,Land Registry,22/04/2014,HR,Travel & Subsistence General Duty,Redfern Travel Ltd,Large,1008103,102.41,Travel & Subsistence General Duty,Administration
Land Registry,Land Registry,22/04/2014,Central Facilities Management Team,Travel & Subsistence General Duty,Redfern Travel Ltd,Large,1008103,42.99,Travel & Subsistence General Duty,Administration
Land Registry,Land Registry,22/04/2014,Central Operations Group,Travel & Subsistence General Duty,Redfern Travel Ltd,Large,1008103,22.39,Travel & Subsistence General Duty,Administration
Land Registry,Land Registry,22/04/2014,Internal Solutions Group,Travel & Subsistence General Duty,Redfern Travel Ltd,Large,1008103,226.78,Travel & Subsistence General Duty,Administration
Land Registry,Land Registry,22/04/2014,Business Development,Travel & Subsistence General Duty,Redfern Travel Ltd,Large,1008103,52.16,Travel & Subsistence General Duty,Administration
Land Registry,Land Registry,22/04/2014,Internal Solutions Group,Travel & Subsistence General Duty,Redfern Travel Ltd,Large,1008103,85.04,Travel & Subsistence General Duty,Administration
Land Registry,Land Registry,22/04/2014,Customer Services,Travel & Subsistence General Duty,Redfern Travel Ltd,Large,1008103,69.33,Travel & Subsistence General Duty,Administration
Land Registry,Land Registry,22/04/2014,HR,Travel & Subsistence General Duty,Redfern Travel Ltd,Large,1008103,65.33,Travel & Subsistence General Duty,Administration
Land Registry,Land Registry,22/04/2014,Central Operations Group,Travel & Subsistence General Duty,Redfern Travel Ltd,Large,1008103,86.12,Travel & Subsistence General Duty,Administration
Land Registry,Land Registry,22/04/2014,Internal Solutions Group,Travel & Subsistence General Duty,Redfern Travel Ltd,Large,1008103,65.95,Travel & Subsistence General Duty,Administration
Land Registry,Land Registry,22/04/2014,Customer Services,Travel & Subsistence General Duty,Redfern Travel Ltd,Large,1008103,35.28,Travel & Subsistence General Duty,Administration
Land Registry,Land Registry,22/04/2014,Central Facilities Management Team,Travel & Subsistence General Duty,Redfern Travel Ltd,Large,1008103,75.85,Travel & Subsistence General Duty,Administration
Land Registry,Land Registry,22/04/2014,Business Development,Travel & Subsistence General Duty,Redfern Travel Ltd,Large,1008103,44.59,Travel & Subsistence General Duty,Administration
Land Registry,Land Registry,22/04/2014,Chief Executives Office,Travel & Subsistence General Duty,Redfern Travel Ltd,Large,1008103,107.8,Travel & Subsistence General Duty,Administration
Land Registry,Land Registry,22/04/2014,HR,Travel & Subsistence General Duty,Redfern Travel Ltd,Large,1008103,98.39,Travel & Subsistence General Duty,Administration
Land Registry,Land Registry,22/04/2014,Guarantee & Litigation,Travel & Subsistence General Duty,Redfern Travel Ltd,Large,1008103,71.98,Travel & Subsistence General Duty,Administration
Land Registry,Land Registry,22/04/2014,Wales Office,Travel & Subsistence General Duty,Redfern Travel Ltd,Large,1008103,117.25,Travel & Subsistence General Duty,Administration
Land Registry,Land Registry,22/04/2014,Registration Legal Services Group,Travel & Subsistence General Duty,Redfern Travel Ltd,Large,1008103,166.77,Travel & Subsistence General Duty,Administration
Land Registry,Land Registry,22/04/2014,Chief Executives Office,Travel & Subsistence General Duty,Redfern Travel Ltd,Large,1008103,144.41,Travel & Subsistence General Duty,Administration
Land Registry,Land Registry,22/04/2014,Central Operations Group,Travel & Subsistence General Duty,Redfern Travel Ltd,Large,1008103,42.85,Travel & Subsistence General Duty,Administration
Land Registry,Land Registry,22/04/2014,Registration Legal Services Group,Travel & Subsistence General Duty,Redfern Travel Ltd,Large,1008103,113.6,Travel & Subsistence General Duty,Administration
Land Registry,Land Registry,22/04/2014,Central Facilities Management Team,Travel & Subsistence General Duty,Redfern Travel Ltd,Large,1008103,75.85,Travel & Subsistence General Duty,Administration
Land Registry,Land Registry,22/04/2014,Product Development & Management,Travel & Subsistence General Duty,Redfern Travel Ltd,Large,1008103,108.74,Travel & Subsistence General Duty,Administration
Land Registry,Land Registry,22/04/2014,Property Asset Management Group,Travel & Subsistence General Duty,Redfern Travel Ltd,Large,1008103,75.85,Travel & Subsistence General Duty,Administration
Land Registry,Land Registry,22/04/2014,Commercial & Customer Strategy & Performance,Travel & Subsistence General Duty,Redfern Travel Ltd,Large,1008103,54.13,Travel & Subsistence General Duty,Administration
Land Registry,Land Registry,22/04/2014,Business Development,Travel & Subsistence General Duty,Redfern Travel Ltd,Large,1008103,203.21,Travel & Subsistence General Duty,Administration
Land Registry,Land Registry,22/04/2014,HR,Travel & Subsistence General Duty,Redfern Travel Ltd,Large,1008103,102.41,Travel & Subsistence General Duty,Administration
Land Registry,Land Registry,22/04/2014,Croydon Office,Travel & Subsistence General Duty,Redfern Travel Ltd,Large,1008103,70.98,Travel & Subsistence General Duty,Administration
Land Registry,Land Registry,22/04/2014,Governance & Policy,Travel & Subsistence General Duty,Redfern Travel Ltd,Large,1008103,206.17,Travel & Subsistence General Duty,Administration
Land Registry,Land Registry,22/04/2014,HR,Travel & Subsistence General Duty,Redfern Travel Ltd,Large,1008103,288.1,Travel & Subsistence General Duty,Administration
Land Registry,Land Registry,22/04/2014,Commercial & Customer Strategy & Performance,Travel & Subsistence General Duty,Redfern Travel Ltd,Large,1008103,241.73,Travel & Subsistence General Duty,Administration
Land Registry,Land Registry,22/04/2014,IS Service Delivery,Travel & Subsistence General Duty,Redfern Travel Ltd,Large,1008103,124.24,Travel & Subsistence General Duty,Administration
Land Registry,Land Registry,22/04/2014,HR,Travel & Subsistence General Duty,Redfern Travel Ltd,Large,1008103,55.99,Travel & Subsistence General Duty,Administration
Land Registry,Land Registry,22/04/2014,Central Facilities Management Team,Travel & Subsistence General Duty,Redfern Travel Ltd,Large,1008103,87.29,Travel & Subsistence General Duty,Administration
Land Registry,Land Registry,22/04/2014,Corporate Legal Services,Travel & Subsistence General Duty,Redfern Travel Ltd,Large,1008103,-0.14,Travel & Subsistence General Duty,Administration
Land Registry,Land Registry,22/04/2014,Commercial & Customer Strategy & Performance,Travel & Subsistence General Duty,Redfern Travel Ltd,Large,1008103,-157.43,Travel & Subsistence General Duty,Administration
Land Registry,Land Registry,22/04/2014,HR,Travel & Subsistence General Duty,Redfern Travel Ltd,Large,1008103,1.02,Travel & Subsistence General Duty,Administration
Land Registry,Land Registry,22/04/2014,Central Facilities Management Team,Travel & Subsistence General Duty,Redfern Travel Ltd,Large,1008103,-129.63,Travel & Subsistence General Duty,Administration
Land Registry,Land Registry,22/04/2014,HR,Travel & Subsistence General Duty,Redfern Travel Ltd,Large,1008103,-61.45,Travel & Subsistence General Duty,Administration
Land Registry,Land Registry,22/04/2014,Director of Legal Services,Travel & Subsistence General Duty,Redfern Travel Ltd,Large,1008103,-195.01,Travel & Subsistence General Duty,Administration
Land Registry,Land Registry,22/04/2014,Weymouth Office,Travel & Subsistence General Duty,Redfern Travel Ltd,Large,1008103,-98.79,Travel & Subsistence General Duty,Administration
Land Registry,Land Registry,22/04/2014,Business Development,Travel & Subsistence General Duty,Redfern Travel Ltd,Large,1008103,-292.44,Travel & Subsistence General Duty,Administration
Land Registry,Land Registry,22/04/2014,IS Service Delivery,Travel & Subsistence General Duty,Redfern Travel Ltd,Large,1008103,-4.14,Travel & Subsistence General Duty,Administration
Land Registry,Land Registry,22/04/2014,Corporate Legal Services,Travel & Subsistence General Duty,Redfern Travel Ltd,Large,1008103,-19.65,Travel & Subsistence General Duty,Administration
Land Registry,Land Registry,22/04/2014,Customer Services,Travel & Subsistence General Duty,Redfern Travel Ltd,Large,1008103,-16.53,Travel & Subsistence General Duty,Administration
Land Registry,Land Registry,22/04/2014,Technical Assurance Group,Travel & Subsistence General Duty,Redfern Travel Ltd,Large,1008103,-164.95,Travel & Subsistence General Duty,Administration
Land Registry,Land Registry,22/04/2014,Governance & Policy,Travel & Subsistence General Duty,Redfern Travel Ltd,Large,1008103,-86.69,Travel & Subsistence General Duty,Administration
Land Registry,Land Registry,22/04/2014,Projects and Programme Centre,Travel & Subsistence General Duty,Redfern Travel Ltd,Large,1008103,-92.74,Travel & Subsistence General Duty,Administration
Land Registry,Land Registry,22/04/2014,HR,Travel & Subsistence General Duty,Redfern Travel Ltd,Large,1008103,-178.32,Travel & Subsistence General Duty,Administration
Land Registry,Land Registry,22/04/2014,Director of Information Systems,Travel & Subsistence General Duty,Redfern Travel Ltd,Large,1008103,-75.45,Travel & Subsistence General Duty,Administration
Land Registry,Land Registry,22/04/2014,HR,Travel & Subsistence General Duty,Redfern Travel Ltd,Large,1008103,-244.13,Travel & Subsistence General Duty,Administration
Land Registry,Land Registry,22/04/2014,Commercial Director,Travel & Subsistence General Duty,Redfern Travel Ltd,Large,1008103,-90.38,Travel & Subsistence General Duty,Administration
Land Registry,Land Registry,22/04/2014,HR,Travel & Subsistence General Duty,Redfern Travel Ltd,Large,1008103,-109.14,Travel & Subsistence General Duty,Administration
Land Registry,Land Registry,22/04/2014,Dir: (Statutory) Commercial & Customer,Travel & Subsistence General Duty,Redfern Travel Ltd,Large,1008103,-262.97,Travel & Subsistence General Duty,Administration
Land Registry,Land Registry,22/04/2014,Dir: Information Systems,Travel & Subsistence General Duty,Redfern Travel Ltd,Large,1008103,71.98,Travel & Subsistence General Duty,Administration
Land Registry,Land Registry,22/04/2014,Dir: HR,Travel & Subsistence General Duty,Redfern Travel Ltd,Large,1008103,86.07,Travel & Subsistence General Duty,Administration
Land Registry,Land Registry,22/04/2014,Dir: (Statutory) Commercial & Customer,Travel & Subsistence General Duty,Redfern Travel Ltd,Large,1008103,99.39,Travel & Subsistence General Duty,Administration
Land Registry,Land Registry,22/04/2014,Dir: HR,Travel & Subsistence General Duty,Redfern Travel Ltd,Large,1008103,177.28,Travel & Subsistence General Duty,Administration
Land Registry,Land Registry,22/04/2014,Dir: Operations,Travel & Subsistence General Duty,Redfern Travel Ltd,Large,1008103,101.83,Travel & Subsistence General Duty,Administration
Land Registry,Land Registry,22/04/2014,Dir: Finance,Travel & Subsistence General Duty,Redfern Travel Ltd,Large,1008103,248.07,Travel & Subsistence General Duty,Administration
Land Registry,Land Registry,22/04/2014,Dir: Information Systems,Travel & Subsistence General Duty,Redfern Travel Ltd,Large,1008103,84.95,Travel & Subsistence General Duty,Administration
Land Registry,Land Registry,22/04/2014,Dir: Operations,Travel & Subsistence General Duty,Redfern Travel Ltd,Large,1008103,503.66,Travel & Subsistence General Duty,Administration
Land Registry,Land Registry,22/04/2014,Dir: HR,Travel & Subsistence General Duty,Redfern Travel Ltd,Large,1008103,437.54,Travel & Subsistence General Duty,Administration
Land Registry,Land Registry,22/04/2014,Dir: Information Systems,Travel & Subsistence General Duty,Redfern Travel Ltd,Large,1008103,1.56,Travel & Subsistence General Duty,Administration
Land Registry,Land Registry,22/04/2014,Dir: HR,Travel & Subsistence General Duty,Redfern Travel Ltd,Large,1008103,19.94,Travel & Subsistence General Duty,Administration
Land Registry,Land Registry,22/04/2014,Dir: (Statutory) Commercial & Customer,Travel & Subsistence General Duty,Redfern Travel Ltd,Large,1008103,101.38,Travel & Subsistence General Duty,Administration
Land Registry,Land Registry,22/04/2014,Dir: HR,Travel & Subsistence General Duty,Redfern Travel Ltd,Large,1008103,239.98,Travel & Subsistence General Duty,Administration
Land Registry,Land Registry,22/04/2014,Dir: Operations,Travel & Subsistence General Duty,Redfern Travel Ltd,Large,1008103,287.27,Travel & Subsistence General Duty,Administration
Land Registry,Land Registry,22/04/2014,Dir: HR,Travel & Subsistence General Duty,Redfern Travel Ltd,Large,1008103,5.9,Travel & Subsistence General Duty,Administration
Land Registry,Land Registry,22/04/2014,Dir: (Statutory) Commercial & Customer,Travel & Subsistence General Duty,Redfern Travel Ltd,Large,1008103,47.9,Travel & Subsistence General Duty,Administration
Land Registry,Land Registry,22/04/2014,Dir: Finance,Travel & Subsistence General Duty,Redfern Travel Ltd,Large,1008103,69.03,Travel & Subsistence General Duty,Administration
Land Registry,Land Registry,22/04/2014,Dir: HR,Travel & Subsistence General Duty,Redfern Travel Ltd,Large,1008103,19.94,Travel & Subsistence General Duty,Administration
Land Registry,Land Registry,22/04/2014,Dir: Finance,Travel & Subsistence General Duty,Redfern Travel Ltd,Large,1008103,174,Travel & Subsistence General Duty,Administration
Land Registry,Land Registry,22/04/2014,Dir: HR,Travel & Subsistence General Duty,Redfern Travel Ltd,Large,1008103,19.75,Travel & Subsistence General Duty,Administration
Land Registry,Land Registry,22/04/2014,Dir: Operations,Travel & Subsistence General Duty,Redfern Travel Ltd,Large,1008103,11.85,Travel & Subsistence General Duty,Administration
Land Registry,Land Registry,22/04/2014,Dir: HR,Travel & Subsistence General Duty,Redfern Travel Ltd,Large,1008103,80.25,Travel & Subsistence General Duty,Administration
Land Registry,Land Registry,22/04/2014,Dir: Operations,Travel & Subsistence General Duty,Redfern Travel Ltd,Large,1008103,87.57,Travel & Subsistence General Duty,Administration
Land Registry,Land Registry,22/04/2014,Dir: HR,Travel & Subsistence General Duty,Redfern Travel Ltd,Large,1008103,79.02,Travel & Subsistence General Duty,Administration
Land Registry,Land Registry,22/04/2014,Dir: Operations,Travel & Subsistence General Duty,Redfern Travel Ltd,Large,1008103,140.39,Travel & Subsistence General Duty,Administration
Land Registry,Land Registry,22/04/2014,Dir: HR,Travel & Subsistence General Duty,Redfern Travel Ltd,Large,1008103,1.56,Travel & Subsistence General Duty,Administration
Land Registry,Land Registry,22/04/2014,Dir: Operations,Travel & Subsistence General Duty,Redfern Travel Ltd,Large,1008103,1.56,Travel & Subsistence General Duty,Administration
Land Registry,Land Registry,22/04/2014,Dir: HR,Travel & Subsistence General Duty,Redfern Travel Ltd,Large,1008103,1.56,Travel & Subsistence General Duty,Administration
Land Registry,Land Registry,22/04/2014,Dir: Finance,Travel & Subsistence General Duty,Redfern Travel Ltd,Large,1008103,-151.58,Travel & Subsistence General Duty,Administration
Land Registry,Land Registry,22/04/2014,Dir: (Statutory) Commercial & Customer,Travel & Subsistence General Duty,Redfern Travel Ltd,Large,1008103,-114.99,Travel & Subsistence General Duty,Administration
Land Registry,Land Registry,22/04/2014,Dir: HR,Travel & Subsistence General Duty,Redfern Travel Ltd,Large,1008103,-282.3,Travel & Subsistence General Duty,Administration
Land Registry,Land Registry,22/04/2014,Dir: (Statutory) Commercial & Customer,Travel & Subsistence General Duty,Redfern Travel Ltd,Large,1008103,-216.91,Travel & Subsistence General Duty,Administration
Land Registry,Land Registry,22/04/2014,Customer Services,Travel & Subsistence General Duty,Redfern Travel Ltd,Large,1008103,143.45,Travel & Subsistence General Duty,Administration
Land Registry,Land Registry,22/04/2014,International Unit,Travel & Subsistence General Duty,Redfern Travel Ltd,Large,1008103,213.6,Travel & Subsistence General Duty,Administration
Land Registry,Land Registry,22/04/2014,Marketing Services Team,Travel & Subsistence General Duty,Redfern Travel Ltd,Large,1008103,1.8,Travel & Subsistence General Duty,Administration
Land Registry,Land Registry,22/04/2014,Product Development & Management,Travel & Subsistence General Duty,Redfern Travel Ltd,Large,1008103,124.15,Travel & Subsistence General Duty,Administration
Land Registry,Land Registry,22/04/2014,Commercial & Customer Strategy & Performance,Travel & Subsistence General Duty,Redfern Travel Ltd,Large,1008103,209.64,Travel & Subsistence General Duty,Administration
Land Registry,Land Registry,22/04/2014,Business Development,Travel & Subsistence General Duty,Redfern Travel Ltd,Large,1008103,4.94,Travel & Subsistence General Duty,Administration
Land Registry,Land Registry,22/04/2014,Customer Services,Travel & Subsistence General Duty,Redfern Travel Ltd,Large,1008103,-172.14,Travel & Subsistence General Duty,Administration
Land Registry,Land Registry,22/04/2014,International Unit,Travel & Subsistence General Duty,Redfern Travel Ltd,Large,1008103,-256.32,Travel & Subsistence General Duty,Administration
Land Registry,Land Registry,22/04/2014,Marketing Services Team,Travel & Subsistence General Duty,Redfern Travel Ltd,Large,1008103,-2.16,Travel & Subsistence General Duty,Administration
Land Registry,Land Registry,22/04/2014,Product Development & Management,Travel & Subsistence General Duty,Redfern Travel Ltd,Large,1008103,-148.98,Travel & Subsistence General Duty,Administration
Land Registry,Land Registry,22/04/2014,Commercial & Customer Strategy & Performance,Travel & Subsistence General Duty,Redfern Travel Ltd,Large,1008103,-251.57,Travel & Subsistence General Duty,Administration
Land Registry,Land Registry,22/04/2014,Business Development,Travel & Subsistence General Duty,Redfern Travel Ltd,Large,1008103,255.52,Travel & Subsistence General Duty,Administration
Land Registry,Land Registry,22/04/2014,Central Facilities Management Team,Travel & Subsistence General Duty,Redfern Travel Ltd,Large,1008103,41.7,Travel & Subsistence General Duty,Administration
Land Registry,Land Registry,22/04/2014,HR,Travel & Subsistence General Duty,Redfern Travel Ltd,Large,1008103,266.7,Travel & Subsistence General Duty,Administration
Land Registry,Land Registry,22/04/2014,IS Service Delivery,Travel & Subsistence General Duty,Redfern Travel Ltd,Large,1008103,390.88,Travel & Subsistence General Duty,Administration
Land Registry,Land Registry,22/04/2014,Property Asset Management Group,Travel & Subsistence General Duty,Redfern Travel Ltd,Large,1008103,71.47,Travel & Subsistence General Duty,Administration
Land Registry,Land Registry,22/04/2014,HR,Travel & Subsistence General Duty,Redfern Travel Ltd,Large,1008103,175.28,Travel & Subsistence General Duty,Administration
Land Registry,Land Registry,22/04/2014,Property Asset Management Group,Travel & Subsistence General Duty,Redfern Travel Ltd,Large,1008103,80.49,Travel & Subsistence General Duty,Administration
Land Registry,Land Registry,22/04/2014,HR,Travel & Subsistence General Duty,Redfern Travel Ltd,Large,1008103,65.91,Travel & Subsistence General Duty,Administration
Land Registry,Land Registry,22/04/2014,Central Facilities Management Team,Travel & Subsistence General Duty,Redfern Travel Ltd,Large,1008103,47.86,Travel & Subsistence General Duty,Administration
Land Registry,Land Registry,22/04/2014,Director of Information Systems,Travel & Subsistence General Duty,Redfern Travel Ltd,Large,1008103,372.59,Travel & Subsistence General Duty,Administration
Land Registry,Land Registry,22/04/2014,HR,Travel & Subsistence General Duty,Redfern Travel Ltd,Large,1008103,204.93,Travel & Subsistence General Duty,Administration
Land Registry,Land Registry,22/04/2014,Weymouth Office,Travel & Subsistence General Duty,Redfern Travel Ltd,Large,1008103,64.15,Travel & Subsistence General Duty,Administration
Land Registry,Land Registry,22/04/2014,Director of Information Systems,Travel & Subsistence General Duty,Redfern Travel Ltd,Large,1008103,11.86,Travel & Subsistence General Duty,Administration
Land Registry,Land Registry,22/04/2014,Weymouth Office,Travel & Subsistence General Duty,Redfern Travel Ltd,Large,1008103,110.01,Travel & Subsistence General Duty,Administration
Land Registry,Land Registry,22/04/2014,Projects and Programme Centre,Travel & Subsistence General Duty,Redfern Travel Ltd,Large,1008103,42.89,Travel & Subsistence General Duty,Administration
Land Registry,Land Registry,22/04/2014,Weymouth Office,Travel & Subsistence General Duty,Redfern Travel Ltd,Large,1008103,59.27,Travel & Subsistence General Duty,Administration
Land Registry,Land Registry,22/04/2014,Projects and Programme Centre,Travel & Subsistence General Duty,Redfern Travel Ltd,Large,1008103,183.17,Travel & Subsistence General Duty,Administration
Land Registry,Land Registry,22/04/2014,HR,Travel & Subsistence General Duty,Redfern Travel Ltd,Large,1008103,378.86,Travel & Subsistence General Duty,Administration
Land Registry,Land Registry,22/04/2014,Director of Operations,Travel & Subsistence General Duty,Redfern Travel Ltd,Large,1008103,212.76,Travel & Subsistence General Duty,Administration
Land Registry,Land Registry,22/04/2014,Durham Office,Travel & Subsistence General Duty,Redfern Travel Ltd,Large,1008103,118.34,Travel & Subsistence General Duty,Administration
Land Registry,Land Registry,22/04/2014,Central Operations Group,Travel & Subsistence General Duty,Redfern Travel Ltd,Large,1008103,135.88,Travel & Subsistence General Duty,Administration
Land Registry,Land Registry,22/04/2014,Commercial Director,Travel & Subsistence General Duty,Redfern Travel Ltd,Large,1008103,99,Travel & Subsistence General Duty,Administration
Land Registry,Land Registry,22/04/2014,HR,Travel & Subsistence General Duty,Redfern Travel Ltd,Large,1008103,346.95,Travel & Subsistence General Duty,Administration
Land Registry,Land Registry,22/04/2014,Central Operations Group,Travel & Subsistence General Duty,Redfern Travel Ltd,Large,1008103,62.69,Travel & Subsistence General Duty,Administration
Land Registry,Land Registry,22/04/2014,Internal Audit,Travel & Subsistence General Duty,Redfern Travel Ltd,Large,1008103,142.71,Travel & Subsistence General Duty,Administration
Land Registry,Land Registry,22/04/2014,Fylde Office,Travel & Subsistence General Duty,Redfern Travel Ltd,Large,1008103,196.77,Travel & Subsistence General Duty,Administration
Land Registry,Land Registry,22/04/2014,Weymouth Office,Travel & Subsistence General Duty,Redfern Travel Ltd,Large,1008103,63.86,Travel & Subsistence General Duty,Administration
Land Registry,Land Registry,22/04/2014,HR,Travel & Subsistence General Duty,Redfern Travel Ltd,Large,1008103,127.64,Travel & Subsistence General Duty,Administration
Land Registry,Land Registry,22/04/2014,Commercial Director,Travel & Subsistence General Duty,Redfern Travel Ltd,Large,1008103,99,Travel & Subsistence General Duty,Administration
Land Registry,Land Registry,22/04/2014,Plymouth Office,Travel & Subsistence General Duty,Redfern Travel Ltd,Large,1008103,1.56,Travel & Subsistence General Duty,Administration
Land Registry,Land Registry,22/04/2014,IS Service Delivery,Travel & Subsistence General Duty,Redfern Travel Ltd,Large,1008103,158.8,Travel & Subsistence General Duty,Administration
Land Registry,Land Registry,22/04/2014,Customer Services,Travel & Subsistence General Duty,Redfern Travel Ltd,Large,1008103,1.56,Travel & Subsistence General Duty,Administration
Land Registry,Land Registry,22/04/2014,HR,Travel & Subsistence General Duty,Redfern Travel Ltd,Large,1008103,161.84,Travel & Subsistence General Duty,Administration
Land Registry,Land Registry,22/04/2014,Research & Data Mining,Travel & Subsistence General Duty,Redfern Travel Ltd,Large,1008103,132.11,Travel & Subsistence General Duty,Administration
Land Registry,Land Registry,22/04/2014,Customer Services,Travel & Subsistence General Duty,Redfern Travel Ltd,Large,1008103,256.88,Travel & Subsistence General Duty,Administration
Land Registry,Land Registry,22/04/2014,Central Operations Group,Travel & Subsistence General Duty,Redfern Travel Ltd,Large,1008103,75.97,Travel & Subsistence General Duty,Administration
Land Registry,Land Registry,22/04/2014,Internal Solutions Group,Travel & Subsistence General Duty,Redfern Travel Ltd,Large,1008103,140.39,Travel & Subsistence General Duty,Administration
Land Registry,Land Registry,22/04/2014,Finance Group,Travel & Subsistence General Duty,Redfern Travel Ltd,Large,1008103,142.4,Travel & Subsistence General Duty,Administration
Land Registry,Land Registry,22/04/2014,HR,Travel & Subsistence General Duty,Redfern Travel Ltd,Large,1008103,91.35,Travel & Subsistence General Duty,Administration
Land Registry,Land Registry,22/04/2014,Corp Procurement,Travel & Subsistence General Duty,Redfern Travel Ltd,Large,1008103,71.98,Travel & Subsistence General Duty,Administration
Land Registry,Land Registry,22/04/2014,Commercial & Customer Strategy & Performance,Travel & Subsistence General Duty,Redfern Travel Ltd,Large,1008103,250.1,Travel & Subsistence General Duty,Administration
Land Registry,Land Registry,22/04/2014,Research & Data Mining,Travel & Subsistence General Duty,Redfern Travel Ltd,Large,1008103,60.13,Travel & Subsistence General Duty,Administration
Land Registry,Land Registry,22/04/2014,HR,Travel & Subsistence General Duty,Redfern Travel Ltd,Large,1008103,82.04,Travel & Subsistence General Duty,Administration
Land Registry,Land Registry,22/04/2014,Internal Solutions Group,Travel & Subsistence General Duty,Redfern Travel Ltd,Large,1008103,87.07,Travel & Subsistence General Duty,Administration
Land Registry,Land Registry,22/04/2014,Employee & Management Support Manager,Travel & Subsistence General Duty,Redfern Travel Ltd,Large,1008103,66.95,Travel & Subsistence General Duty,Administration
Land Registry,Land Registry,22/04/2014,Learning and Development,Travel & Subsistence General Duty,Redfern Travel Ltd,Large,1008103,164.53,Travel & Subsistence General Duty,Administration
Land Registry,Land Registry,22/04/2014,Chief Executives Office,Travel & Subsistence General Duty,Redfern Travel Ltd,Large,1008103,90.34,Travel & Subsistence General Duty,Administration
Land Registry,Land Registry,22/04/2014,Governance & Policy,Travel & Subsistence General Duty,Redfern Travel Ltd,Large,1008103,192.2,Travel & Subsistence General Duty,Administration
Land Registry,Land Registry,22/04/2014,Central Operations Group,Travel & Subsistence General Duty,Redfern Travel Ltd,Large,1008103,77.01,Travel & Subsistence General Duty,Administration
Land Registry,Land Registry,22/04/2014,Director of Information Systems,Travel & Subsistence General Duty,Redfern Travel Ltd,Large,1008103,192.2,Travel & Subsistence General Duty,Administration
Land Registry,Land Registry,22/04/2014,Internal Solutions Group,Travel & Subsistence General Duty,Redfern Travel Ltd,Large,1008103,227.91,Travel & Subsistence General Duty,Administration
Land Registry,Land Registry,22/04/2014,Customer Services,Travel & Subsistence General Duty,Redfern Travel Ltd,Large,1008103,91.35,Travel & Subsistence General Duty,Administration
Land Registry,Land Registry,22/04/2014,Internal Solutions Group,Travel & Subsistence General Duty,Redfern Travel Ltd,Large,1008103,72.99,Travel & Subsistence General Duty,Administration
Land Registry,Land Registry,22/04/2014,Strategy Team,Travel & Subsistence General Duty,Redfern Travel Ltd,Large,1008103,91.85,Travel & Subsistence General Duty,Administration
Land Registry,Land Registry,22/04/2014,Director of Legal Services,Travel & Subsistence General Duty,Redfern Travel Ltd,Large,1008103,82.04,Travel & Subsistence General Duty,Administration
Land Registry,Land Registry,22/04/2014,HR,Travel & Subsistence General Duty,Redfern Travel Ltd,Large,1008103,190.75,Travel & Subsistence General Duty,Administration
Land Registry,Land Registry,22/04/2014,Internal Solutions Group,Travel & Subsistence General Duty,Redfern Travel Ltd,Large,1008103,75.97,Travel & Subsistence General Duty,Administration
Land Registry,Land Registry,22/04/2014,Coventry Office,Travel & Subsistence General Duty,Redfern Travel Ltd,Large,1008103,75.97,Travel & Subsistence General Duty,Administration
Land Registry,Land Registry,22/04/2014,Director of Information Systems,Travel & Subsistence General Duty,Redfern Travel Ltd,Large,1008103,90.34,Travel & Subsistence General Duty,Administration
Land Registry,Land Registry,22/04/2014,Product Development & Management,Travel & Subsistence General Duty,Redfern Travel Ltd,Large,1008103,10.97,Travel & Subsistence General Duty,Administration
Land Registry,Land Registry,22/04/2014,Internal Solutions Group,Travel & Subsistence General Duty,Redfern Travel Ltd,Large,1008103,256.6,Travel & Subsistence General Duty,Administration
Land Registry,Land Registry,22/04/2014,Central Facilities Management Team,Travel & Subsistence General Duty,Redfern Travel Ltd,Large,1008103,128.07,Travel & Subsistence General Duty,Administration
Land Registry,Land Registry,22/04/2014,Product Development & Management,Travel & Subsistence General Duty,Redfern Travel Ltd,Large,1008103,306.52,Travel & Subsistence General Duty,Administration
Land Registry,Land Registry,22/04/2014,Property Asset Management Group,Travel & Subsistence General Duty,Redfern Travel Ltd,Large,1008103,49.32,Travel & Subsistence General Duty,Administration
Land Registry,Land Registry,22/04/2014,HR,Travel & Subsistence General Duty,Redfern Travel Ltd,Large,1008103,18.5,Travel & Subsistence General Duty,Administration
Land Registry,Land Registry,22/04/2014,Commercial & Customer Strategy & Performance,Travel & Subsistence General Duty,Redfern Travel Ltd,Large,1008103,13.71,Travel & Subsistence General Duty,Administration
Land Registry,Land Registry,22/04/2014,Corporate Legal Services,Travel & Subsistence General Duty,Redfern Travel Ltd,Large,1008103,30.2,Travel & Subsistence General Duty,Administration
Land Registry,Land Registry,22/04/2014,Commercial & Customer Strategy & Performance,Travel & Subsistence General Duty,Redfern Travel Ltd,Large,1008103,8.92,Travel & Subsistence General Duty,Administration
Land Registry,Land Registry,22/04/2014,International Unit,Travel & Subsistence General Duty,Redfern Travel Ltd,Large,1008103,144.41,Travel & Subsistence General Duty,Administration
Land Registry,Land Registry,22/04/2014,Corporate Legal Services,Travel & Subsistence General Duty,Redfern Travel Ltd,Large,1008103,10.97,Travel & Subsistence General Duty,Administration
Land Registry,Land Registry,22/04/2014,Business Development,Travel & Subsistence General Duty,Redfern Travel Ltd,Large,1008103,222.72,Travel & Subsistence General Duty,Administration
Land Registry,Land Registry,22/04/2014,Corporate Legal Services,Travel & Subsistence General Duty,Redfern Travel Ltd,Large,1008103,4.54,Travel & Subsistence General Duty,Administration
Land Registry,Land Registry,22/04/2014,Central Operations Group,Travel & Subsistence General Duty,Redfern Travel Ltd,Large,1008103,231.16,Travel & Subsistence General Duty,Administration
Land Registry,Land Registry,22/04/2014,Business Development,Travel & Subsistence General Duty,Redfern Travel Ltd,Large,1008103,87.57,Travel & Subsistence General Duty,Administration
Land Registry,Land Registry,22/04/2014,Corporate Legal Services,Travel & Subsistence General Duty,Redfern Travel Ltd,Large,1008103,4.93,Travel & Subsistence General Duty,Administration
Land Registry,Land Registry,22/04/2014,Central Facilities Management Team,Travel & Subsistence General Duty,Redfern Travel Ltd,Large,1008103,202.23,Travel & Subsistence General Duty,Administration
Land Registry,Land Registry,22/04/2014,HR,Travel & Subsistence General Duty,Redfern Travel Ltd,Large,1008103,18.5,Travel & Subsistence General Duty,Administration
Land Registry,Land Registry,22/04/2014,International Unit,Travel & Subsistence General Duty,Redfern Travel Ltd,Large,1008103,210.31,Travel & Subsistence General Duty,Administration
Land Registry,Land Registry,22/04/2014,Internal Solutions Group,Travel & Subsistence General Duty,Redfern Travel Ltd,Large,1008103,309.91,Travel & Subsistence General Duty,Administration
Land Registry,Land Registry,22/04/2014,Corp Procurement,Travel & Subsistence General Duty,Redfern Travel Ltd,Large,1008103,119.79,Travel & Subsistence General Duty,Administration
Land Registry,Land Registry,22/04/2014,HR,Travel & Subsistence General Duty,Redfern Travel Ltd,Large,1008103,69.03,Travel & Subsistence General Duty,Administration
Land Registry,Land Registry,22/04/2014,Product Development & Management,Travel & Subsistence General Duty,Redfern Travel Ltd,Large,1008103,149.54,Travel & Subsistence General Duty,Administration
Land Registry,Land Registry,22/04/2014,Central Facilities Management Team,Travel & Subsistence General Duty,Redfern Travel Ltd,Large,1008103,35.27,Travel & Subsistence General Duty,Administration
Land Registry,Land Registry,22/04/2014,Property Asset Management Group,Travel & Subsistence General Duty,Redfern Travel Ltd,Large,1008103,35.28,Travel & Subsistence General Duty,Administration
Land Registry,Land Registry,22/04/2014,Corporate Legal Services,Travel & Subsistence General Duty,Redfern Travel Ltd,Large,1008103,48.34,Travel & Subsistence General Duty,Administration
Land Registry,Land Registry,22/04/2014,HR,Travel & Subsistence General Duty,Redfern Travel Ltd,Large,1008103,91.47,Travel & Subsistence General Duty,Administration
Land Registry,Land Registry,22/04/2014,Director of Information Systems,Travel & Subsistence General Duty,Redfern Travel Ltd,Large,1008103,4.82,Travel & Subsistence General Duty,Administration
Land Registry,Land Registry,22/04/2014,Business Development,Travel & Subsistence General Duty,Redfern Travel Ltd,Large,1008103,44.63,Travel & Subsistence General Duty,Administration
Land Registry,Land Registry,22/04/2014,Research & Data Mining,Travel & Subsistence General Duty,Redfern Travel Ltd,Large,1008103,396.47,Travel & Subsistence General Duty,Administration
Land Registry,Land Registry,22/04/2014,Commercial & Customer Strategy & Performance,Travel & Subsistence General Duty,Redfern Travel Ltd,Large,1008103,12.05,Travel & Subsistence General Duty,Administration
Land Registry,Land Registry,22/04/2014,Product Development & Management,Travel & Subsistence General Duty,Redfern Travel Ltd,Large,1008103,155.49,Travel & Subsistence General Duty,Administration
Land Registry,Land Registry,22/04/2014,Central Operations Group,Travel & Subsistence General Duty,Redfern Travel Ltd,Large,1008103,198.32,Travel & Subsistence General Duty,Administration
Land Registry,Land Registry,22/04/2014,Durham Office,Travel & Subsistence General Duty,Redfern Travel Ltd,Large,1008103,362.05,Travel & Subsistence General Duty,Administration
Land Registry,Land Registry,22/04/2014,Internal Solutions Group,Travel & Subsistence General Duty,Redfern Travel Ltd,Large,1008103,201.66,Travel & Subsistence General Duty,Administration
Land Registry,Land Registry,22/04/2014,Central Operations Group,Travel & Subsistence General Duty,Redfern Travel Ltd,Large,1008103,83.66,Travel & Subsistence General Duty,Administration
Land Registry,Land Registry,22/04/2014,Research & Data Mining,Travel & Subsistence General Duty,Redfern Travel Ltd,Large,1008103,142.7,Travel & Subsistence General Duty,Administration
Land Registry,Land Registry,22/04/2014,Learning and Development,Travel & Subsistence General Duty,Redfern Travel Ltd,Large,1008103,33.17,Travel & Subsistence General Duty,Administration
Land Registry,Land Registry,22/04/2014,Business Development,Travel & Subsistence General Duty,Redfern Travel Ltd,Large,1008103,164.87,Travel & Subsistence General Duty,Administration
Land Registry,Land Registry,22/04/2014,Director of Information Systems,Travel & Subsistence General Duty,Redfern Travel Ltd,Large,1008103,11.86,Travel & Subsistence General Duty,Administration
Land Registry,Land Registry,22/04/2014,Corp Procurement,Travel & Subsistence General Duty,Redfern Travel Ltd,Large,1008103,174.68,Travel & Subsistence General Duty,Administration
Land Registry,Land Registry,22/04/2014,Director of Information Systems,Travel & Subsistence General Duty,Redfern Travel Ltd,Large,1008103,11.86,Travel & Subsistence General Duty,Administration
Land Registry,Land Registry,22/04/2014,Employee & Management Support Manager,Travel & Subsistence General Duty,Redfern Travel Ltd,Large,1008103,60.34,Travel & Subsistence General Duty,Administration
Land Registry,Land Registry,22/04/2014,Chief Executives Office,Travel & Subsistence General Duty,Redfern Travel Ltd,Large,1008103,161.84,Travel & Subsistence General Duty,Administration
Land Registry,Land Registry,22/04/2014,Finance Group,Travel & Subsistence General Duty,Redfern Travel Ltd,Large,1008103,118.03,Travel & Subsistence General Duty,Administration
Land Registry,Land Registry,22/04/2014,Employee & Management Support Manager,Travel & Subsistence General Duty,Redfern Travel Ltd,Large,1008103,157.34,Travel & Subsistence General Duty,Administration
Land Registry,Land Registry,22/04/2014,IS Service Delivery,Travel & Subsistence General Duty,Redfern Travel Ltd,Large,1008103,500.29,Travel & Subsistence General Duty,Administration
Land Registry,Land Registry,22/04/2014,Central Operations Group,Travel & Subsistence General Duty,Redfern Travel Ltd,Large,1008103,121.28,Travel & Subsistence General Duty,Administration
Land Registry,Land Registry,22/04/2014,IS Service Delivery,Travel & Subsistence General Duty,Redfern Travel Ltd,Large,1008103,629.53,Travel & Subsistence General Duty,Administration
Land Registry,Land Registry,22/04/2014,International Unit,Travel & Subsistence General Duty,Redfern Travel Ltd,Large,1008103,1.56,Travel & Subsistence General Duty,Administration
Land Registry,Land Registry,22/04/2014,IS Service Delivery,Travel & Subsistence General Duty,Redfern Travel Ltd,Large,1008103,629.53,Travel & Subsistence General Duty,Administration
Land Registry,Land Registry,22/04/2014,Business Development,Travel & Subsistence General Duty,Redfern Travel Ltd,Large,1008103,222.4,Travel & Subsistence General Duty,Administration
Land Registry,Land Registry,22/04/2014,HR,Travel & Subsistence General Duty,Redfern Travel Ltd,Large,1008103,162.52,Travel & Subsistence General Duty,Administration
Land Registry,Land Registry,22/04/2014,Gloucester Office,Travel & Subsistence General Duty,Redfern Travel Ltd,Large,1008103,19.75,Travel & Subsistence General Duty,Administration
